Workbook

Sheet Hourly Load Profiles
A2: Year | B2: Month | C2: Day | D2: Hour | E2: Residential | F2: GSlt50 | G2: GSgt50 | H2: Intermediate | I2: Large Use | J2: Street Lights | K2: Sentinel Lights | L2: USL | M2: Total
A3: 2016 | B3: 1 | C3: 1 | D3: 1 | E3: 28006.16617 | F3: 10034.23745 | G3: 23266.53158 | H3: 12345.5678 | I3: 34970.21377 | J3: 1183.458538 | K3: 114.9034709 | L3: 252.9219827 | M3: =SUM(E3:L3) -> 110174.0008 | O3: =A3 -> 2016 | P3: =E2 -> Residential | Q3: =F2 -> GSlt50 | R3: GSgt50 | S3: Intermediate | T3: Large Use | U3: Street Lights | V3: Sentinel Lights | W3: USL | X3: Total
A4: 2016 | B4: 1 | C4: 1 | D4: 2 | E4: 25207.84554 | F4: 9852.473371 | G4: 20953.90358 | H4: 12157.856 | I4: 35037.43576 | J4: 1183.458538 | K4: 114.9034709 | L4: 252.9219827 | M4: =SUM(E4:L4) -> 104760.7982 | O4: 1 | P4: =SUMIFS(E:E,$A:$A,O3,$B:$B,$O4,$M:$M,$X4) -> 42575.63157 | Q4: =SUMIFS(F:F,$A:$A,O3,$B:$B,$O4,$M:$M,$X4) -> 17304.60108 | R4: =SUMIFS(G:G,$A:$A,O3,$B:$B,$O4,$M:$M,$X4) -> 33543.3118 | S4: =SUMIFS(H:H,$A:$A,O3,$B:$B,$O4,$M:$M,$X4) -> 15913.8108 | T4: =SUMIFS(I:I,$A:$A,O3,$B:$B,$O4,$M:$M,$X4) -> 35975.64663 | U4: =SUMIFS(J:J,$A:$A,O3,$B:$B,$O4,$M:$M,$X4) -> 757.4134645 | V4: =SUMIFS(K:K,$A:$A,O3,$B:$B,$O4,$M:$M,$X4) -> 73.53822137 | W4: =SUMIFS(L:L,$A:$A,O3,$B:$B,$O4,$M:$M,$X4) -> 252.9219827 | X4: =_xlfn.MAXIFS(M:M,A:A,O3,B:B,O4) -> 146396.8755 | Z4: =RANK(X4,$X$8788:$X$8799) ->  | AA4: =SUMIFS(B$3:B$52610,$M$3:$M$52610,$X4) -> 1 | AB4: =SUMIFS(C$3:C$52610,$M$3:$M$52610,$X4) -> 4 | AC4: 18
A5: 2016 | B5: 1 | C5: 1 | D5: 3 | E5: 23183.81445 | F5: 9718.51018 | G5: 19945.78619 | H5: 11984.4114 | I5: 35252.08211 | J5: 1183.458538 | K5: 114.9034709 | L5: 252.9219827 | M5: 101635.8883 | O5: =O4+1 -> 2 | P5: =SUMIFS(E:E,$A:$A,O3,$B:$B,$O5,$M:$M,$X5) -> 40080.13161 | Q5: =SUMIFS(F:F,$A:$A,O3,$B:$B,$O5,$M:$M,$X5) -> 14012.82314 | R5: =SUMIFS(G:G,$A:$A,O3,$B:$B,$O5,$M:$M,$X5) -> 31830.83412 | S5: =SUMIFS(H:H,$A:$A,O3,$B:$B,$O5,$M:$M,$X5) -> 15413.6484 | T5: =SUMIFS(I:I,$A:$A,O3,$B:$B,$O5,$M:$M,$X5) -> 36210.52859 | U5: =SUMIFS(J:J,$A:$A,O3,$B:$B,$O5,$M:$M,$X5) -> 1183.458538 | V5: =SUMIFS(K:K,$A:$A,O3,$B:$B,$O5,$M:$M,$X5) -> 114.9034709 | W5: =SUMIFS(L:L,$A:$A,O3,$B:$B,$O5,$M:$M,$X5) -> 252.9219827 | X5: =_xlfn.MAXIFS(M:M,A:A,O3,B:B,O5) -> 139099.2499 | AA5: =SUMIFS(B$3:B$52610,$M$3:$M$52610,$X5) -> 2 | AB5: 12 | AC5: 21
A6: 2016 | B6: 1 | C6: 1 | D6: 4 | E6: 21876.24178 | F6: 9572.313141 | G6: 19323.33411 | H6: 11990.9522 | I6: 35331.81845 | J6: 1183.458538 | K6: 114.9034709 | L6: 252.9219827 | M6: 99645.94367 | O6: =O5+1 -> 3 | P6: =SUMIFS(E:E,$A:$A,O3,$B:$B,$O6,$M:$M,$X6) -> 40171.84097 | Q6: =SUMIFS(F:F,$A:$A,O3,$B:$B,$O6,$M:$M,$X6) -> 13755.29489 | R6: =SUMIFS(G:G,$A:$A,O3,$B:$B,$O6,$M:$M,$X6) -> 31931.34402 | S6: =SUMIFS(H:H,$A:$A,O3,$B:$B,$O6,$M:$M,$X6) -> 15442.595 | T6: =SUMIFS(I:I,$A:$A,O3,$B:$B,$O6,$M:$M,$X6) -> 35862.80272 | U6: =SUMIFS(J:J,$A:$A,O3,$B:$B,$O6,$M:$M,$X6) -> 1183.458538 | V6: =SUMIFS(K:K,$A:$A,O3,$B:$B,$O6,$M:$M,$X6) -> 114.9034709 | W6: =SUMIFS(L:L,$A:$A,O3,$B:$B,$O6,$M:$M,$X6) -> 252.9219827 | X6: =_xlfn.MAXIFS(M:M,A:A,O3,B:B,O6) -> 138715.1616 | AA6: 3 | AB6: 1 | AC6: 20
A7: 2016 | B7: 1 | C7: 1 | D7: 5 | E7: 21310.72369 | F7: 9494.167434 | G7: 19106.5398 | H7: 12037.965 | I7: 35694.55296 | J7: 1183.458538 | K7: 114.9034709 | L7: 252.9219827 | M7: 99195.23287 | O7: 4 | P7: =SUMIFS(E:E,$A:$A,O3,$B:$B,$O7,$M:$M,$X7) -> 39827.34369 | Q7: =SUMIFS(F:F,$A:$A,O3,$B:$B,$O7,$M:$M,$X7) -> 10066.30533 | R7: =SUMIFS(G:G,$A:$A,O3,$B:$B,$O7,$M:$M,$X7) -> 28826.33458 | S7: =SUMIFS(H:H,$A:$A,O3,$B:$B,$O7,$M:$M,$X7) -> 13222.1982 | T7: =SUMIFS(I:I,$A:$A,O3,$B:$B,$O7,$M:$M,$X7) -> 36365.73361 | U7: =SUMIFS(J:J,$A:$A,O3,$B:$B,$O7,$M:$M,$X7) -> 0 | V7: =SUMIFS(K:K,$A:$A,O3,$B:$B,$O7,$M:$M,$X7) -> 0 | W7: =SUMIFS(L:L,$A:$A,O3,$B:$B,$O7,$M:$M,$X7) -> 252.9219827 | X7: =_xlfn.MAXIFS(M:M,A:A,O3,B:B,O7) -> 128560.8374 | AA7: 4 | AB7: 10 | AC7: 17
A8: 2016 | B8: 1 | C8: 1 | D8: 6 | E8: 21494.19123 | F8: 9610.372351 | G8: 19279.04034 | H8: 12055.169 | I8: 36132.46634 | J8: 1183.458538 | K8: 114.9034709 | L8: 252.9219827 | M8: 100122.5232 | O8: 5 | P8: =SUMIFS(E:E,$A:$A,O3,$B:$B,$O8,$M:$M,$X8) -> 50654.92544 | Q8: =SUMIFS(F:F,$A:$A,O3,$B:$B,$O8,$M:$M,$X8) -> 13568.52867 | R8: =SUMIFS(G:G,$A:$A,O3,$B:$B,$O8,$M:$M,$X8) -> 38647.71925 | S8: =SUMIFS(H:H,$A:$A,O3,$B:$B,$O8,$M:$M,$X8) -> 15383.73027 | T8: =SUMIFS(I:I,$A:$A,O3,$B:$B,$O8,$M:$M,$X8) -> 35519.34202 | U8: =SUMIFS(J:J,$A:$A,O3,$B:$B,$O8,$M:$M,$X8) -> 0 | V8: =SUMIFS(K:K,$A:$A,O3,$B:$B,$O8,$M:$M,$X8) -> 0 | W8: =SUMIFS(L:L,$A:$A,O3,$B:$B,$O8,$M:$M,$X8) -> 252.9219827 | X8: =_xlfn.MAXIFS(M:M,A:A,O3,B:B,O8) -> 154027.1676 | AA8: 5 | AB8: 28 | AC8: 16
A9: 2016 | B9: 1 | C9: 1 | D9: 7 | E9: 22182.44866 | F9: 9777.29065 | G9: 19903.53993 | H9: 12205.9514 | I9: 36364.32311 | J9: 1183.458538 | K9: 114.9034709 | L9: 252.9219827 | M9: 101984.8377 | O9: 6 | P9: =SUMIFS(E:E,$A:$A,O3,$B:$B,$O9,$M:$M,$X9) -> 71620.82538 | Q9: =SUMIFS(F:F,$A:$A,O3,$B:$B,$O9,$M:$M,$X9) -> 18137.65947 | R9: =SUMIFS(G:G,$A:$A,O3,$B:$B,$O9,$M:$M,$X9) -> 46664.04421 | S9: =SUMIFS(H:H,$A:$A,O3,$B:$B,$O9,$M:$M,$X9) -> 15407.06619 | T9: =SUMIFS(I:I,$A:$A,O3,$B:$B,$O9,$M:$M,$X9) -> 36186.30304 | U9: =SUMIFS(J:J,$A:$A,O3,$B:$B,$O9,$M:$M,$X9) -> 0 | V9: =SUMIFS(K:K,$A:$A,O3,$B:$B,$O9,$M:$M,$X9) -> 0 | W9: =SUMIFS(L:L,$A:$A,O3,$B:$B,$O9,$M:$M,$X9) -> 252.9219827 | X9: =_xlfn.MAXIFS(M:M,A:A,O3,B:B,O9) -> 188268.8203 | AA9: 6 | AB9: 20 | AC9: 17
A10: 2016 | B10: 1 | C10: 1 | D10: 8 | E10: 23480.7082 | F10: 9913.874223 | G10: 20843.85321 | H10: 11813.5386 | I10: 36100.17898 | J10: 1112.451026 | K10: 108.0092626 | L10: 252.9219827 | M10: 103625.5355 | O10: 7 | P10: =SUMIFS(E:E,$A:$A,O3,$B:$B,$O10,$M:$M,$X10) -> 71671.09672 | Q10: =SUMIFS(F:F,$A:$A,O3,$B:$B,$O10,$M:$M,$X10) -> 17604.00155 | R10: =SUMIFS(G:G,$A:$A,O3,$B:$B,$O10,$M:$M,$X10) -> 39654.67702 | S10: =SUMIFS(H:H,$A:$A,O3,$B:$B,$O10,$M:$M,$X10) -> 15487.44492 | T10: =SUMIFS(I:I,$A:$A,O3,$B:$B,$O10,$M:$M,$X10) -> 37431.90025 | U10: =SUMIFS(J:J,$A:$A,O3,$B:$B,$O10,$M:$M,$X10) -> 0 | V10: =SUMIFS(K:K,$A:$A,O3,$B:$B,$O10,$M:$M,$X10) -> 0 | W10: =SUMIFS(L:L,$A:$A,O3,$B:$B,$O10,$M:$M,$X10) -> 252.9219827 | X10: =_xlfn.MAXIFS(M:M,A:A,O3,B:B,O10) -> 182102.0424 | AA10: 7 | AB10: 25 | AC10: 17
A11: 2016 | B11: 1 | C11: 1 | D11: 9 | E11: 26326.72677 | F11: 9528.761557 | G11: 22001.2044 | H11: 11551.9474 | I11: 35835.25523 | J11: 0 | K11: 0 | L11: 252.9219827 | M11: 105496.8173 | O11: 8 | P11: =SUMIFS(E:E,$A:$A,O3,$B:$B,$O11,$M:$M,$X11) -> 64576.59532 | Q11: =SUMIFS(F:F,$A:$A,O3,$B:$B,$O11,$M:$M,$X11) -> 20701.01789 | R11: =SUMIFS(G:G,$A:$A,O3,$B:$B,$O11,$M:$M,$X11) -> 39986.42554 | S11: =SUMIFS(H:H,$A:$A,O3,$B:$B,$O11,$M:$M,$X11) -> 11717.31009 | T11: =SUMIFS(I:I,$A:$A,O3,$B:$B,$O11,$M:$M,$X11) -> 38608.60063 | U11: =SUMIFS(J:J,$A:$A,O3,$B:$B,$O11,$M:$M,$X11) -> 0 | V11: =SUMIFS(K:K,$A:$A,O3,$B:$B,$O11,$M:$M,$X11) -> 0 | W11: =SUMIFS(L:L,$A:$A,O3,$B:$B,$O11,$M:$M,$X11) -> 252.9219827 | X11: =_xlfn.MAXIFS(M:M,A:A,O3,B:B,O11) -> 175842.8714 | AA11: 8 | AB11: 12 | AC11: 15
A12: 2016 | B12: 1 | C12: 1 | D12: 10 | E12: 29857.10101 | F12: 9536.703864 | G12: 23419.62543 | H12: 11529.0228 | I12: 35715.92582 | J12: 0 | K12: 0 | L12: 252.9219827 | M12: 110311.3009 | O12: 9 | P12: =SUMIFS(E:E,$A:$A,O3,$B:$B,$O12,$M:$M,$X12) -> 60075.84447 | Q12: =SUMIFS(F:F,$A:$A,O3,$B:$B,$O12,$M:$M,$X12) -> 19297.20276 | R12: =SUMIFS(G:G,$A:$A,O3,$B:$B,$O12,$M:$M,$X12) -> 43121.19907 | S12: =SUMIFS(H:H,$A:$A,O3,$B:$B,$O12,$M:$M,$X12) -> 16093.56621 | T12: =SUMIFS(I:I,$A:$A,O3,$B:$B,$O12,$M:$M,$X12) -> 35124.17164 | U12: =SUMIFS(J:J,$A:$A,O3,$B:$B,$O12,$M:$M,$X12) -> 0 | V12: =SUMIFS(K:K,$A:$A,O3,$B:$B,$O12,$M:$M,$X12) -> 0 | W12: =SUMIFS(L:L,$A:$A,O3,$B:$B,$O12,$M:$M,$X12) -> 252.9219827 | X12: =_xlfn.MAXIFS(M:M,A:A,O3,B:B,O12) -> 173964.9061 | AA12: 9 | AB12: 6 | AC12: 16
A13: 2016 | B13: 1 | C13: 1 | D13: 11 | E13: 32804.85801 | F13: 9662.948594 | G13: 24663.77097 | H13: 11438.0806 | I13: 36982.26452 | J13: 0 | K13: 0 | L13: 252.9219827 | M13: 115804.8447 | O13: 10 | P13: =SUMIFS(E:E,$A:$A,O3,$B:$B,$O13,$M:$M,$X13) -> 33545.83522 | Q13: =SUMIFS(F:F,$A:$A,O3,$B:$B,$O13,$M:$M,$X13) -> 10955.30895 | R13: =SUMIFS(G:G,$A:$A,O3,$B:$B,$O13,$M:$M,$X13) -> 27604.75868 | S13: =SUMIFS(H:H,$A:$A,O3,$B:$B,$O13,$M:$M,$X13) -> 14058.6722 | T13: =SUMIFS(I:I,$A:$A,O3,$B:$B,$O13,$M:$M,$X13) -> 35416.95448 | U13: =SUMIFS(J:J,$A:$A,O3,$B:$B,$O13,$M:$M,$X13) -> 1183.458538 | V13: =SUMIFS(K:K,$A:$A,O3,$B:$B,$O13,$M:$M,$X13) -> 114.9034709 | W13: =SUMIFS(L:L,$A:$A,O3,$B:$B,$O13,$M:$M,$X13) -> 252.9219827 | X13: =_xlfn.MAXIFS(M:M,A:A,O3,B:B,O13) -> 123132.8135 | AA13: 10 | AB13: 27 | AC13: 20
A14: 2016 | B14: 1 | C14: 1 | D14: 12 | E14: 35258.71791 | F14: 9855.810665 | G14: 25754.89005 | H14: 11444.2082 | I14: 37305.19807 | J14: 0 | K14: 0 | L14: 252.9219827 | M14: 119871.7469 | O14: 11 | P14: =SUMIFS(E:E,$A:$A,O3,$B:$B,$O14,$M:$M,$X14) -> 43389.73815 | Q14: =SUMIFS(F:F,$A:$A,O3,$B:$B,$O14,$M:$M,$X14) -> 11165.31909 | R14: =SUMIFS(G:G,$A:$A,O3,$B:$B,$O14,$M:$M,$X14) -> 30376.04265 | S14: =SUMIFS(H:H,$A:$A,O3,$B:$B,$O14,$M:$M,$X14) -> 13203.074 | T14: =SUMIFS(I:I,$A:$A,O3,$B:$B,$O14,$M:$M,$X14) -> 36509.87662 | U14: =SUMIFS(J:J,$A:$A,O3,$B:$B,$O14,$M:$M,$X14) -> 1053.278099 | V14: =SUMIFS(K:K,$A:$A,O3,$B:$B,$O14,$M:$M,$X14) -> 102.2640891 | W14: =SUMIFS(L:L,$A:$A,O3,$B:$B,$O14,$M:$M,$X14) -> 252.9219827 | X14: =_xlfn.MAXIFS(M:M,A:A,O3,B:B,O14) -> 136052.5147 | AA14: 11 | AB14: 20 | AC14: 18
A15: 2016 | B15: 1 | C15: 1 | D15: 13 | E15: 35917.32788 | F15: 9761.234858 | G15: 25921.5427 | H15: 11072.6324 | I15: 36859.65079 | J15: 0 | K15: 0 | L15: 252.9219827 | M15: 119785.3106 | O15: 12 | P15: =SUMIFS(E:E,$A:$A,O3,$B:$B,$O15,$M:$M,$X15) -> 47074.33464 | Q15: =SUMIFS(F:F,$A:$A,O3,$B:$B,$O15,$M:$M,$X15) -> 11913.92065 | R15: =SUMIFS(G:G,$A:$A,O3,$B:$B,$O15,$M:$M,$X15) -> 30450.3836 | S15: =SUMIFS(H:H,$A:$A,O3,$B:$B,$O15,$M:$M,$X15) -> 12605.326 | T15: =SUMIFS(I:I,$A:$A,O3,$B:$B,$O15,$M:$M,$X15) -> 33723.96563 | U15: =SUMIFS(J:J,$A:$A,O3,$B:$B,$O15,$M:$M,$X15) -> 1183.458538 | V15: =SUMIFS(K:K,$A:$A,O3,$B:$B,$O15,$M:$M,$X15) -> 114.9034709 | W15: =SUMIFS(L:L,$A:$A,O3,$B:$B,$O15,$M:$M,$X15) -> 252.9219827 | X15: =_xlfn.MAXIFS(M:M,A:A,O3,B:B,O15) -> 137319.2145 | AA15: 12 | AB15: 11 | AC15: 18
A16: 2016 | B16: 1 | C16: 1 | D16: 14 | E16: 36145.87743 | F16: 9628.728485 | G16: 25738.60064 | H16: 11297.1812 | I16: 36990.38574 | J16: 0 | K16: 0 | L16: 252.9219827 | M16: 120053.6955
A17: 2016 | B17: 1 | C17: 1 | D17: 15 | E17: 37023.13494 | F17: 9714.051578 | G17: 26278.08472 | H17: 11610.13 | I17: 37306.01903 | J17: 0 | K17: 0 | L17: 252.9219827 | M17: 122184.3423 | O17: 1CP | P17: =INDEX(P4:P15,MATCH($X17,$X4:$X15,0),0) -> 71620.82538 | Q17: =INDEX(Q4:Q15,MATCH($X17,$X4:$X15,0),0) -> 18137.65947 | R17: =INDEX(R4:R15,MATCH($X17,$X4:$X15,0),0) -> 46664.04421 | S17: =INDEX(S4:S15,MATCH($X17,$X4:$X15,0),0) -> 15407.06619 | T17: =INDEX(T4:T15,MATCH($X17,$X4:$X15,0),0) -> 36186.30304 | U17: =INDEX(U4:U15,MATCH($X17,$X4:$X15,0),0) -> 0 | V17: =INDEX(V4:V15,MATCH($X17,$X4:$X15,0),0) -> 0 | W17: =INDEX(W4:W15,MATCH($X17,$X4:$X15,0),0) -> 252.9219827 | X17: =MAX(X4:X15) -> 188268.8203
A18: 2016 | B18: 1 | C18: 1 | D18: 16 | E18: 38089.82189 | F18: 9886.96691 | G18: 26929.35981 | H18: 11488.4624 | I18: 37227.64567 | J18: 0 | K18: 0 | L18: 252.9219827 | M18: 123875.1787 | O18: 4CP | P18: =INDEX(P4:P15,MATCH(LARGE($X4:$X15,1),$X4:$X15,0),0)+INDEX(P4:P15,MATCH(LARGE($X4:$X15,2),$X4:$X15,0),0)+INDEX(P4:P15,MATCH(LARGE($X4:$X15,3),$X4:$X15,0),0)+INDEX(P4:P15,MATCH(LARGE($X4:$X15,4),$X4:$X15,0),0) -> 267944.3619 | Q18: =INDEX(Q4:Q15,MATCH(LARGE($X4:$X15,1),$X4:$X15,0),0)+INDEX(Q4:Q15,MATCH(LARGE($X4:$X15,2),$X4:$X15,0),0)+INDEX(Q4:Q15,MATCH(LARGE($X4:$X15,3),$X4:$X15,0),0)+INDEX(Q4:Q15,MATCH(LARGE($X4:$X15,4),$X4:$X15,0),0) -> 75739.88166 | R18: =INDEX(R4:R15,MATCH(LARGE($X4:$X15,1),$X4:$X15,0),0)+INDEX(R4:R15,MATCH(LARGE($X4:$X15,2),$X4:$X15,0),0)+INDEX(R4:R15,MATCH(LARGE($X4:$X15,3),$X4:$X15,0),0)+INDEX(R4:R15,MATCH(LARGE($X4:$X15,4),$X4:$X15,0),0) -> 169426.3458 | S18: =INDEX(S4:S15,MATCH(LARGE($X4:$X15,1),$X4:$X15,0),0)+INDEX(S4:S15,MATCH(LARGE($X4:$X15,2),$X4:$X15,0),0)+INDEX(S4:S15,MATCH(LARGE($X4:$X15,3),$X4:$X15,0),0)+INDEX(S4:S15,MATCH(LARGE($X4:$X15,4),$X4:$X15,0),0) -> 58705.38741 | T18: =INDEX(T4:T15,MATCH(LARGE($X4:$X15,1),$X4:$X15,0),0)+INDEX(T4:T15,MATCH(LARGE($X4:$X15,2),$X4:$X15,0),0)+INDEX(T4:T15,MATCH(LARGE($X4:$X15,3),$X4:$X15,0),0)+INDEX(T4:T15,MATCH(LARGE($X4:$X15,4),$X4:$X15,0),0) -> 147350.9756 | U18: =INDEX(U4:U15,MATCH(LARGE($X4:$X15,1),$X4:$X15,0),0)+INDEX(U4:U15,MATCH(LARGE($X4:$X15,2),$X4:$X15,0),0)+INDEX(U4:U15,MATCH(LARGE($X4:$X15,3),$X4:$X15,0),0)+INDEX(U4:U15,MATCH(LARGE($X4:$X15,4),$X4:$X15,0),0) -> 0 | V18: =INDEX(V4:V15,MATCH(LARGE($X4:$X15,1),$X4:$X15,0),0)+INDEX(V4:V15,MATCH(LARGE($X4:$X15,2),$X4:$X15,0),0)+INDEX(V4:V15,MATCH(LARGE($X4:$X15,3),$X4:$X15,0),0)+INDEX(V4:V15,MATCH(LARGE($X4:$X15,4),$X4:$X15,0),0) -> 0 | W18: =INDEX(W4:W15,MATCH(LARGE($X4:$X15,1),$X4:$X15,0),0)+INDEX(W4:W15,MATCH(LARGE($X4:$X15,2),$X4:$X15,0),0)+INDEX(W4:W15,MATCH(LARGE($X4:$X15,3),$X4:$X15,0),0)+INDEX(W4:W15,MATCH(LARGE($X4:$X15,4),$X4:$X15,0),0) -> 1011.687931 | X18: =LARGE(X4:X15,1)+LARGE(X4:X15,2)+LARGE(X4:X15,3)+LARGE(X4:X15,4) -> 720178.6403
A19: 2016 | B19: 1 | C19: 1 | D19: 17 | E19: 40559.08123 | F19: 10424.18722 | G19: 28493.54293 | H19: 11517.5118 | I19: 37355.14753 | J19: 0 | K19: 0 | L19: 252.9219827 | M19: 128602.3927 | O19: 12CP | P19: =SUM(P4:P15) -> 605264.1432 | Q19: =SUM(Q4:Q15) -> 178481.9835 | R19: 422637.0745 | S19: 173948.4423 | T19: 432935.8258 | U19: 6544.525716 | V19: 635.4161941 | W19: 3035.063792 | X19: 1823482.475
A20: 2016 | B20: 1 | C20: 1 | D20: 18 | E20: 44504.63316 | F20: 11373.69468 | G20: 30906.23057 | H20: 11861.0158 | I20: 37348.84519 | J20: 757.4134645 | K20: 73.53822137 | L20: 252.9219827 | M20: 137078.2931
A21: 2016 | B21: 1 | C21: 1 | D21: 19 | E21: 42836.41481 | F21: 11375.08893 | G21: 30032.32127 | H21: 12149.738 | I21: 36961.9074 | J21: 1183.458538 | K21: 114.9034709 | L21: 252.9219827 | M21: 134906.7544 | O21: =O3 -> 2016 | P21: =P3 -> Residential | Q21: =Q3 -> GSlt50 | R21: GSgt50 | S21: Intermediate | T21: Large Use | U21: Street Lights | V21: Sentinel Lights | W21: USL | X21: Total
A22: 2016 | B22: 1 | C22: 1 | D22: 20 | E22: 41211.6111 | F22: 11161.51308 | G22: 29029.14043 | H22: 12007.8732 | I22: 36846.89663 | J22: 1183.458538 | K22: 114.9034709 | L22: 252.9219827 | M22: 131808.3184 | O22: 1 | P22: =_xlfn.MAXIFS(E$3:E$52610,$A$3:$A$52610,O3,$B$3:$B$52610,$O22) -> 47376.84469 | Q22: =_xlfn.MAXIFS(F$3:F$52610,$A$3:$A$52610,O3,$B$3:$B$52610,$O22) -> 19174.5337 | R22: =_xlfn.MAXIFS(G$3:G$52610,$A$3:$A$52610,O3,$B$3:$B$52610,$O22) -> 34410.64437 | S22: =_xlfn.MAXIFS(H$3:H$52610,$A$3:$A$52610,O3,$B$3:$B$52610,$O22) -> 17190.2838 | T22: =_xlfn.MAXIFS(I$3:I$52610,$A$3:$A$52610,O3,$B$3:$B$52610,$O22) -> 38243.39533 | U22: =_xlfn.MAXIFS(J$3:J$52610,$A$3:$A$52610,O3,$B$3:$B$52610,$O22) -> 1183.458538 | V22: =_xlfn.MAXIFS(K$3:K$52610,$A$3:$A$52610,O3,$B$3:$B$52610,$O22) -> 114.9034709 | W22: =_xlfn.MAXIFS(L$3:L$52610,$A$3:$A$52610,O3,$B$3:$B$52610,$O22) -> 252.9219827 | X22: =SUM(P22:W22) -> 157946.9859
A23: 2016 | B23: 1 | C23: 1 | D23: 21 | E23: 39837.98092 | F23: 10898.96187 | G23: 28205.6315 | H23: 12216.5838 | I23: 36966.30473 | J23: 1183.458538 | K23: 114.9034709 | L23: 252.9219827 | M23: 129676.7468 | O23: =O22+1 -> 2 | P23: =_xlfn.MAXIFS(E$3:E$52610,$A$3:$A$52610,O3,$B$3:$B$52610,$O23) -> 42433.97101 | Q23: =_xlfn.MAXIFS(F$3:F$52610,$A$3:$A$52610,O3,$B$3:$B$52610,$O23) -> 17880.10341 | R23: =_xlfn.MAXIFS(G$3:G$52610,$A$3:$A$52610,O3,$B$3:$B$52610,$O23) -> 32676.35123 | S23: =_xlfn.MAXIFS(H$3:H$52610,$A$3:$A$52610,O3,$B$3:$B$52610,$O23) -> 16849.9956 | T23: =_xlfn.MAXIFS(I$3:I$52610,$A$3:$A$52610,O3,$B$3:$B$52610,$O23) -> 37717.03188 | U23: =_xlfn.MAXIFS(J$3:J$52610,$A$3:$A$52610,O3,$B$3:$B$52610,$O23) -> 1183.458538 | V23: =_xlfn.MAXIFS(K$3:K$52610,$A$3:$A$52610,O3,$B$3:$B$52610,$O23) -> 114.9034709 | W23: =_xlfn.MAXIFS(L$3:L$52610,$A$3:$A$52610,O3,$B$3:$B$52610,$O23) -> 252.9219827 | X23: =SUM(P23:W23) -> 149108.7371
A24: 2016 | B24: 1 | C24: 1 | D24: 22 | E24: 37712.32216 | F24: 10747.01247 | G24: 27006.25488 | H24: 12773.9996 | I24: 36206.25847 | J24: 1183.458538 | K24: 114.9034709 | L24: 252.9219827 | M24: 125997.1316 | O24: =O23+1 -> 3 | P24: =_xlfn.MAXIFS(E$3:E$52610,$A$3:$A$52610,O3,$B$3:$B$52610,$O24) -> 40335.09172 | Q24: =_xlfn.MAXIFS(F$3:F$52610,$A$3:$A$52610,O3,$B$3:$B$52610,$O24) -> 17066.40972 | R24: =_xlfn.MAXIFS(G$3:G$52610,$A$3:$A$52610,O3,$B$3:$B$52610,$O24) -> 31931.34402 | S24: =_xlfn.MAXIFS(H$3:H$52610,$A$3:$A$52610,O3,$B$3:$B$52610,$O24) -> 17494.47185 | T24: =_xlfn.MAXIFS(I$3:I$52610,$A$3:$A$52610,O3,$B$3:$B$52610,$O24) -> 37496.78386 | U24: =_xlfn.MAXIFS(J$3:J$52610,$A$3:$A$52610,O3,$B$3:$B$52610,$O24) -> 1183.458538 | V24: =_xlfn.MAXIFS(K$3:K$52610,$A$3:$A$52610,O3,$B$3:$B$52610,$O24) -> 114.9034709 | W24: =_xlfn.MAXIFS(L$3:L$52610,$A$3:$A$52610,O3,$B$3:$B$52610,$O24) -> 252.9219827 | X24: 145875.3852
A25: 2016 | B25: 1 | C25: 1 | D25: 23 | E25: 33992.94619 | F25: 10388.75802 | G25: 25201.11532 | H25: 12756.5488 | I25: 36112.31068 | J25: 1183.458538 | K25: 114.9034709 | L25: 252.9219827 | M25: 120002.963 | O25: 4 | P25: =_xlfn.MAXIFS(E$3:E$52610,$A$3:$A$52610,O3,$B$3:$B$52610,$O25) -> 39827.34369 | Q25: =_xlfn.MAXIFS(F$3:F$52610,$A$3:$A$52610,O3,$B$3:$B$52610,$O25) -> 16561.85708 | R25: =_xlfn.MAXIFS(G$3:G$52610,$A$3:$A$52610,O3,$B$3:$B$52610,$O25) -> 28826.33458 | S25: =_xlfn.MAXIFS(H$3:H$52610,$A$3:$A$52610,O3,$B$3:$B$52610,$O25) -> 17289.0138 | T25: =_xlfn.MAXIFS(I$3:I$52610,$A$3:$A$52610,O3,$B$3:$B$52610,$O25) -> 38278.39702 | U25: =_xlfn.MAXIFS(J$3:J$52610,$A$3:$A$52610,O3,$B$3:$B$52610,$O25) -> 1183.458538 | V25: =_xlfn.MAXIFS(K$3:K$52610,$A$3:$A$52610,O3,$B$3:$B$52610,$O25) -> 114.9034709 | W25: =_xlfn.MAXIFS(L$3:L$52610,$A$3:$A$52610,O3,$B$3:$B$52610,$O25) -> 252.9219827 | X25: 142334.2302
A26: 2016 | B26: 1 | C26: 1 | D26: 24 | E26: 29499.40067 | F26: 10102.47565 | G26: 23013.73112 | H26: 12649.4576 | I26: 36089.82506 | J26: 1183.458538 | K26: 114.9034709 | L26: 252.9219827 | M26: 112906.1741 | O26: 5 | P26: =_xlfn.MAXIFS(E$3:E$52610,$A$3:$A$52610,O3,$B$3:$B$52610,$O26) -> 50654.92544 | Q26: =_xlfn.MAXIFS(F$3:F$52610,$A$3:$A$52610,O3,$B$3:$B$52610,$O26) -> 19160.16656 | R26: =_xlfn.MAXIFS(G$3:G$52610,$A$3:$A$52610,O3,$B$3:$B$52610,$O26) -> 38647.71925 | S26: =_xlfn.MAXIFS(H$3:H$52610,$A$3:$A$52610,O3,$B$3:$B$52610,$O26) -> 18029.86231 | T26: =_xlfn.MAXIFS(I$3:I$52610,$A$3:$A$52610,O3,$B$3:$B$52610,$O26) -> 38763.40075 | U26: =_xlfn.MAXIFS(J$3:J$52610,$A$3:$A$52610,O3,$B$3:$B$52610,$O26) -> 1183.458538 | V26: =_xlfn.MAXIFS(K$3:K$52610,$A$3:$A$52610,O3,$B$3:$B$52610,$O26) -> 114.9034709 | W26: =_xlfn.MAXIFS(L$3:L$52610,$A$3:$A$52610,O3,$B$3:$B$52610,$O26) -> 252.9219827 | X26: 166807.3583
A27: 2016 | B27: 1 | C27: 2 | D27: 1 | E27: 25671.33523 | F27: 9852.41092 | G27: 21231.84498 | H27: 12624.835 | I27: 36158.39568 | J27: 1183.458538 | K27: 114.9034709 | L27: 252.9219827 | M27: 107090.1058 | O27: 6 | P27: =_xlfn.MAXIFS(E$3:E$52610,$A$3:$A$52610,O3,$B$3:$B$52610,$O27) -> 74298.62777 | Q27: =_xlfn.MAXIFS(F$3:F$52610,$A$3:$A$52610,O3,$B$3:$B$52610,$O27) -> 21695.348 | R27: =_xlfn.MAXIFS(G$3:G$52610,$A$3:$A$52610,O3,$B$3:$B$52610,$O27) -> 46848.11338 | S27: =_xlfn.MAXIFS(H$3:H$52610,$A$3:$A$52610,O3,$B$3:$B$52610,$O27) -> 18160.60084 | T27: =_xlfn.MAXIFS(I$3:I$52610,$A$3:$A$52610,O3,$B$3:$B$52610,$O27) -> 39928.08476 | U27: =_xlfn.MAXIFS(J$3:J$52610,$A$3:$A$52610,O3,$B$3:$B$52610,$O27) -> 1183.458538 | V27: =_xlfn.MAXIFS(K$3:K$52610,$A$3:$A$52610,O3,$B$3:$B$52610,$O27) -> 114.9034709 | W27: =_xlfn.MAXIFS(L$3:L$52610,$A$3:$A$52610,O3,$B$3:$B$52610,$O27) -> 252.9219827 | X27: 202482.0587
A28: 2016 | B28: 1 | C28: 2 | D28: 2 | E28: 23047.66807 | F28: 9670.002376 | G28: 20029.86542 | H28: 12424.4498 | I28: 36144.70794 | J28: 1183.458538 | K28: 114.9034709 | L28: 252.9219827 | M28: 102867.9776 | O28: 7 | P28: =_xlfn.MAXIFS(E$3:E$52610,$A$3:$A$52610,O3,$B$3:$B$52610,$O28) -> 73373.53578 | Q28: =_xlfn.MAXIFS(F$3:F$52610,$A$3:$A$52610,O3,$B$3:$B$52610,$O28) -> 22086.56188 | R28: =_xlfn.MAXIFS(G$3:G$52610,$A$3:$A$52610,O3,$B$3:$B$52610,$O28) -> 41099.83367 | S28: =_xlfn.MAXIFS(H$3:H$52610,$A$3:$A$52610,O3,$B$3:$B$52610,$O28) -> 18222.43983 | T28: =_xlfn.MAXIFS(I$3:I$52610,$A$3:$A$52610,O3,$B$3:$B$52610,$O28) -> 39834.58941 | U28: =_xlfn.MAXIFS(J$3:J$52610,$A$3:$A$52610,O3,$B$3:$B$52610,$O28) -> 1183.458538 | V28: =_xlfn.MAXIFS(K$3:K$52610,$A$3:$A$52610,O3,$B$3:$B$52610,$O28) -> 114.9034709 | W28: =_xlfn.MAXIFS(L$3:L$52610,$A$3:$A$52610,O3,$B$3:$B$52610,$O28) -> 252.9219827 | X28: 196168.2446
A29: 2016 | B29: 1 | C29: 2 | D29: 3 | E29: 21730.27901 | F29: 9609.515198 | G29: 19292.75023 | H29: 12455.34 | I29: 35976.74751 | J29: 1183.458538 | K29: 114.9034709 | L29: 252.9219827 | M29: 100615.9159 | O29: 8 | P29: =_xlfn.MAXIFS(E$3:E$52610,$A$3:$A$52610,O3,$B$3:$B$52610,$O29) -> 66326.57551 | Q29: =_xlfn.MAXIFS(F$3:F$52610,$A$3:$A$52610,O3,$B$3:$B$52610,$O29) -> 21659.065 | R29: =_xlfn.MAXIFS(G$3:G$52610,$A$3:$A$52610,O3,$B$3:$B$52610,$O29) -> 39986.42554 | S29: =_xlfn.MAXIFS(H$3:H$52610,$A$3:$A$52610,O3,$B$3:$B$52610,$O29) -> 16520.59352 | T29: =_xlfn.MAXIFS(I$3:I$52610,$A$3:$A$52610,O3,$B$3:$B$52610,$O29) -> 39685.5605 | U29: =_xlfn.MAXIFS(J$3:J$52610,$A$3:$A$52610,O3,$B$3:$B$52610,$O29) -> 1183.458538 | V29: =_xlfn.MAXIFS(K$3:K$52610,$A$3:$A$52610,O3,$B$3:$B$52610,$O29) -> 114.9034709 | W29: =_xlfn.MAXIFS(L$3:L$52610,$A$3:$A$52610,O3,$B$3:$B$52610,$O29) -> 252.9219827 | X29: 185729.5041
A30: 2016 | B30: 1 | C30: 2 | D30: 4 | E30: 21181.05454 | F30: 9515.135405 | G30: 19106.82864 | H30: 12463.0792 | I30: 35611.53329 | J30: 1183.458538 | K30: 114.9034709 | L30: 252.9219827 | M30: 99428.91506 | O30: 9 | P30: =_xlfn.MAXIFS(E$3:E$52610,$A$3:$A$52610,O3,$B$3:$B$52610,$O30) -> 64181.12973 | Q30: =_xlfn.MAXIFS(F$3:F$52610,$A$3:$A$52610,O3,$B$3:$B$52610,$O30) -> 20651.22324 | R30: =_xlfn.MAXIFS(G$3:G$52610,$A$3:$A$52610,O3,$B$3:$B$52610,$O30) -> 43466.39315 | S30: =_xlfn.MAXIFS(H$3:H$52610,$A$3:$A$52610,O3,$B$3:$B$52610,$O30) -> 16679.56256 | T30: =_xlfn.MAXIFS(I$3:I$52610,$A$3:$A$52610,O3,$B$3:$B$52610,$O30) -> 38848.51129 | U30: =_xlfn.MAXIFS(J$3:J$52610,$A$3:$A$52610,O3,$B$3:$B$52610,$O30) -> 1183.458538 | V30: =_xlfn.MAXIFS(K$3:K$52610,$A$3:$A$52610,O3,$B$3:$B$52610,$O30) -> 114.9034709 | W30: =_xlfn.MAXIFS(L$3:L$52610,$A$3:$A$52610,O3,$B$3:$B$52610,$O30) -> 252.9219827 | X30: 185378.104
A31: 2016 | B31: 1 | C31: 2 | D31: 5 | E31: 21267.40974 | F31: 9595.442005 | G31: 19182.0109 | H31: 12369.4508 | I31: 35709.31089 | J31: 1183.458538 | K31: 114.9034709 | L31: 252.9219827 | M31: 99674.90833 | O31: 10 | P31: =_xlfn.MAXIFS(E$3:E$52610,$A$3:$A$52610,O3,$B$3:$B$52610,$O31) -> 37028.9812 | Q31: =_xlfn.MAXIFS(F$3:F$52610,$A$3:$A$52610,O3,$B$3:$B$52610,$O31) -> 16662.88409 | R31: =_xlfn.MAXIFS(G$3:G$52610,$A$3:$A$52610,O3,$B$3:$B$52610,$O31) -> 27982.0091 | S31: =_xlfn.MAXIFS(H$3:H$52610,$A$3:$A$52610,O3,$B$3:$B$52610,$O31) -> 15893.77265 | T31: =_xlfn.MAXIFS(I$3:I$52610,$A$3:$A$52610,O3,$B$3:$B$52610,$O31) -> 38571.86718 | U31: =_xlfn.MAXIFS(J$3:J$52610,$A$3:$A$52610,O3,$B$3:$B$52610,$O31) -> 1183.458538 | V31: =_xlfn.MAXIFS(K$3:K$52610,$A$3:$A$52610,O3,$B$3:$B$52610,$O31) -> 114.9034709 | W31: =_xlfn.MAXIFS(L$3:L$52610,$A$3:$A$52610,O3,$B$3:$B$52610,$O31) -> 252.9219827 | X31: 137690.7982
A32: 2016 | B32: 1 | C32: 2 | D32: 6 | E32: 21703.51902 | F32: 9758.506605 | G32: 19479.03304 | H32: 12336.2922 | I32: 35200.15884 | J32: 1183.458538 | K32: 114.9034709 | L32: 252.9219827 | M32: 100028.7937 | O32: 11 | P32: =_xlfn.MAXIFS(E$3:E$52610,$A$3:$A$52610,O3,$B$3:$B$52610,$O32) -> 43389.73815 | Q32: =_xlfn.MAXIFS(F$3:F$52610,$A$3:$A$52610,O3,$B$3:$B$52610,$O32) -> 16347.19075 | R32: =_xlfn.MAXIFS(G$3:G$52610,$A$3:$A$52610,O3,$B$3:$B$52610,$O32) -> 31058.11313 | S32: =_xlfn.MAXIFS(H$3:H$52610,$A$3:$A$52610,O3,$B$3:$B$52610,$O32) -> 15400.3646 | T32: =_xlfn.MAXIFS(I$3:I$52610,$A$3:$A$52610,O3,$B$3:$B$52610,$O32) -> 37988.00701 | U32: =_xlfn.MAXIFS(J$3:J$52610,$A$3:$A$52610,O3,$B$3:$B$52610,$O32) -> 1183.458538 | V32: =_xlfn.MAXIFS(K$3:K$52610,$A$3:$A$52610,O3,$B$3:$B$52610,$O32) -> 114.9034709 | W32: =_xlfn.MAXIFS(L$3:L$52610,$A$3:$A$52610,O3,$B$3:$B$52610,$O32) -> 252.9219827 | X32: 145734.6976
A33: 2016 | B33: 1 | C33: 2 | D33: 7 | E33: 22867.94179 | F33: 10029.92764 | G33: 20517.20851 | H33: 12221.5412 | I33: 35040.48719 | J33: 1183.458538 | K33: 114.9034709 | L33: 252.9219827 | M33: 102228.3903 | O33: 12 | P33: =_xlfn.MAXIFS(E$3:E$52610,$A$3:$A$52610,O3,$B$3:$B$52610,$O33) -> 47074.33464 | Q33: =_xlfn.MAXIFS(F$3:F$52610,$A$3:$A$52610,O3,$B$3:$B$52610,$O33) -> 17297.18364 | R33: =_xlfn.MAXIFS(G$3:G$52610,$A$3:$A$52610,O3,$B$3:$B$52610,$O33) -> 30450.3836 | S33: =_xlfn.MAXIFS(H$3:H$52610,$A$3:$A$52610,O3,$B$3:$B$52610,$O33) -> 15576.1826 | T33: =_xlfn.MAXIFS(I$3:I$52610,$A$3:$A$52610,O3,$B$3:$B$52610,$O33) -> 37375.8665 | U33: =_xlfn.MAXIFS(J$3:J$52610,$A$3:$A$52610,O3,$B$3:$B$52610,$O33) -> 1183.458538 | V33: =_xlfn.MAXIFS(K$3:K$52610,$A$3:$A$52610,O3,$B$3:$B$52610,$O33) -> 114.9034709 | W33: =_xlfn.MAXIFS(L$3:L$52610,$A$3:$A$52610,O3,$B$3:$B$52610,$O33) -> 252.9219827 | X33: 149325.235
A34: 2016 | B34: 1 | C34: 2 | D34: 8 | E34: 24932.90559 | F34: 10330.45331 | G34: 22065.43924 | H34: 12403.0734 | I34: 34814.7949 | J34: 1112.451026 | K34: 108.0092626 | L34: 252.9219827 | M34: 106020.0487
A35: 2016 | B35: 1 | C35: 2 | D35: 9 | E35: 28215.19035 | F35: 10600.22565 | G35: 23881.85531 | H35: 12211.8752 | I35: 35289.24275 | J35: 0 | K35: 0 | L35: 252.9219827 | M35: 110451.3112 | O35: 1NCP | P35: =MAX(P22:P33) -> 74298.62777 | Q35: =MAX(Q22:Q33) -> 22086.56188 | R35: 46848.11338 | S35: 18222.43983 | T35: 39928.08476 | U35: 1183.458538 | V35: 114.9034709 | W35: 252.9219827 | X35: =SUM(P35:W35) -> 202935.1116
A36: 2016 | B36: 1 | C36: 2 | D36: 10 | E36: 30938.77315 | F36: 11344.31087 | G36: 25232.42018 | H36: 12237.8112 | I36: 35802.57755 | J36: 0 | K36: 0 | L36: 252.9219827 | M36: 115808.8149 | O36: 4NCP | P36: =LARGE(P22:P33,1)+LARGE(P22:P33,2)+LARGE(P22:P33,3)+LARGE(P22:P33,4) -> 278179.8688 | Q36: =LARGE(Q22:Q33,1)+LARGE(Q22:Q33,2)+LARGE(Q22:Q33,3)+LARGE(Q22:Q33,4) -> 86092.19811 | R36: 171400.7657 | S36: 71907.37483 | T36: 158296.746 | U36: 4733.834153 | V36: 459.6138836 | W36: 1011.687931 | X36: =SUM(P36:W36) -> 772082.0894
A37: 2016 | B37: 1 | C37: 2 | D37: 11 | E37: 33067.27241 | F37: 11857.37745 | G37: 26337.68787 | H37: 12220.132 | I37: 35660.394 | J37: 0 | K37: 0 | L37: 252.9219827 | M37: 119395.7857 | O37: 12NCP | P37: =SUM(P22:P33) -> 626301.0993 | Q37: =SUM(Q22:Q33) -> 226242.5271 | R37: 427383.665 | S37: 203307.144 | T37: 462731.4955 | U37: 14201.50246 | V37: 1378.841651 | W37: 3035.063792 | X37: 1964581.339
A38: 2016 | B38: 1 | C38: 2 | D38: 12 | E38: 34513.86776 | F38: 12080.70875 | G38: 27008.13591 | H38: 12268.1256 | I38: 35067.28005 | J38: 0 | K38: 0 | L38: 252.9219827 | M38: 121191.04
A39: 2016 | B39: 1 | C39: 2 | D39: 13 | E39: 35252.94032 | F39: 11918.50308 | G39: 27202.82022 | H39: 12216.9256 | I39: 35992.68899 | J39: 0 | K39: 0 | L39: 252.9219827 | M39: 122836.8002
A40: 2016 | B40: 1 | C40: 2 | D40: 14 | E40: 34058.45979 | F40: 11590.33136 | G40: 26379.49845 | H40: 12304.4208 | I40: 36389.26764 | J40: 0 | K40: 0 | L40: 252.9219827 | M40: 120974.9
A41: 2016 | B41: 1 | C41: 2 | D41: 15 | E41: 32816.72209 | F41: 11316.55269 | G41: 25519.29225 | H41: 12279.9616 | I41: 36283.23542 | J41: 0 | K41: 0 | L41: 252.9219827 | M41: 118468.686
A42: 2016 | B42: 1 | C42: 2 | D42: 16 | E42: 32792.60354 | F42: 11279.39297 | G42: 25545.58021 | H42: 12032.9284 | I42: 36300.0377 | J42: 0 | K42: 0 | L42: 252.9219827 | M42: 118203.4648
A43: 2016 | B43: 1 | C43: 2 | D43: 17 | E43: 35723.7754 | F43: 11608.04388 | G43: 27018.74905 | H43: 11893.7038 | I43: 35409.11245 | J43: 0 | K43: 0 | L43: 252.9219827 | M43: 121906.3066
A44: 2016 | B44: 1 | C44: 2 | D44: 18 | E44: 41016.2654 | F44: 12549.77178 | G44: 30212.51608 | H44: 12073.6516 | I44: 36004.77961 | J44: 757.4134645 | K44: 73.53822137 | L44: 252.9219827 | M44: 132940.8581
A45: 2016 | B45: 1 | C45: 2 | D45: 19 | E45: 41115.9256 | F45: 12516.7081 | G45: 30225.97501 | H45: 12028.8262 | I45: 35421.85449 | J45: 1183.458538 | K45: 114.9034709 | L45: 252.9219827 | M45: 132860.5734
A46: 2016 | B46: 1 | C46: 2 | D46: 20 | E46: 39996.55651 | F46: 12231.6606 | G46: 29465.26316 | H46: 11996.5082 | I46: 34030.29812 | J46: 1183.458538 | K46: 114.9034709 | L46: 252.9219827 | M46: 129271.5706
A47: 2016 | B47: 1 | C47: 2 | D47: 21 | E47: 39014.7579 | F47: 11952.76081 | G47: 28872.4821 | H47: 11463.6752 | I47: 32883.82985 | J47: 1183.458538 | K47: 114.9034709 | L47: 252.9219827 | M47: 125738.7899
A48: 2016 | B48: 1 | C48: 2 | D48: 22 | E48: 37085.01175 | F48: 11474.55597 | G48: 27712.5688 | H48: 12637.0264 | I48: 32193.15066 | J48: 1183.458538 | K48: 114.9034709 | L48: 252.9219827 | M48: 122653.5976
A49: 2016 | B49: 1 | C49: 2 | D49: 23 | E49: 34142.64418 | F49: 10990.29727 | G49: 25949.25029 | H49: 12621.5954 | I49: 35364.13105 | J49: 1183.458538 | K49: 114.9034709 | L49: 252.9219827 | M49: 120619.2022
A50: 2016 | B50: 1 | C50: 2 | D50: 24 | E50: 29898.50836 | F50: 10565.90277 | G50: 23431.55534 | H50: 12516.5416 | I50: 37006.17079 | J50: 1183.458538 | K50: 114.9034709 | L50: 252.9219827 | M50: 114969.9629
A51: 2016 | B51: 1 | C51: 3 | D51: 1 | E51: 25777.24857 | F51: 11906.19685 | G51: 21324.05726 | H51: 12619.9328 | I51: 36376.41348 | J51: 1183.458538 | K51: 114.9034709 | L51: 252.9219827 | M51: 109555.1329
A52: 2016 | B52: 1 | C52: 3 | D52: 2 | E52: 22972.65359 | F52: 11441.88717 | G52: 19992.73828 | H52: 11822.3052 | I52: 36619.65376 | J52: 1183.458538 | K52: 114.9034709 | L52: 252.9219827 | M52: 104400.522
A53: 2016 | B53: 1 | C53: 3 | D53: 3 | E53: 21421.25197 | F53: 11074.43955 | G53: 19165.69309 | H53: 12718.9922 | I53: 37301.567 | J53: 1183.458538 | K53: 114.9034709 | L53: 252.9219827 | M53: 103233.2278
A54: 2016 | B54: 1 | C54: 3 | D54: 4 | E54: 20727.32042 | F54: 10955.41999 | G54: 18780.05458 | H54: 12961.2734 | I54: 36935.2472 | J54: 1183.458538 | K54: 114.9034709 | L54: 252.9219827 | M54: 101910.5996
A55: 2016 | B55: 1 | C55: 3 | D55: 5 | E55: 20479.99566 | F55: 11013.80364 | G55: 18718.75787 | H55: 13156.8006 | I55: 36547.23847 | J55: 1183.458538 | K55: 114.9034709 | L55: 252.9219827 | M55: 101467.8802
A56: 2016 | B56: 1 | C56: 3 | D56: 6 | E56: 20906.20802 | F56: 11084.89919 | G56: 18974.63032 | H56: 13292.9508 | I56: 36422.84473 | J56: 1183.458538 | K56: 114.9034709 | L56: 252.9219827 | M56: 102232.817
A57: 2016 | B57: 1 | C57: 3 | D57: 7 | E57: 21906.03809 | F57: 11302.18416 | G57: 19773.08448 | H57: 13404.2852 | I57: 36341.78378 | J57: 1183.458538 | K57: 114.9034709 | L57: 252.9219827 | M57: 104278.6597
A58: 2016 | B58: 1 | C58: 3 | D58: 8 | E58: 23987.02133 | F58: 11550.95579 | G58: 21233.3335 | H58: 13819.4748 | I58: 36508.84529 | J58: 1112.451026 | K58: 108.0092626 | L58: 252.9219827 | M58: 108573.013
A59: 2016 | B59: 1 | C59: 3 | D59: 9 | E59: 27304.3615 | F59: 11682.67925 | G59: 23030.22394 | H59: 13643.366 | I59: 36287.98767 | J59: 0 | K59: 0 | L59: 252.9219827 | M59: 112201.5403
A60: 2016 | B60: 1 | C60: 3 | D60: 10 | E60: 30338.59033 | F60: 11957.56406 | G60: 24257.48605 | H60: 13155.0464 | I60: 36139.77551 | J60: 0 | K60: 0 | L60: 252.9219827 | M60: 116101.3843
A61: 2016 | B61: 1 | C61: 3 | D61: 11 | E61: 32878.55897 | F61: 12897.7156 | G61: 25742.06545 | H61: 13165.973 | I61: 36053.32426 | J61: 0 | K61: 0 | L61: 252.9219827 | M61: 120990.5593
A62: 2016 | B62: 1 | C62: 3 | D62: 12 | E62: 35063.80308 | F62: 13500.11577 | G62: 26986.18823 | H62: 13562.3436 | I62: 36008.64655 | J62: 0 | K62: 0 | L62: 252.9219827 | M62: 125374.0192
A63: 2016 | B63: 1 | C63: 3 | D63: 13 | E63: 36966.57184 | F63: 13240.77116 | G63: 27758.71867 | H63: 13963.358 | I63: 35523.89528 | J63: 0 | K63: 0 | L63: 252.9219827 | M63: 127706.2369
A64: 2016 | B64: 1 | C64: 3 | D64: 14 | E64: 37557.45396 | F64: 13181.66847 | G64: 28053.88289 | H64: 14254.6954 | I64: 36278.06044 | J64: 0 | K64: 0 | L64: 252.9219827 | M64: 129578.6831
A65: 2016 | B65: 1 | C65: 3 | D65: 15 | E65: 37435.53221 | F65: 13244.42404 | G65: 27711.16801 | H65: 14395.8294 | I65: 36066.35984 | J65: 0 | K65: 0 | L65: 252.9219827 | M65: 129106.2355
A66: 2016 | B66: 1 | C66: 3 | D66: 16 | E66: 37762.25938 | F66: 13269.59241 | G66: 27934.87073 | H66: 14106.5086 | I66: 36076.39472 | J66: 0 | K66: 0 | L66: 252.9219827 | M66: 129402.5478
A67: 2016 | B67: 1 | C67: 3 | D67: 17 | E67: 41140.7686 | F67: 13765.15007 | G67: 29713.86724 | H67: 13908.1998 | I67: 36210.23159 | J67: 0 | K67: 0 | L67: 252.9219827 | M67: 134991.1393
A68: 2016 | B68: 1 | C68: 3 | D68: 18 | E68: 45793.08289 | F68: 14278.70035 | G68: 32154.56343 | H68: 13827.1088 | I68: 35800.66858 | J68: 757.4134645 | K68: 73.53822137 | L68: 252.9219827 | M68: =SUM(E68:L68) -> 142937.9977
A69: 2016 | B69: 1 | C69: 3 | D69: 19 | E69: 44770.6971 | F69: 14054.10767 | G69: 31530.43846 | H69: 13844.1678 | I69: 36032.34195 | J69: 1183.458538 | K69: 114.9034709 | L69: 252.9219827 | M69: 141783.037
A70: 2016 | B70: 1 | C70: 3 | D70: 20 | E70: 43337.2149 | F70: 13697.74641 | G70: 30563.71666 | H70: 13971.0748 | I70: 36033.13816 | J70: 1183.458538 | K70: 114.9034709 | L70: 252.9219827 | M70: 139154.1749
A71: 2016 | B71: 1 | C71: 3 | D71: 21 | E71: 41752.3688 | F71: 13331.93269 | G71: 29687.28668 | H71: 14194.4072 | I71: 35821.17792 | J71: 1183.458538 | K71: 114.9034709 | L71: 252.9219827 | M71: 136338.4573
A72: 2016 | B72: 1 | C72: 3 | D72: 22 | E72: 38527.58326 | F72: 12984.80195 | G72: 27980.29277 | H72: 14589.066 | I72: 35542.56569 | J72: 1183.458538 | K72: 114.9034709 | L72: 252.9219827 | M72: 131175.5937
A73: 2016 | B73: 1 | C73: 3 | D73: 23 | E73: 34326.28798 | F73: 12604.4019 | G73: 25940.6096 | H73: 14332.168 | I73: 35136.02466 | J73: 1183.458538 | K73: 114.9034709 | L73: 252.9219827 | M73: 123890.7761
A74: 2016 | B74: 1 | C74: 3 | D74: 24 | E74: 28960.33262 | F74: 10384.41514 | G74: 23375.04768 | H74: 14012.6516 | I74: 35519.98007 | J74: 1183.458538 | K74: 114.9034709 | L74: 252.9219827 | M74: 113803.7111
A75: 2016 | B75: 1 | C75: 4 | D75: 1 | E75: 24989.15866 | F75: 11866.30835 | G75: 21408.03525 | H75: 14910.5274 | I75: 37209.31384 | J75: 1183.458538 | K75: 114.9034709 | L75: 252.9219827 | M75: 111934.6275
A76: 2016 | B76: 1 | C76: 4 | D76: 2 | E76: 23101.99608 | F76: 11681.12831 | G76: 20474.46836 | H76: 14674.2734 | I76: 37182.55588 | J76: 1183.458538 | K76: 114.9034709 | L76: 252.9219827 | M76: 108665.706
A77: 2016 | B77: 1 | C77: 4 | D77: 3 | E77: 22285.2364 | F77: 11638.74121 | G77: 20073.76892 | H77: 14733.7218 | I77: 37251.87444 | J77: 1183.458538 | K77: 114.9034709 | L77: 252.9219827 | M77: 107534.6268
A78: 2016 | B78: 1 | C78: 4 | D78: 4 | E78: 21900.97952 | F78: 11691.23494 | G78: 20055.50549 | H78: 14666.3006 | I78: 38046.66228 | J78: 1183.458538 | K78: 114.9034709 | L78: 252.9219827 | M78: 107911.9668
A79: 2016 | B79: 1 | C79: 4 | D79: 5 | E79: 22057.67012 | F79: 11625.40289 | G79: 20187.40631 | H79: 14808.687 | I79: 37281.75759 | J79: 1183.458538 | K79: 114.9034709 | L79: 252.9219827 | M79: 107512.2079
A80: 2016 | B80: 1 | C80: 4 | D80: 6 | E80: 23429.60927 | F80: 12068.96072 | G80: 21120.53033 | H80: 14825.4046 | I80: 36402.65665 | J80: 1183.458538 | K80: 114.9034709 | L80: 252.9219827 | M80: 109398.4456
A81: 2016 | B81: 1 | C81: 4 | D81: 7 | E81: 26782.5257 | F81: 13049.90173 | G81: 23651.52655 | H81: 14907.777 | I81: 36453.34687 | J81: 1183.458538 | K81: 114.9034709 | L81: 252.9219827 | M81: 116396.3618
A82: 2016 | B82: 1 | C82: 4 | D82: 8 | E82: 29843.94973 | F82: 15157.95718 | G82: 27020.46288 | H82: 14889.9448 | I82: 36374.15158 | J82: 1112.451026 | K82: 108.0092626 | L82: 252.9219827 | M82: 124759.8484
A83: 2016 | B83: 1 | C83: 4 | D83: 9 | E83: 29386.92359 | F83: 17342.52031 | G83: 28353.96465 | H83: 14771.4472 | I83: 36861.93621 | J83: 0 | K83: 0 | L83: 252.9219827 | M83: 126969.7139
A84: 2016 | B84: 1 | C84: 4 | D84: 10 | E84: 28618.08777 | F84: 18593.08807 | G84: 28670.06388 | H84: 14887.1244 | I84: 37191.8245 | J84: 0 | K84: 0 | L84: 252.9219827 | M84: 128213.1106
A85: 2016 | B85: 1 | C85: 4 | D85: 11 | E85: 28322.65926 | F85: 18994.3867 | G85: 28837.36792 | H85: 15008.8466 | I85: 37482.72635 | J85: 0 | K85: 0 | L85: 252.9219827 | M85: 128898.9088
A86: 2016 | B86: 1 | C86: 4 | D86: 12 | E86: 28820.80428 | F86: 19174.5337 | G86: 29077.14166 | H86: 15307.259 | I86: 37008.65273 | J86: 0 | K86: 0 | L86: 252.9219827 | M86: 129641.3133
A87: 2016 | B87: 1 | C87: 4 | D87: 13 | E87: 29505.19154 | F87: 18911.94679 | G87: 29117.02259 | H87: 15673.837 | I87: 36940.37713 | J87: 0 | K87: 0 | L87: 252.9219827 | M87: =SUM(E87:L87) -> 130401.297
A88: 2016 | B88: 1 | C88: 4 | D88: 14 | E88: 29326.84587 | F88: 18864.6095 | G88: 29142.37775 | H88: 15950.743 | I88: 36645.49771 | J88: 0 | K88: 0 | L88: 252.9219827 | M88: 130182.9958
A89: 2016 | B89: 1 | C89: 4 | D89: 15 | E89: 29491.73027 | F89: 18721.40614 | G89: 29022.68219 | H89: 15973.6884 | I89: 35842.89506 | J89: 0 | K89: 0 | L89: 252.9219827 | M89: 129305.324
A90: 2016 | B90: 1 | C90: 4 | D90: 16 | E90: 31119.56361 | F90: 18890.3833 | G90: 29508.33632 | H90: 15824.6662 | I90: 35559.00637 | J90: 0 | K90: 0 | L90: 252.9219827 | M90: 131154.8778
A91: 2016 | B91: 1 | C91: 4 | D91: 17 | E91: 36023.38204 | F91: 18259.55353 | G91: 30917.22804 | H91: 15771.4734 | I91: 35233.68494 | J91: 0 | K91: 0 | L91: 252.9219827 | M91: 136458.2439
A92: 2016 | B92: 1 | C92: 4 | D92: 18 | E92: 42575.63157 | F92: 17304.60108 | G92: 33543.3118 | H92: 15913.8108 | I92: 35975.64663 | J92: 757.4134645 | K92: 73.53822137 | L92: 252.9219827 | M92: 146396.8755
A93: 2016 | B93: 1 | C93: 4 | D93: 19 | E93: 42177.9252 | F93: 16704.38597 | G93: 32754.7648 | H93: 16125.887 | I93: 36356.3536 | J93: 1183.458538 | K93: 114.9034709 | L93: 252.9219827 | M93: 145670.6006
A94: 2016 | B94: 1 | C94: 4 | D94: 20 | E94: 42304.92292 | F94: 16246.63473 | G94: 32461.94962 | H94: 15584.8114 | I94: 35702.29624 | J94: 1183.458538 | K94: 114.9034709 | L94: 252.9219827 | M94: 143851.8989
A95: 2016 | B95: 1 | C95: 4 | D95: 21 | E95: 42082.87189 | F95: 15550.31268 | G95: 31922.32743 | H95: 15346.7064 | I95: 34886.93744 | J95: 1183.458538 | K95: 114.9034709 | L95: 252.9219827 | M95: 141340.4398
A96: 2016 | B96: 1 | C96: 4 | D96: 22 | E96: 39560.09664 | F96: 14668.22301 | G96: 30208.74894 | H96: 15983.5952 | I96: 34474.06413 | J96: 1183.458538 | K96: 114.9034709 | L96: 252.9219827 | M96: 136446.0119
A97: 2016 | B97: 1 | C97: 4 | D97: 23 | E97: 35147.48907 | F97: 14118.5872 | G97: 27564.4062 | H97: 16319.9018 | I97: 34417.43564 | J97: 1183.458538 | K97: 114.9034709 | L97: 252.9219827 | M97: 129119.1039
A98: 2016 | B98: 1 | C98: 4 | D98: 24 | E98: 29928.98876 | F98: 11460.01717 | G98: 24832.12601 | H98: 16372.292 | I98: 34466.61141 | J98: 1183.458538 | K98: 114.9034709 | L98: 252.9219827 | M98: 118611.3193
A99: 2016 | B99: 1 | C99: 5 | D99: 1 | E99: 26174.38911 | F99: 10926.03701 | G99: 22719.33033 | H99: 16379.645 | I99: 34883.50759 | J99: 1183.458538 | K99: 114.9034709 | L99: 252.9219827 | M99: 112634.193
A100: 2016 | B100: 1 | C100: 5 | D100: 2 | E100: 24490.39957 | F100: 10826.37256 | G100: 21868.51949 | H100: 16392.5318 | I100: 35652.74699 | J100: 1183.458538 | K100: 114.9034709 | L100: 252.9219827 | M100: 110781.8544
A101: 2016 | B101: 1 | C101: 5 | D101: 3 | E101: 23909.61688 | F101: 10811.59741 | G101: 21436.76358 | H101: 16423.1174 | I101: 36127.77176 | J101: 1183.458538 | K101: 114.9034709 | L101: 252.9219827 | M101: 110260.151
A102: 2016 | B102: 1 | C102: 5 | D102: 4 | E102: 23588.28886 | F102: 10759.84884 | G102: 21413.13961 | H102: 16312.7278 | I102: 35826.91621 | J102: 1183.458538 | K102: 114.9034709 | L102: 252.9219827 | M102: 109452.2053
A103: 2016 | B103: 1 | C103: 5 | D103: 5 | E103: 24143.63854 | F103: 10915.08285 | G103: 21896.53821 | H103: 16170.0698 | I103: 35573.51358 | J103: 1183.458538 | K103: 114.9034709 | L103: 252.9219827 | M103: 110250.127
A104: 2016 | B104: 1 | C104: 5 | D104: 6 | E104: 25432.76867 | F104: 11271.12584 | G104: 22845.13537 | H104: 16201.5868 | I104: 35696.93391 | J104: 1183.458538 | K104: 114.9034709 | L104: 252.9219827 | M104: 112998.8346
A105: 2016 | B105: 1 | C105: 5 | D105: 7 | E105: 28677.77305 | F105: 12068.87814 | G105: 25161.04012 | H105: 16154.5216 | I105: 35936.67008 | J105: 1183.458538 | K105: 114.9034709 | L105: 252.9219827 | M105: 119550.167
A106: 2016 | B106: 1 | C106: 5 | D106: 8 | E106: 31597.31974 | F106: 13801.33004 | G106: 28294.61949 | H106: 15860.38 | I106: 36122.07307 | J106: 1112.451026 | K106: 108.0092626 | L106: 252.9219827 | M106: 127149.1046
A107: 2016 | B107: 1 | C107: 5 | D107: 9 | E107: 30837.67812 | F107: 15451.4111 | G107: 29393.52953 | H107: 15833.9564 | I107: 35852.42108 | J107: 0 | K107: 0 | L107: 252.9219827 | M107: 127621.9182
A108: 2016 | B108: 1 | C108: 5 | D108: 10 | E108: 28731.46116 | F108: 16881.63441 | G108: 29296.53425 | H108: 15992.3888 | I108: 35316.4091 | J108: 0 | K108: 0 | L108: 252.9219827 | M108: 126471.3497
A109: 2016 | B109: 1 | C109: 5 | D109: 11 | E109: 27857.30949 | F109: 17135.70774 | G109: 28847.27812 | H109: 16060.6968 | I109: 34889.94259 | J109: 0 | K109: 0 | L109: 252.9219827 | M109: 125043.8567
A110: 2016 | B110: 1 | C110: 5 | D110: 12 | E110: 27660.70223 | F110: 17212.07182 | G110: 28799.51106 | H110: 15860.2926 | I110: 34864.19343 | J110: 0 | K110: 0 | L110: 252.9219827 | M110: 124649.6931
A111: 2016 | B111: 1 | C111: 5 | D111: 13 | E111: 27948.82511 | F111: 16997.57284 | G111: 28647.66414 | H111: 15737.293 | I111: 34892.84725 | J111: 0 | K111: 0 | L111: 252.9219827 | M111: 124477.1243
A112: 2016 | B112: 1 | C112: 5 | D112: 14 | E112: 27226.4499 | F112: 16880.12743 | G112: 28238.96975 | H112: 15624.234 | I112: 35023.06789 | J112: 0 | K112: 0 | L112: 252.9219827 | M112: 123245.7709
A113: 2016 | B113: 1 | C113: 5 | D113: 15 | E113: 27078.7488 | F113: 16781.60063 | G113: 27832.17249 | H113: 15748.2306 | I113: 36222.13337 | J113: 0 | K113: 0 | L113: 252.9219827 | M113: 123915.8079
A114: 2016 | B114: 1 | C114: 5 | D114: 16 | E114: 28524.1787 | F114: 16477.15367 | G114: 28164.66161 | H114: 15775.0102 | I114: 35868.01853 | J114: 0 | K114: 0 | L114: 252.9219827 | M114: 125061.9447
A115: 2016 | B115: 1 | C115: 5 | D115: 17 | E115: 33194.67259 | F115: 15768.16063 | G115: 29283.19597 | H115: 15669.899 | I115: 37107.65891 | J115: 0 | K115: 0 | L115: 252.9219827 | M115: 131276.5091
A116: 2016 | B116: 1 | C116: 5 | D116: 18 | E116: 39984.41398 | F116: 14969.55113 | G116: 31939.13283 | H116: 15827.0702 | I116: 36651.7305 | J116: 757.4134645 | K116: 73.53822137 | L116: 252.9219827 | M116: 140455.7723
A117: 2016 | B117: 1 | C117: 5 | D117: 19 | E117: 40734.0117 | F117: 14509.95537 | G117: 32158.51482 | H117: 15798.1356 | I117: 36300.62428 | J117: 1183.458538 | K117: 114.9034709 | L117: 252.9219827 | M117: 141052.5258
A118: 2016 | B118: 1 | C118: 5 | D118: 20 | E118: 41079.82837 | F118: 14078.20934 | G118: 31961.40164 | H118: 15873.3198 | I118: 35914.8094 | J118: 1183.458538 | K118: 114.9034709 | L118: 252.9219827 | M118: 140458.8525
A119: 2016 | B119: 1 | C119: 5 | D119: 21 | E119: 40843.72524 | F119: 13389.46389 | G119: 31302.12579 | H119: 16060.7984 | I119: 36254.37296 | J119: 1183.458538 | K119: 114.9034709 | L119: 252.9219827 | M119: 139401.7703
A120: 2016 | B120: 1 | C120: 5 | D120: 22 | E120: 38366.8566 | F120: 12362.76249 | G120: 29261.14637 | H120: 16115.756 | I120: 35811.49399 | J120: 1183.458538 | K120: 114.9034709 | L120: 252.9219827 | M120: 133469.2994
A121: 2016 | B121: 1 | C121: 5 | D121: 23 | E121: 34051.04279 | F121: 11736.24515 | G121: 26657.88348 | H121: 16205.7142 | I121: 35041.00743 | J121: 1183.458538 | K121: 114.9034709 | L121: 252.9219827 | M121: 125243.177
A122: 2016 | B122: 1 | C122: 5 | D122: 24 | E122: 28990.08648 | F122: 11232.56804 | G122: 24009.25338 | H122: 16243.3076 | I122: 34887.13816 | J122: 1183.458538 | K122: 114.9034709 | L122: 252.9219827 | M122: 116913.6377
A123: 2016 | B123: 1 | C123: 6 | D123: 1 | E123: 25325.52875 | F123: 10770.45796 | G123: 22231.02875 | H123: 16436.1774 | I123: 35536.23365 | J123: 1183.458538 | K123: 114.9034709 | L123: 252.9219827 | M123: 111850.7105
A124: 2016 | B124: 1 | C124: 6 | D124: 2 | E124: 23479.4559 | F124: 10540.84957 | G124: 21108.51543 | H124: 16345.2028 | I124: 35419.57353 | J124: 1183.458538 | K124: 114.9034709 | L124: 252.9219827 | M124: 108444.8812
A125: 2016 | B125: 1 | C125: 6 | D125: 3 | E125: 22693.23426 | F125: 10443.1774 | G125: 20690.57019 | H125: 16081.7186 | I125: 35626.1447 | J125: 1183.458538 | K125: 114.9034709 | L125: 252.9219827 | M125: 107086.1291
A126: 2016 | B126: 1 | C126: 6 | D126: 4 | E126: 22475.27987 | F126: 10419.69601 | G126: 20536.50308 | H126: 15846.8188 | I126: 35693.47064 | J126: 1183.458538 | K126: 114.9034709 | L126: 252.9219827 | M126: 106523.0524
A127: 2016 | B127: 1 | C127: 6 | D127: 5 | E127: 22793.83805 | F127: 10571.27767 | G127: 20907.01776 | H127: 15827.4 | I127: 35746.00796 | J127: 1183.458538 | K127: 114.9034709 | L127: 252.9219827 | M127: 107396.8254
A128: 2016 | B128: 1 | C128: 6 | D128: 6 | E128: 24124.75521 | F128: 10890.84202 | G128: 21790.81674 | H128: 15808.5182 | I128: 35489.04975 | J128: 1183.458538 | K128: 114.9034709 | L128: 252.9219827 | M128: 109655.2659
A129: 2016 | B129: 1 | C129: 6 | D129: 7 | E129: 27342.83904 | F129: 11701.66527 | G129: 24259.07235 | H129: 15867.7772 | I129: 35472.45389 | J129: 1183.458538 | K129: 114.9034709 | L129: 252.9219827 | M129: 116195.0917
A130: 2016 | B130: 1 | C130: 6 | D130: 8 | E130: 30064.54398 | F130: 13512.59878 | G130: 27328.60728 | H130: 15839.657 | I130: 35840.40941 | J130: 1112.451026 | K130: 108.0092626 | L130: 252.9219827 | M130: 124059.1987
A131: 2016 | B131: 1 | C131: 6 | D131: 9 | E131: 29091.58617 | F131: 15094.87841 | G131: 28186.61257 | H131: 16242.709 | I131: 35275.89508 | J131: 0 | K131: 0 | L131: 252.9219827 | M131: 124144.6032
A132: 2016 | B132: 1 | C132: 6 | D132: 10 | E132: 27078.92534 | F132: 16154.48929 | G132: 27854.92603 | H132: 16256.414 | I132: 35056.57568 | J132: 0 | K132: 0 | L132: 252.9219827 | M132: 122654.2523
A133: 2016 | B133: 1 | C133: 6 | D133: 11 | E133: 26142.05943 | F133: 16778.35295 | G133: 27660.95888 | H133: 16073.3588 | I133: 35288.01416 | J133: 0 | K133: 0 | L133: 252.9219827 | M133: 122195.6662
A134: 2016 | B134: 1 | C134: 6 | D134: 12 | E134: 25938.8102 | F134: 16915.13276 | G134: 27341.66526 | H134: 15907.7538 | I134: 34984.21905 | J134: 0 | K134: 0 | L134: 252.9219827 | M134: 121340.5031
A135: 2016 | B135: 1 | C135: 6 | D135: 13 | E135: 25861.38663 | F135: 16618.31656 | G135: 27620.23165 | H135: 15833.3102 | I135: 33274.88431 | J135: 0 | K135: 0 | L135: 252.9219827 | M135: 119461.0513
A136: 2016 | B136: 1 | C136: 6 | D136: 14 | E136: 25066.61653 | F136: 16426.80587 | G136: 26745.59015 | H136: 15827.2174 | I136: 31368.91873 | J136: 0 | K136: 0 | L136: 252.9219827 | M136: 115688.0707
A137: 2016 | B137: 1 | C137: 6 | D137: 15 | E137: 25008.64116 | F137: 16293.54099 | G137: 26278.80443 | H137: 16056.9222 | I137: 32627.69854 | J137: 0 | K137: 0 | L137: 252.9219827 | M137: 116518.5293
A138: 2016 | B138: 1 | C138: 6 | D138: 16 | E138: 26850.21138 | F138: 15926.86537 | G138: 26945.02823 | H138: 16134.995 | I138: 33090.27307 | J138: 0 | K138: 0 | L138: 252.9219827 | M138: 119200.295
A139: 2016 | B139: 1 | C139: 6 | D139: 17 | E139: 32000.20892 | F139: 15389.31441 | G139: 28365.85266 | H139: 15935.7194 | I139: 33203.25014 | J139: 0 | K139: 0 | L139: 252.9219827 | M139: 125147.2675
A140: 2016 | B140: 1 | C140: 6 | D140: 18 | E140: 38196.11957 | F140: 14675.81471 | G140: 30733.92466 | H140: 15887.3772 | I140: 34356.59593 | J140: 757.4134645 | K140: 73.53822137 | L140: 252.9219827 | M140: 134933.7057
A141: 2016 | B141: 1 | C141: 6 | D141: 19 | E141: 38705.79302 | F141: 14101.66165 | G141: 30639.67261 | H141: 15789.8246 | I141: 35266.73213 | J141: 1183.458538 | K141: 114.9034709 | L141: 252.9219827 | M141: 136054.968
A142: 2016 | B142: 1 | C142: 6 | D142: 20 | E142: 39197.2076 | F142: 13509.30505 | G142: 30522.89941 | H142: 15750.4336 | I142: 35357.58196 | J142: 1183.458538 | K142: 114.9034709 | L142: 252.9219827 | M142: 135888.7116
A143: 2016 | B143: 1 | C143: 6 | D143: 21 | E143: 39212.55063 | F143: 13025.55956 | G143: 30062.17596 | H143: 15813.4234 | I143: 35479.0849 | J143: 1183.458538 | K143: 114.9034709 | L143: 252.9219827 | M143: 135144.0784
A144: 2016 | B144: 1 | C144: 6 | D144: 22 | E144: 36991.45861 | F144: 11999.17774 | G144: 28324.10838 | H144: 16241.4136 | I144: 35480.81468 | J144: 1183.458538 | K144: 114.9034709 | L144: 252.9219827 | M144: 130588.257
A145: 2016 | B145: 1 | C145: 6 | D145: 23 | E145: 32570.4864 | F145: 11200.1805 | G145: 25710.49147 | H145: 16565.05 | I145: 35710.17912 | J145: 1183.458538 | K145: 114.9034709 | L145: 252.9219827 | M145: 123307.6715
A146: 2016 | B146: 1 | C146: 6 | D146: 24 | E146: 27526.74712 | F146: 10734.78287 | G146: 22968.41828 | H146: 16104.2532 | I146: 36060.83885 | J146: 1183.458538 | K146: 114.9034709 | L146: 252.9219827 | M146: 114946.3243
A147: 2016 | B147: 1 | C147: 7 | D147: 1 | E147: 23588.7011 | F147: 10203.04875 | G147: 20803.39143 | H147: 15900.6274 | I147: 35962.34771 | J147: 1183.458538 | K147: 114.9034709 | L147: 252.9219827 | M147: 108009.4004
A148: 2016 | B148: 1 | C148: 7 | D148: 2 | E148: 21775.58967 | F148: 10008.80006 | G148: 19834.38893 | H148: 15731.11 | I148: 35608.13363 | J148: 1183.458538 | K148: 114.9034709 | L148: 252.9219827 | M148: 104509.3063
A149: 2016 | B149: 1 | C149: 7 | D149: 3 | E149: 20926.08295 | F149: 9891.356524 | G149: 19251.11019 | H149: 15839.0438 | I149: 35692.87144 | J149: 1183.458538 | K149: 114.9034709 | L149: 252.9219827 | M149: 103151.7489
A150: 2016 | B150: 1 | C150: 7 | D150: 4 | E150: 20719.3668 | F150: 10012.35325 | G150: 19126.39152 | H150: 15754.1044 | I150: 35937.49624 | J150: 1183.458538 | K150: 114.9034709 | L150: 252.9219827 | M150: 103100.9962
A151: 2016 | B151: 1 | C151: 7 | D151: 5 | E151: 21076.99701 | F151: 10062.72795 | G151: 19449.06214 | H151: 15657.6628 | I151: 35962.64644 | J151: 1183.458538 | K151: 114.9034709 | L151: 252.9219827 | M151: =SUM(E151:L151) -> 103760.3803
A152: 2016 | B152: 1 | C152: 7 | D152: 6 | E152: 22585.18833 | F152: 10349.83142 | G152: 20715.96432 | H152: 15526.5858 | I152: 35948.64512 | J152: 1183.458538 | K152: 114.9034709 | L152: 252.9219827 | M152: 106677.499
A153: 2016 | B153: 1 | C153: 7 | D153: 7 | E153: 25826.61229 | F153: 11195.40809 | G153: 23217.46902 | H153: 15961.628 | I153: 36575.8423 | J153: 1183.458538 | K153: 114.9034709 | L153: 252.9219827 | M153: 114328.2437
A154: 2016 | B154: 1 | C154: 7 | D154: 8 | E154: 28771.84003 | F154: 12996.08737 | G154: 26296.74003 | H154: 15676.3806 | I154: 36320.63713 | J154: 1112.451026 | K154: 108.0092626 | L154: 252.9219827 | M154: 121535.0674
A155: 2016 | B155: 1 | C155: 7 | D155: 9 | E155: 28030.96404 | F155: 14652.48978 | G155: 27434.17906 | H155: 15734.1432 | I155: 36310.68515 | J155: 0 | K155: 0 | L155: 252.9219827 | M155: 122415.3832
A156: 2016 | B156: 1 | C156: 7 | D156: 10 | E156: 26510.66789 | F156: 16051.96833 | G156: 27406.02497 | H156: 15843.9384 | I156: 35927.96427 | J156: 0 | K156: 0 | L156: 252.9219827 | M156: 121993.4858
A157: 2016 | B157: 1 | C157: 7 | D157: 11 | E157: 25319.93122 | F157: 16390.34687 | G157: 26874.45277 | H157: 15869.786 | I157: 36066.66178 | J157: 0 | K157: 0 | L157: 252.9219827 | M157: 120774.1006
A158: 2016 | B158: 1 | C158: 7 | D158: 12 | E158: 24657.95177 | F158: 16287.52656 | G158: 26296.96907 | H158: 15948.5382 | I158: 35645.2178 | J158: 0 | K158: 0 | L158: 252.9219827 | M158: 119089.1254
A159: 2016 | B159: 1 | C159: 7 | D159: 13 | E159: 24624.12547 | F159: 16083.05943 | G159: 26058.33145 | H159: 15891.656 | I159: 35800.35104 | J159: 0 | K159: 0 | L159: 252.9219827 | M159: 118710.4454
A160: 2016 | B160: 1 | C160: 7 | D160: 14 | E160: 23614.02375 | F160: 15878.53422 | G160: 25444.15491 | H160: 15459.7396 | I160: 35690.06876 | J160: 0 | K160: 0 | L160: 252.9219827 | M160: 116339.4432
A161: 2016 | B161: 1 | C161: 7 | D161: 15 | E161: 23345.804 | F161: 15737.38028 | G161: 25314.93498 | H161: 15577.7486 | I161: 35928.2093 | J161: 0 | K161: 0 | L161: 252.9219827 | M161: 116156.9991
A162: 2016 | B162: 1 | C162: 7 | D162: 16 | E162: 24687.82963 | F162: 15446.2221 | G162: 25613.69505 | H162: 15534.1194 | I162: 36584.09246 | J162: 0 | K162: 0 | L162: 252.9219827 | M162: 118118.8806
A163: 2016 | B163: 1 | C163: 7 | D163: 17 | E163: 29171.921 | F163: 14829.08784 | G163: 26829.45144 | H163: 15387.2316 | I163: 36572.60104 | J163: 0 | K163: 0 | L163: 252.9219827 | M163: 123043.2149
A164: 2016 | B164: 1 | C164: 7 | D164: 18 | E164: 35410.36065 | F164: 14113.87636 | G164: 29327.60442 | H164: 15542.29 | I164: 36081.4066 | J164: 757.4134645 | K164: 73.53822137 | L164: 252.9219827 | M164: 131559.4117
A165: 2016 | B165: 1 | C165: 7 | D165: 19 | E165: 36426.19343 | F165: 13604.15067 | G165: 29508.662 | H165: 15478.4584 | I165: 35876.92779 | J165: 1183.458538 | K165: 114.9034709 | L165: 252.9219827 | M165: 132445.6763
A166: 2016 | B166: 1 | C166: 7 | D166: 20 | E166: 37116.27726 | F166: 13144.31729 | G166: 29299.71041 | H166: 15356.7352 | I166: 35440.36081 | J166: 1183.458538 | K166: 114.9034709 | L166: 252.9219827 | M166: 131908.685
A167: 2016 | B167: 1 | C167: 7 | D167: 21 | E167: 37381.71248 | F167: 12504.98554 | G167: 28908.37358 | H167: 15312.4594 | I167: 34890.40566 | J167: 1183.458538 | K167: 114.9034709 | L167: 252.9219827 | M167: 130549.2207
A168: 2016 | B168: 1 | C168: 7 | D168: 22 | E168: 35481.80631 | F168: 11641.72476 | G168: 27478.27542 | H168: 15475.1848 | I168: 35115.38613 | J168: 1183.458538 | K168: 114.9034709 | L168: 252.9219827 | M168: 126743.6614
A169: 2016 | B169: 1 | C169: 7 | D169: 23 | E169: 31483.22422 | F169: 10919.58057 | G169: 25013.08058 | H169: 15260.7912 | I169: 36137.84897 | J169: 1183.458538 | K169: 114.9034709 | L169: 252.9219827 | M169: 120365.8095
A170: 2016 | B170: 1 | C170: 7 | D170: 24 | E170: 26400.52158 | F170: 10338.52049 | G170: 22189.70841 | H170: 15222.4302 | I170: 36057.92603 | J170: 1183.458538 | K170: 114.9034709 | L170: 252.9219827 | M170: 111760.3907
A171: 2016 | B171: 1 | C171: 8 | D171: 1 | E171: 22834.01234 | F171: 9871.289086 | G171: 20285.4399 | H171: 15357.8062 | I171: 35863.11853 | J171: 1183.458538 | K171: 114.9034709 | L171: 252.9219827 | M171: 105762.95
A172: 2016 | B172: 1 | C172: 8 | D172: 2 | E172: 21091.79096 | F172: 9738.763254 | G172: 19333.83662 | H172: 15311.1566 | I172: 35892.88907 | J172: 1183.458538 | K172: 114.9034709 | L172: 252.9219827 | M172: 102919.7205
A173: 2016 | B173: 1 | C173: 8 | D173: 3 | E173: 20175.1901 | F173: 9667.122169 | G173: 18864.15363 | H173: 15433.8414 | I173: 35970.72262 | J173: 1183.458538 | K173: 114.9034709 | L173: 252.9219827 | M173: 101662.3139
A174: 2016 | B174: 1 | C174: 8 | D174: 4 | E174: 19988.11696 | F174: 9647.108468 | G174: 18634.58525 | H174: 15454.3674 | I174: 35899.19759 | J174: 1183.458538 | K174: 114.9034709 | L174: 252.9219827 | M174: 101174.6597
A175: 2016 | B175: 1 | C175: 8 | D175: 5 | E175: 20202.60477 | F175: 9697.93171 | G175: 18780.42224 | H175: 15636.7276 | I175: 36200.10537 | J175: 1183.458538 | K175: 114.9034709 | L175: 252.9219827 | M175: 102069.0757
A176: 2016 | B176: 1 | C176: 8 | D176: 6 | E176: 21491.31526 | F176: 10061.19862 | G176: 19892.07975 | H176: 15617.1218 | I176: 35597.79383 | J176: 1183.458538 | K176: 114.9034709 | L176: 252.9219827 | M176: 104210.7932
A177: 2016 | B177: 1 | C177: 8 | D177: 7 | E177: 24680.51688 | F177: 10849.277 | G177: 22296.26638 | H177: 15623.7468 | I177: 34970.47141 | J177: 1183.458538 | K177: 114.9034709 | L177: 252.9219827 | M177: 109971.5625
A178: 2016 | B178: 1 | C178: 8 | D178: 8 | E178: 27606.82051 | F178: 12659.89524 | G178: 25618.19031 | H178: 15719.7256 | I178: 35093.74522 | J178: 1112.451026 | K178: 108.0092626 | L178: 252.9219827 | M178: 118171.7592
A179: 2016 | B179: 1 | C179: 8 | D179: 9 | E179: 27337.58832 | F179: 14292.29046 | G179: 26822.8879 | H179: 15402.1384 | I179: 34709.75442 | J179: 0 | K179: 0 | L179: 252.9219827 | M179: 118817.5815
A180: 2016 | B180: 1 | C180: 8 | D180: 10 | E180: 25857.19873 | F180: 15619.07317 | G180: 26821.95388 | H180: 15345.688 | I180: 34633.99888 | J180: 0 | K180: 0 | L180: 252.9219827 | M180: 118530.8346
A181: 2016 | B181: 1 | C181: 8 | D181: 11 | E181: 25403.32064 | F181: 16059.79254 | G181: 26636.74757 | H181: 15314.8178 | I181: 34668.93622 | J181: 0 | K181: 0 | L181: 252.9219827 | M181: 118336.5368
A182: 2016 | B182: 1 | C182: 8 | D182: 12 | E182: 25576.73441 | F182: 16107.69509 | G182: 26632.01167 | H182: 15291.3836 | I182: 34994.90214 | J182: 0 | K182: 0 | L182: 252.9219827 | M182: 118855.6489
A183: 2016 | B183: 1 | C183: 8 | D183: 13 | E183: 25678.43586 | F183: 15881.85962 | G183: 26325.07026 | H183: 15348.1284 | I183: 34758.5483 | J183: 0 | K183: 0 | L183: 252.9219827 | M183: 118244.9644
A184: 2016 | B184: 1 | C184: 8 | D184: 14 | E184: 25332.47241 | F184: 15726.32192 | G184: 26255.30086 | H184: 14314.0424 | I184: 34387.01293 | J184: 0 | K184: 0 | L184: 252.9219827 | M184: 116268.0725
A185: 2016 | B185: 1 | C185: 8 | D185: 15 | E185: 25683.81041 | F185: 15564.90504 | G185: 26103.06288 | H185: 13841.9536 | I185: 34431.20332 | J185: 0 | K185: 0 | L185: 252.9219827 | M185: 115877.8572
A186: 2016 | B186: 1 | C186: 8 | D186: 16 | E186: 27832.07254 | F186: 15313.26123 | G186: 26733.18806 | H186: 15134.2942 | I186: 34194.1441 | J186: 0 | K186: 0 | L186: 252.9219827 | M186: 119459.8821
A187: 2016 | B187: 1 | C187: 8 | D187: 17 | E187: 32206.74333 | F187: 14820.26777 | G187: 28034.14877 | H187: 15189.4224 | I187: 34385.34132 | J187: 0 | K187: 0 | L187: 252.9219827 | M187: 124888.8456
A188: 2016 | B188: 1 | C188: 8 | D188: 18 | E188: 36130.11522 | F188: 14042.69283 | G188: 29597.16367 | H188: 15127.2382 | I188: 35025.98666 | J188: 757.4134645 | K188: 73.53822137 | L188: 252.9219827 | M188: 131007.0702
A189: 2016 | B189: 1 | C189: 8 | D189: 19 | E189: 35657.40623 | F189: 13309.40042 | G189: 28681.5955 | H189: 15262.461 | I189: 34915.65363 | J189: 1183.458538 | K189: 114.9034709 | L189: 252.9219827 | M189: 129377.8008
A190: 2016 | B190: 1 | C190: 8 | D190: 20 | E190: 35387.48126 | F190: 12942.91163 | G190: 28196.82561 | H190: 15259.476 | I190: 34836.60931 | J190: 1183.458538 | K190: 114.9034709 | L190: 252.9219827 | M190: 128174.5878
A191: 2016 | B191: 1 | C191: 8 | D191: 21 | E191: 35275.21848 | F191: 12406.87756 | G191: 27728.22744 | H191: 15320.5158 | I191: 35184.01565 | J191: 1183.458538 | K191: 114.9034709 | L191: 252.9219827 | M191: 127466.1389
A192: 2016 | B192: 1 | C192: 8 | D192: 22 | E192: 33343.03086 | F192: 11461.17707 | G192: 26074.02496 | H192: 15315.779 | I192: 36118.8479 | J192: 1183.458538 | K192: 114.9034709 | L192: 252.9219827 | M192: 123864.1438
A193: 2016 | B193: 1 | C193: 8 | D193: 23 | E193: 30681.73192 | F193: 10769.4118 | G193: 24203.87183 | H193: 14695.3734 | I193: 36240.87332 | J193: 1183.458538 | K193: 114.9034709 | L193: 252.9219827 | M193: 118142.5463
A194: 2016 | B194: 1 | C194: 8 | D194: 24 | E194: 26523.38068 | F194: 10244.29178 | G194: 21826.3183 | H194: 13873.448 | I194: 35899.50771 | J194: 1183.458538 | K194: 114.9034709 | L194: 252.9219827 | M194: 109918.2305
A195: 2016 | B195: 1 | C195: 9 | D195: 1 | E195: 22635.93112 | F195: 9741.61791 | G195: 19668.67227 | H195: 13879.437 | I195: 35761.30222 | J195: 1183.458538 | K195: 114.9034709 | L195: 252.9219827 | M195: 103238.2445
A196: 2016 | B196: 1 | C196: 9 | D196: 2 | E196: 20450.15986 | F196: 9489.028251 | G196: 18666.61518 | H196: 13861.642 | I196: 36119.24365 | J196: 1183.458538 | K196: 114.9034709 | L196: 252.9219827 | M196: 100137.9729
A197: 2016 | B197: 1 | C197: 9 | D197: 3 | E197: 19273.97033 | F197: 9291.283652 | G197: 17949.28937 | H197: 14050.5872 | I197: 36445.73526 | J197: 1183.458538 | K197: 114.9034709 | L197: 252.9219827 | M197: 98562.1498
A198: 2016 | B198: 1 | C198: 9 | D198: 4 | E198: 18688.36405 | F198: 9146.401838 | G198: 17663.03065 | H198: 14122.7468 | I198: 36338.95386 | J198: 1183.458538 | K198: 114.9034709 | L198: 252.9219827 | M198: 97510.78118
A199: 2016 | B199: 1 | C199: 9 | D199: 5 | E199: 18468.68575 | F199: 9242.139441 | G199: 17401.74667 | H199: 14043.532 | I199: 36363.8729 | J199: 1183.458538 | K199: 114.9034709 | L199: 252.9219827 | M199: 97071.26076
A200: 2016 | B200: 1 | C200: 9 | D200: 6 | E200: 18871.40149 | F200: 9279.990004 | G200: 17798.14943 | H200: 13715.027 | I200: 36834.1083 | J200: 1183.458538 | K200: 114.9034709 | L200: 252.9219827 | M200: 98049.96021
A201: 2016 | B201: 1 | C201: 9 | D201: 7 | E201: 20250.57763 | F201: 9635.609345 | G201: 18850.0386 | H201: 14392.4212 | I201: 36118.60535 | J201: 1183.458538 | K201: 114.9034709 | L201: 252.9219827 | M201: 100798.5361
... 4297 more rows

Sheet 2019 Scaled
E1: =E6 -> Residential | F1: =F6 -> GSlt50 | G1: GSgt50 | H1: Intermediate | I1: Large Use | J1: Street Lights | K1: Sentinel Lights | L1: USL | M1: Total | T1: kWh | U1: 2023 CDM Adjusted Forecast
D2: 2019 Weather Normalized | E2: ='Hourly Load Profiles'!E52616 -> 252157820.4 | F2: ='Hourly Load Profiles'!F52616 -> 99796146.53 | G2: ='Hourly Load Profiles'!G52616 -> 193550993.3 | H2: ='Hourly Load Profiles'!H52616 -> 120192820.3 | I2: ='Hourly Load Profiles'!I52616 -> 290955053.3 | J2: ='Hourly Load Profiles'!J52616 -> 3457006.171 | K2: ='Hourly Load Profiles'!K52616 -> 474594.0314 | L2: ='Hourly Load Profiles'!L52616 -> 2202857.354 | M2: =SUM(E2:L2) -> 962787291.4 | T2: Residential | U2: 261632170
D3: 2023 Test Year Forecast | E3: =U2 -> 261632170 | F3: =U3 -> 106263719 | G3: =U4 -> 188133766 | H3: =U5 -> 112782218 | I3: =U6 -> 280213319 | J3: =U7 -> 3061562 | K3: =U8 -> 421220 | L3: =U9 -> 2198298 | M3: =U10 -> 954706272 | T3: GS < 50 | U3: 106263719
E4: =E3/E2 -> 1.037573094 | F4: =F3/F2 -> 1.064807838 | G4: 0.9720113694 | H4: 0.938344052 | I4: 0.9630811212 | J4: 0.8856107997 | K4: 0.8875374997 | L4: 0.9979302545 | T4: GS > 50 | U4: 188133766
T5: Intermediate | U5: 112782218
A6: Year | B6: Month | C6: Day | D6: Hour | E6: Residential | F6: GSlt50 | G6: GSgt50 | H6: Intermediate | I6: Large Use | J6: Street Lights | K6: Sentinel Lights | L6: USL | M6: Total | T6: Large User | U6: 280213319
A7: 2023 | B7: ='Hourly Load Profiles'!B26307 -> 1 | C7: ='Hourly Load Profiles'!C26307 -> 1 | D7: ='Hourly Load Profiles'!D26307 -> 1 | E7: ='Hourly Load Profiles'!E26307*E$4 -> 26563.57654 | F7: ='Hourly Load Profiles'!F26307*F$4 -> 9467.488432 | G7: ='Hourly Load Profiles'!G26307*G$4 -> 18850.53198 | H7: ='Hourly Load Profiles'!H26307*H$4 -> 10911.6526 | I7: ='Hourly Load Profiles'!I26307*I$4 -> 34403.05912 | J7: ='Hourly Load Profiles'!J26307*J$4 -> 710.1101965 | K7: ='Hourly Load Profiles'!K26307*K$4 -> 97.69934986 | L7: ='Hourly Load Profiles'!L26307*L$4 -> 250.9472603 | M7: =SUM(E7:L7) -> 101255.0655 | T7: Street Light | U7: 3061562
A8: =A7 -> 2023 | B8: ='Hourly Load Profiles'!B26308 -> 1 | C8: ='Hourly Load Profiles'!C26308 -> 1 | D8: ='Hourly Load Profiles'!D26308 -> 2 | E8: ='Hourly Load Profiles'!E26308*E$4 -> 24313.84633 | F8: ='Hourly Load Profiles'!F26308*F$4 -> 9392.889217 | G8: ='Hourly Load Profiles'!G26308*G$4 -> 17819.1286 | H8: ='Hourly Load Profiles'!H26308*H$4 -> 10920.68979 | I8: ='Hourly Load Profiles'!I26308*I$4 -> 35683.4852 | J8: ='Hourly Load Profiles'!J26308*J$4 -> 710.1101965 | K8: ='Hourly Load Profiles'!K26308*K$4 -> 97.69934986 | L8: ='Hourly Load Profiles'!L26308*L$4 -> 250.9472603 | M8: 99188.79595 | T8: Sentinel Light | U8: 421220
A9: =A8 -> 2023 | B9: ='Hourly Load Profiles'!B26309 -> 1 | C9: ='Hourly Load Profiles'!C26309 -> 1 | D9: ='Hourly Load Profiles'!D26309 -> 3 | E9: ='Hourly Load Profiles'!E26309*E$4 -> 22433.23048 | F9: ='Hourly Load Profiles'!F26309*F$4 -> 9232.552031 | G9: ='Hourly Load Profiles'!G26309*G$4 -> 17148.0881 | H9: ='Hourly Load Profiles'!H26309*H$4 -> 10874.2123 | I9: ='Hourly Load Profiles'!I26309*I$4 -> 35812.85553 | J9: ='Hourly Load Profiles'!J26309*J$4 -> 710.1101965 | K9: ='Hourly Load Profiles'!K26309*K$4 -> 97.69934986 | L9: ='Hourly Load Profiles'!L26309*L$4 -> 250.9472603 | M9: 96559.69524 | T9: USL | U9: 2198298
A10: =A9 -> 2023 | B10: ='Hourly Load Profiles'!B26310 -> 1 | C10: ='Hourly Load Profiles'!C26310 -> 1 | D10: ='Hourly Load Profiles'!D26310 -> 4 | E10: ='Hourly Load Profiles'!E26310*E$4 -> 21364.79983 | F10: ='Hourly Load Profiles'!F26310*F$4 -> 9185.87779 | G10: ='Hourly Load Profiles'!G26310*G$4 -> 16805.51416 | H10: ='Hourly Load Profiles'!H26310*H$4 -> 10865.21902 | I10: ='Hourly Load Profiles'!I26310*I$4 -> 36117.25194 | J10: ='Hourly Load Profiles'!J26310*J$4 -> 710.1101965 | K10: ='Hourly Load Profiles'!K26310*K$4 -> 97.69934986 | L10: ='Hourly Load Profiles'!L26310*L$4 -> 250.9472603 | M10: 95397.41954 | T10: Total | U10: =SUM(U2:U9) -> 954706272
A11: 2023 | B11: ='Hourly Load Profiles'!B26311 -> 1 | C11: ='Hourly Load Profiles'!C26311 -> 1 | D11: ='Hourly Load Profiles'!D26311 -> 5 | E11: ='Hourly Load Profiles'!E26311*E$4 -> 20954.70209 | F11: ='Hourly Load Profiles'!F26311*F$4 -> 9173.151211 | G11: ='Hourly Load Profiles'!G26311*G$4 -> 16674.70034 | H11: ='Hourly Load Profiles'!H26311*H$4 -> 10978.60439 | I11: ='Hourly Load Profiles'!I26311*I$4 -> 36430.13643 | J11: ='Hourly Load Profiles'!J26311*J$4 -> 710.1101965 | K11: ='Hourly Load Profiles'!K26311*K$4 -> 97.69934986 | L11: ='Hourly Load Profiles'!L26311*L$4 -> 250.9472603 | M11: 95270.05127
A12: 2023 | B12: ='Hourly Load Profiles'!B26312 -> 1 | C12: ='Hourly Load Profiles'!C26312 -> 1 | D12: ='Hourly Load Profiles'!D26312 -> 6 | E12: ='Hourly Load Profiles'!E26312*E$4 -> 21467.48967 | F12: ='Hourly Load Profiles'!F26312*F$4 -> 9302.150878 | G12: ='Hourly Load Profiles'!G26312*G$4 -> 17036.72679 | H12: ='Hourly Load Profiles'!H26312*H$4 -> 10887.58145 | I12: ='Hourly Load Profiles'!I26312*I$4 -> 36572.83695 | J12: ='Hourly Load Profiles'!J26312*J$4 -> 710.1101965 | K12: ='Hourly Load Profiles'!K26312*K$4 -> 97.69934986 | L12: ='Hourly Load Profiles'!L26312*L$4 -> 250.9472603 | M12: 96325.54255
A13: 2023 | B13: ='Hourly Load Profiles'!B26313 -> 1 | C13: ='Hourly Load Profiles'!C26313 -> 1 | D13: ='Hourly Load Profiles'!D26313 -> 7 | E13: ='Hourly Load Profiles'!E26313*E$4 -> 22017.69294 | F13: ='Hourly Load Profiles'!F26313*F$4 -> 9418.732224 | G13: ='Hourly Load Profiles'!G26313*G$4 -> 17558.19825 | H13: ='Hourly Load Profiles'!H26313*H$4 -> 10658.50971 | I13: ='Hourly Load Profiles'!I26313*I$4 -> 36380.7415 | J13: ='Hourly Load Profiles'!J26313*J$4 -> 710.1101965 | K13: ='Hourly Load Profiles'!K26313*K$4 -> 97.69934986 | L13: ='Hourly Load Profiles'!L26313*L$4 -> 250.9472603 | M13: 97092.63144 | O13: =A13 -> 2023 | P13: =E6 -> Residential | Q13: =F6 -> GSlt50 | R13: GSgt50 | S13: Intermediate | T13: Large Use | U13: Street Lights | V13: Sentinel Lights | W13: USL | X13: Total
A14: 2023 | B14: ='Hourly Load Profiles'!B26314 -> 1 | C14: ='Hourly Load Profiles'!C26314 -> 1 | D14: ='Hourly Load Profiles'!D26314 -> 8 | E14: ='Hourly Load Profiles'!E26314*E$4 -> 22884.83457 | F14: ='Hourly Load Profiles'!F26314*F$4 -> 9449.986615 | G14: ='Hourly Load Profiles'!G26314*G$4 -> 18014.90444 | H14: ='Hourly Load Profiles'!H26314*H$4 -> 10654.33333 | I14: ='Hourly Load Profiles'!I26314*I$4 -> 35833.3478 | J14: ='Hourly Load Profiles'!J26314*J$4 -> 667.5035847 | K14: ='Hourly Load Profiles'!K26314*K$4 -> 91.83738887 | L14: ='Hourly Load Profiles'!L26314*L$4 -> 250.9472603 | M14: 97847.69499 | O14: 1 | P14: =SUMIFS(E:E,$A:$A,O13,$B:$B,$O14,$M:$M,$X14) -> 49736.53599 | Q14: =SUMIFS(F:F,$A:$A,O13,$B:$B,$O14,$M:$M,$X14) -> 13195.19734 | R14: =SUMIFS(G:G,$A:$A,O13,$B:$B,$O14,$M:$M,$X14) -> 31317.53534 | S14: =SUMIFS(H:H,$A:$A,O13,$B:$B,$O14,$M:$M,$X14) -> 12576.21621 | T14: =SUMIFS(I:I,$A:$A,O13,$B:$B,$O14,$M:$M,$X14) -> 37475.14157 | U14: =SUMIFS(J:J,$A:$A,O13,$B:$B,$O14,$M:$M,$X14) -> 710.1101965 | V14: =SUMIFS(K:K,$A:$A,O13,$B:$B,$O14,$M:$M,$X14) -> 97.69934986 | W14: =SUMIFS(L:L,$A:$A,O13,$B:$B,$O14,$M:$M,$X14) -> 250.9472603 | X14: =_xlfn.MAXIFS($M$7:$M$8766,$B$7:$B$8766,O14) -> 145359.3833 | Z14: =RANK(X14,$X14:$X25) -> 5 | AA14: =SUMIFS(B$3:B$52610,$M$3:$M$52610,$X14) -> 1 | AB14: =SUMIFS(C$3:C$52610,$M$3:$M$52610,$X14) -> 20 | AC14: 19
A15: 2023 | B15: ='Hourly Load Profiles'!B26315 -> 1 | C15: ='Hourly Load Profiles'!C26315 -> 1 | D15: ='Hourly Load Profiles'!D26315 -> 9 | E15: ='Hourly Load Profiles'!E26315*E$4 -> 25719.56619 | F15: ='Hourly Load Profiles'!F26315*F$4 -> 9364.765164 | G15: ='Hourly Load Profiles'!G26315*G$4 -> 19364.97522 | H15: ='Hourly Load Profiles'!H26315*H$4 -> 10631.50135 | I15: ='Hourly Load Profiles'!I26315*I$4 -> 35675.85617 | J15: ='Hourly Load Profiles'!J26315*J$4 -> 0 | K15: ='Hourly Load Profiles'!K26315*K$4 -> 0 | L15: ='Hourly Load Profiles'!L26315*L$4 -> 250.9472603 | M15: 101007.6114 | O15: =O14+1 -> 2 | P15: =SUMIFS(E:E,$A:$A,O13,$B:$B,$O15,$M:$M,$X15) -> 45719.27967 | Q15: =SUMIFS(F:F,$A:$A,O13,$B:$B,$O15,$M:$M,$X15) -> 12874.69219 | R15: =SUMIFS(G:G,$A:$A,O13,$B:$B,$O15,$M:$M,$X15) -> 30259.09528 | S15: =SUMIFS(H:H,$A:$A,O13,$B:$B,$O15,$M:$M,$X15) -> 12299.07986 | T15: =SUMIFS(I:I,$A:$A,O13,$B:$B,$O15,$M:$M,$X15) -> 33114.067 | U15: =SUMIFS(J:J,$A:$A,O13,$B:$B,$O15,$M:$M,$X15) -> 56.80881572 | V15: =SUMIFS(K:K,$A:$A,O13,$B:$B,$O15,$M:$M,$X15) -> 7.815947989 | W15: =SUMIFS(L:L,$A:$A,O13,$B:$B,$O15,$M:$M,$X15) -> 250.9472603 | X15: =_xlfn.MAXIFS($M$7:$M$8766,$B$7:$B$8766,O15) -> 134581.786 | Z15: =RANK(X15,$X14:$X25) -> 8 | AA15: =SUMIFS(B$3:B$52610,$M$3:$M$52610,$X15) -> 2 | AB15: 10 | AC15: 18
A16: 2023 | B16: ='Hourly Load Profiles'!B26316 -> 1 | C16: ='Hourly Load Profiles'!C26316 -> 1 | D16: ='Hourly Load Profiles'!D26316 -> 10 | E16: ='Hourly Load Profiles'!E26316*E$4 -> 29220.68114 | F16: ='Hourly Load Profiles'!F26316*F$4 -> 9325.805524 | G16: ='Hourly Load Profiles'!G26316*G$4 -> 20425.55949 | H16: ='Hourly Load Profiles'!H26316*H$4 -> 11006.8127 | I16: ='Hourly Load Profiles'!I26316*I$4 -> 35520.14343 | J16: ='Hourly Load Profiles'!J26316*J$4 -> 0 | K16: ='Hourly Load Profiles'!K26316*K$4 -> 0 | L16: ='Hourly Load Profiles'!L26316*L$4 -> 250.9472603 | M16: 105749.9495 | O16: =O15+1 -> 3 | P16: =SUMIFS(E:E,$A:$A,O13,$B:$B,$O16,$M:$M,$X16) -> 38667.77768 | Q16: =SUMIFS(F:F,$A:$A,O13,$B:$B,$O16,$M:$M,$X16) -> 14825.67659 | R16: =SUMIFS(G:G,$A:$A,O13,$B:$B,$O16,$M:$M,$X16) -> 27680.33346 | S16: =SUMIFS(H:H,$A:$A,O13,$B:$B,$O16,$M:$M,$X16) -> 13592.13861 | T16: =SUMIFS(I:I,$A:$A,O13,$B:$B,$O16,$M:$M,$X16) -> 36075.9344 | U16: =SUMIFS(J:J,$A:$A,O13,$B:$B,$O16,$M:$M,$X16) -> 710.1101965 | V16: =SUMIFS(K:K,$A:$A,O13,$B:$B,$O16,$M:$M,$X16) -> 97.69934986 | W16: =SUMIFS(L:L,$A:$A,O13,$B:$B,$O16,$M:$M,$X16) -> 250.9472603 | X16: 131900.6175 | Z16: =RANK(X16,$X14:$X25) -> 9 | AA16: 3 | AB16: 6 | AC16: 20
A17: 2023 | B17: ='Hourly Load Profiles'!B26317 -> 1 | C17: ='Hourly Load Profiles'!C26317 -> 1 | D17: ='Hourly Load Profiles'!D26317 -> 11 | E17: ='Hourly Load Profiles'!E26317*E$4 -> 32348.29842 | F17: ='Hourly Load Profiles'!F26317*F$4 -> 9569.067743 | G17: ='Hourly Load Profiles'!G26317*G$4 -> 21721.76867 | H17: ='Hourly Load Profiles'!H26317*H$4 -> 11013.02041 | I17: ='Hourly Load Profiles'!I26317*I$4 -> 35488.1628 | J17: ='Hourly Load Profiles'!J26317*J$4 -> 0 | K17: ='Hourly Load Profiles'!K26317*K$4 -> 0 | L17: ='Hourly Load Profiles'!L26317*L$4 -> 250.9472603 | M17: 110391.2653 | O17: 4 | P17: =SUMIFS(E:E,$A:$A,O13,$B:$B,$O17,$M:$M,$X17) -> 39951.31936 | Q17: =SUMIFS(F:F,$A:$A,O13,$B:$B,$O17,$M:$M,$X17) -> 11044.12496 | R17: =SUMIFS(G:G,$A:$A,O13,$B:$B,$O17,$M:$M,$X17) -> 26677.75782 | S17: =SUMIFS(H:H,$A:$A,O13,$B:$B,$O17,$M:$M,$X17) -> 11635.57697 | T17: =SUMIFS(I:I,$A:$A,O13,$B:$B,$O17,$M:$M,$X17) -> 33664.18232 | U17: =SUMIFS(J:J,$A:$A,O13,$B:$B,$O17,$M:$M,$X17) -> 0 | V17: =SUMIFS(K:K,$A:$A,O13,$B:$B,$O17,$M:$M,$X17) -> 0 | W17: =SUMIFS(L:L,$A:$A,O13,$B:$B,$O17,$M:$M,$X17) -> 250.9472603 | X17: 123223.9087 | Z17: =RANK(X17,$X14:$X25) -> 11 | AA17: 4 | AB17: 14 | AC17: 16
A18: 2023 | B18: ='Hourly Load Profiles'!B26318 -> 1 | C18: ='Hourly Load Profiles'!C26318 -> 1 | D18: ='Hourly Load Profiles'!D26318 -> 12 | E18: ='Hourly Load Profiles'!E26318*E$4 -> 34853.75705 | F18: ='Hourly Load Profiles'!F26318*F$4 -> 9785.111794 | G18: ='Hourly Load Profiles'!G26318*G$4 -> 22860.31231 | H18: ='Hourly Load Profiles'!H26318*H$4 -> 11310.42968 | I18: ='Hourly Load Profiles'!I26318*I$4 -> 35662.23756 | J18: ='Hourly Load Profiles'!J26318*J$4 -> 0 | K18: ='Hourly Load Profiles'!K26318*K$4 -> 0 | L18: ='Hourly Load Profiles'!L26318*L$4 -> 250.9472603 | M18: 114722.7957 | O18: 5 | P18: =SUMIFS(E:E,$A:$A,O13,$B:$B,$O18,$M:$M,$X18) -> 43894.40896 | Q18: =SUMIFS(F:F,$A:$A,O13,$B:$B,$O18,$M:$M,$X18) -> 16284.67167 | R18: =SUMIFS(G:G,$A:$A,O13,$B:$B,$O18,$M:$M,$X18) -> 29030.52244 | S18: =SUMIFS(H:H,$A:$A,O13,$B:$B,$O18,$M:$M,$X18) -> 14599.49837 | T18: =SUMIFS(I:I,$A:$A,O13,$B:$B,$O18,$M:$M,$X18) -> 36365.00743 | U18: =SUMIFS(J:J,$A:$A,O13,$B:$B,$O18,$M:$M,$X18) -> 0 | V18: =SUMIFS(K:K,$A:$A,O13,$B:$B,$O18,$M:$M,$X18) -> 0 | W18: =SUMIFS(L:L,$A:$A,O13,$B:$B,$O18,$M:$M,$X18) -> 250.9472603 | X18: 140425.0561 | Z18: =RANK(X18,$X14:$X25) -> 6 | AA18: 5 | AB18: 31 | AC18: 17
A19: 2023 | B19: ='Hourly Load Profiles'!B26319 -> 1 | C19: ='Hourly Load Profiles'!C26319 -> 1 | D19: ='Hourly Load Profiles'!D26319 -> 13 | E19: ='Hourly Load Profiles'!E26319*E$4 -> 36408.7134 | F19: ='Hourly Load Profiles'!F26319*F$4 -> 9837.509504 | G19: ='Hourly Load Profiles'!G26319*G$4 -> 23445.90896 | H19: ='Hourly Load Profiles'!H26319*H$4 -> 11159.7245 | I19: ='Hourly Load Profiles'!I26319*I$4 -> 35747.41905 | J19: ='Hourly Load Profiles'!J26319*J$4 -> 0 | K19: ='Hourly Load Profiles'!K26319*K$4 -> 0 | L19: ='Hourly Load Profiles'!L26319*L$4 -> 250.9472603 | M19: 116850.2227 | O19: 6 | P19: =SUMIFS(E:E,$A:$A,O13,$B:$B,$O19,$M:$M,$X19) -> 69814.96836 | Q19: =SUMIFS(F:F,$A:$A,O13,$B:$B,$O19,$M:$M,$X19) -> 18822.97177 | R19: =SUMIFS(G:G,$A:$A,O13,$B:$B,$O19,$M:$M,$X19) -> 41863.42426 | S19: =SUMIFS(H:H,$A:$A,O13,$B:$B,$O19,$M:$M,$X19) -> 13660.45559 | T19: =SUMIFS(I:I,$A:$A,O13,$B:$B,$O19,$M:$M,$X19) -> 37251.53244 | U19: =SUMIFS(J:J,$A:$A,O13,$B:$B,$O19,$M:$M,$X19) -> 0 | V19: =SUMIFS(K:K,$A:$A,O13,$B:$B,$O19,$M:$M,$X19) -> 0 | W19: =SUMIFS(L:L,$A:$A,O13,$B:$B,$O19,$M:$M,$X19) -> 250.9472603 | X19: 181664.2997 | Z19: =RANK(X19,$X14:$X25) -> 2 | AA19: 6 | AB19: 28 | AC19: 17
A20: 2023 | B20: ='Hourly Load Profiles'!B26320 -> 1 | C20: ='Hourly Load Profiles'!C26320 -> 1 | D20: ='Hourly Load Profiles'!D26320 -> 14 | E20: ='Hourly Load Profiles'!E26320*E$4 -> 37100.41306 | F20: ='Hourly Load Profiles'!F26320*F$4 -> 9948.962985 | G20: ='Hourly Load Profiles'!G26320*G$4 -> 23744.03928 | H20: ='Hourly Load Profiles'!H26320*H$4 -> 11028.12756 | I20: ='Hourly Load Profiles'!I26320*I$4 -> 35486.83846 | J20: ='Hourly Load Profiles'!J26320*J$4 -> 0 | K20: ='Hourly Load Profiles'!K26320*K$4 -> 0 | L20: ='Hourly Load Profiles'!L26320*L$4 -> 250.9472603 | M20: 117559.3286 | O20: 7 | P20: =SUMIFS(E:E,$A:$A,O13,$B:$B,$O20,$M:$M,$X20) -> 68498.20557 | Q20: =SUMIFS(F:F,$A:$A,O13,$B:$B,$O20,$M:$M,$X20) -> 18994.92076 | R20: =SUMIFS(G:G,$A:$A,O13,$B:$B,$O20,$M:$M,$X20) -> 36160.85904 | S20: =SUMIFS(H:H,$A:$A,O13,$B:$B,$O20,$M:$M,$X20) -> 11427.21043 | T20: =SUMIFS(I:I,$A:$A,O13,$B:$B,$O20,$M:$M,$X20) -> 35761.56563 | U20: =SUMIFS(J:J,$A:$A,O13,$B:$B,$O20,$M:$M,$X20) -> 0 | V20: =SUMIFS(K:K,$A:$A,O13,$B:$B,$O20,$M:$M,$X20) -> 0 | W20: =SUMIFS(L:L,$A:$A,O13,$B:$B,$O20,$M:$M,$X20) -> 250.9472603 | X20: 171093.7087 | Z20: =RANK(X20,$X14:$X25) -> 3 | AA20: 7 | AB20: 18 | AC20: 17
A21: 2023 | B21: ='Hourly Load Profiles'!B26321 -> 1 | C21: ='Hourly Load Profiles'!C26321 -> 1 | D21: ='Hourly Load Profiles'!D26321 -> 15 | E21: ='Hourly Load Profiles'!E26321*E$4 -> 38065.39753 | F21: ='Hourly Load Profiles'!F26321*F$4 -> 10021.87427 | G21: ='Hourly Load Profiles'!G26321*G$4 -> 24125.34904 | H21: ='Hourly Load Profiles'!H26321*H$4 -> 11247.14551 | I21: ='Hourly Load Profiles'!I26321*I$4 -> 35572.92811 | J21: ='Hourly Load Profiles'!J26321*J$4 -> 0 | K21: ='Hourly Load Profiles'!K26321*K$4 -> 0 | L21: ='Hourly Load Profiles'!L26321*L$4 -> 250.9472603 | M21: 119283.6417 | O21: 8 | P21: =SUMIFS(E:E,$A:$A,O13,$B:$B,$O21,$M:$M,$X21) -> 75743.45336 | Q21: =SUMIFS(F:F,$A:$A,O13,$B:$B,$O21,$M:$M,$X21) -> 19228.65956 | R21: =SUMIFS(G:G,$A:$A,O13,$B:$B,$O21,$M:$M,$X21) -> 41765.03685 | S21: =SUMIFS(H:H,$A:$A,O13,$B:$B,$O21,$M:$M,$X21) -> 14683.04546 | T21: =SUMIFS(I:I,$A:$A,O13,$B:$B,$O21,$M:$M,$X21) -> 34051.77274 | U21: =SUMIFS(J:J,$A:$A,O13,$B:$B,$O21,$M:$M,$X21) -> 0 | V21: =SUMIFS(K:K,$A:$A,O13,$B:$B,$O21,$M:$M,$X21) -> 0 | W21: =SUMIFS(L:L,$A:$A,O13,$B:$B,$O21,$M:$M,$X21) -> 250.9472603 | X21: 185722.9152 | Z21: =RANK(X21,$X14:$X25) -> 1 | AA21: 8 | AB21: 12 | AC21: 17
A22: 2023 | B22: ='Hourly Load Profiles'!B26322 -> 1 | C22: ='Hourly Load Profiles'!C26322 -> 1 | D22: ='Hourly Load Profiles'!D26322 -> 16 | E22: ='Hourly Load Profiles'!E26322*E$4 -> 38879.61882 | F22: ='Hourly Load Profiles'!F26322*F$4 -> 10137.18815 | G22: ='Hourly Load Profiles'!G26322*G$4 -> 24504.52102 | H22: ='Hourly Load Profiles'!H26322*H$4 -> 11272.23082 | I22: ='Hourly Load Profiles'!I26322*I$4 -> 35626.66171 | J22: ='Hourly Load Profiles'!J26322*J$4 -> 0 | K22: ='Hourly Load Profiles'!K26322*K$4 -> 0 | L22: ='Hourly Load Profiles'!L26322*L$4 -> 250.9472603 | M22: 120671.1678 | O22: 9 | P22: =SUMIFS(E:E,$A:$A,O13,$B:$B,$O22,$M:$M,$X22) -> 63794.51794 | Q22: =SUMIFS(F:F,$A:$A,O13,$B:$B,$O22,$M:$M,$X22) -> 15517.28691 | R22: =SUMIFS(G:G,$A:$A,O13,$B:$B,$O22,$M:$M,$X22) -> 40608.01571 | S22: =SUMIFS(H:H,$A:$A,O13,$B:$B,$O22,$M:$M,$X22) -> 12475.22075 | T22: =SUMIFS(I:I,$A:$A,O13,$B:$B,$O22,$M:$M,$X22) -> 26993.17463 | U22: =SUMIFS(J:J,$A:$A,O13,$B:$B,$O22,$M:$M,$X22) -> 7.101101965 | V22: =SUMIFS(K:K,$A:$A,O13,$B:$B,$O22,$M:$M,$X22) -> 0.9769934986 | W22: =SUMIFS(L:L,$A:$A,O13,$B:$B,$O22,$M:$M,$X22) -> 250.9472603 | X22: 159647.2413 | Z22: =RANK(X22,$X14:$X25) -> 4 | AA22: 9 | AB22: 21 | AC22: 17
A23: 2023 | B23: ='Hourly Load Profiles'!B26323 -> 1 | C23: ='Hourly Load Profiles'!C26323 -> 1 | D23: ='Hourly Load Profiles'!D26323 -> 17 | E23: ='Hourly Load Profiles'!E26323*E$4 -> 41672.86766 | F23: ='Hourly Load Profiles'!F26323*F$4 -> 10422.15199 | G23: ='Hourly Load Profiles'!G26323*G$4 -> 25789.10441 | H23: ='Hourly Load Profiles'!H26323*H$4 -> 11379.00987 | I23: ='Hourly Load Profiles'!I26323*I$4 -> 35672.89833 | J23: ='Hourly Load Profiles'!J26323*J$4 -> 0 | K23: ='Hourly Load Profiles'!K26323*K$4 -> 0 | L23: ='Hourly Load Profiles'!L26323*L$4 -> 250.9472603 | M23: 125186.9795 | O23: 10 | P23: =SUMIFS(E:E,$A:$A,O13,$B:$B,$O23,$M:$M,$X23) -> 39571.67854 | Q23: =SUMIFS(F:F,$A:$A,O13,$B:$B,$O23,$M:$M,$X23) -> 12621.22942 | R23: =SUMIFS(G:G,$A:$A,O13,$B:$B,$O23,$M:$M,$X23) -> 26207.55161 | S23: =SUMIFS(H:H,$A:$A,O13,$B:$B,$O23,$M:$M,$X23) -> 12302.95573 | T23: =SUMIFS(I:I,$A:$A,O13,$B:$B,$O23,$M:$M,$X23) -> 27948.55568 | U23: =SUMIFS(J:J,$A:$A,O13,$B:$B,$O23,$M:$M,$X23) -> 695.9079925 | V23: =SUMIFS(K:K,$A:$A,O13,$B:$B,$O23,$M:$M,$X23) -> 95.74536286 | W23: =SUMIFS(L:L,$A:$A,O13,$B:$B,$O23,$M:$M,$X23) -> 250.9472603 | X23: 119694.5716 | Z23: =RANK(X23,$X14:$X25) -> 12 | AA23: 10 | AB23: 11 | AC23: 19
A24: 2023 | B24: ='Hourly Load Profiles'!B26324 -> 1 | C24: ='Hourly Load Profiles'!C26324 -> 1 | D24: ='Hourly Load Profiles'!D26324 -> 18 | E24: ='Hourly Load Profiles'!E26324*E$4 -> 44288.38909 | F24: ='Hourly Load Profiles'!F26324*F$4 -> 11096.49612 | G24: ='Hourly Load Profiles'!G26324*G$4 -> 27184.81362 | H24: ='Hourly Load Profiles'!H26324*H$4 -> 11639.69536 | I24: ='Hourly Load Profiles'!I26324*I$4 -> 35703.81371 | J24: ='Hourly Load Profiles'!J26324*J$4 -> 454.4705257 | K24: ='Hourly Load Profiles'!K26324*K$4 -> 62.52758391 | L24: ='Hourly Load Profiles'!L26324*L$4 -> 250.9472603 | M24: 130681.1533 | O24: 11 | P24: =SUMIFS(E:E,$A:$A,O13,$B:$B,$O24,$M:$M,$X24) -> 37944.90844 | Q24: =SUMIFS(F:F,$A:$A,O13,$B:$B,$O24,$M:$M,$X24) -> 14427.19667 | R24: =SUMIFS(G:G,$A:$A,O13,$B:$B,$O24,$M:$M,$X24) -> 28145.77109 | S24: =SUMIFS(H:H,$A:$A,O13,$B:$B,$O24,$M:$M,$X24) -> 14459.66189 | T24: =SUMIFS(I:I,$A:$A,O13,$B:$B,$O24,$M:$M,$X24) -> 32535.50382 | U24: =SUMIFS(J:J,$A:$A,O13,$B:$B,$O24,$M:$M,$X24) -> 631.9980749 | V24: =SUMIFS(K:K,$A:$A,O13,$B:$B,$O24,$M:$M,$X24) -> 86.95242138 | W24: =SUMIFS(L:L,$A:$A,O13,$B:$B,$O24,$M:$M,$X24) -> 250.9472603 | X24: 128482.9397 | Z24: =RANK(X24,$X14:$X25) -> 10 | AA24: 11 | AB24: 13 | AC24: 18
A25: 2023 | B25: ='Hourly Load Profiles'!B26325 -> 1 | C25: ='Hourly Load Profiles'!C26325 -> 1 | D25: ='Hourly Load Profiles'!D26325 -> 19 | E25: ='Hourly Load Profiles'!E26325*E$4 -> 42736.02343 | F25: ='Hourly Load Profiles'!F26325*F$4 -> 11127.0664 | G25: ='Hourly Load Profiles'!G26325*G$4 -> 26542.02391 | H25: ='Hourly Load Profiles'!H26325*H$4 -> 11818.04717 | I25: ='Hourly Load Profiles'!I26325*I$4 -> 35648.71477 | J25: ='Hourly Load Profiles'!J26325*J$4 -> 710.1101965 | K25: ='Hourly Load Profiles'!K26325*K$4 -> 97.69934986 | L25: ='Hourly Load Profiles'!L26325*L$4 -> 250.9472603 | M25: 128930.6325 | O25: 12 | P25: =SUMIFS(E:E,$A:$A,O13,$B:$B,$O25,$M:$M,$X25) -> 45168.66289 | Q25: =SUMIFS(F:F,$A:$A,O13,$B:$B,$O25,$M:$M,$X25) -> 16097.31384 | R25: =SUMIFS(G:G,$A:$A,O13,$B:$B,$O25,$M:$M,$X25) -> 30541.43672 | S25: =SUMIFS(H:H,$A:$A,O13,$B:$B,$O25,$M:$M,$X25) -> 12676.76935 | T25: =SUMIFS(I:I,$A:$A,O13,$B:$B,$O25,$M:$M,$X25) -> 32541.14729 | U25: =SUMIFS(J:J,$A:$A,O13,$B:$B,$O25,$M:$M,$X25) -> 710.1101965 | V25: =SUMIFS(K:K,$A:$A,O13,$B:$B,$O25,$M:$M,$X25) -> 97.69934986 | W25: =SUMIFS(L:L,$A:$A,O13,$B:$B,$O25,$M:$M,$X25) -> 250.9472603 | X25: 138084.0869 | Z25: =RANK(X25,$X14:$X25) -> 7 | AA25: 12 | AB25: 18 | AC25: 18
A26: 2023 | B26: ='Hourly Load Profiles'!B26326 -> 1 | C26: ='Hourly Load Profiles'!C26326 -> 1 | D26: ='Hourly Load Profiles'!D26326 -> 20 | E26: ='Hourly Load Profiles'!E26326*E$4 -> 41448.85834 | F26: ='Hourly Load Profiles'!F26326*F$4 -> 10958.10081 | G26: ='Hourly Load Profiles'!G26326*G$4 -> 25809.89528 | H26: ='Hourly Load Profiles'!H26326*H$4 -> 11676.19807 | I26: ='Hourly Load Profiles'!I26326*I$4 -> 35773.88897 | J26: ='Hourly Load Profiles'!J26326*J$4 -> 710.1101965 | K26: ='Hourly Load Profiles'!K26326*K$4 -> 97.69934986 | L26: ='Hourly Load Profiles'!L26326*L$4 -> 250.9472603 | M26: 126725.6983
A27: 2023 | B27: ='Hourly Load Profiles'!B26327 -> 1 | C27: ='Hourly Load Profiles'!C26327 -> 1 | D27: ='Hourly Load Profiles'!D26327 -> 21 | E27: ='Hourly Load Profiles'!E26327*E$4 -> 39988.21849 | F27: ='Hourly Load Profiles'!F26327*F$4 -> 10681.09992 | G27: ='Hourly Load Profiles'!G26327*G$4 -> 25073.32195 | H27: ='Hourly Load Profiles'!H26327*H$4 -> 11858.10883 | I27: ='Hourly Load Profiles'!I26327*I$4 -> 35789.38612 | J27: ='Hourly Load Profiles'!J26327*J$4 -> 710.1101965 | K27: ='Hourly Load Profiles'!K26327*K$4 -> 97.69934986 | L27: ='Hourly Load Profiles'!L26327*L$4 -> 250.9472603 | M27: 124448.8921 | O27: 1CP | P27: =INDEX(P14:P25,MATCH($X$27,$X14:$X25,0),0) -> 75743.45336 | Q27: =INDEX(Q14:Q25,MATCH($X$27,$X14:$X25,0),0) -> 19228.65956 | R27: =INDEX(R14:R25,MATCH($X$27,$X14:$X25,0),0) -> 41765.03685 | S27: =INDEX(S14:S25,MATCH($X$27,$X14:$X25,0),0) -> 14683.04546 | T27: =INDEX(T14:T25,MATCH($X$27,$X14:$X25,0),0) -> 34051.77274 | U27: =INDEX(U14:U25,MATCH($X$27,$X14:$X25,0),0) -> 0 | V27: =INDEX(V14:V25,MATCH($X$27,$X14:$X25,0),0) -> 0 | W27: =INDEX(W14:W25,MATCH($X$27,$X14:$X25,0),0) -> 250.9472603 | X27: =MAX(X14:X25) -> 185722.9152
A28: 2023 | B28: ='Hourly Load Profiles'!B26328 -> 1 | C28: ='Hourly Load Profiles'!C26328 -> 1 | D28: ='Hourly Load Profiles'!D26328 -> 22 | E28: ='Hourly Load Profiles'!E26328*E$4 -> 37534.69867 | F28: ='Hourly Load Profiles'!F26328*F$4 -> 10481.76311 | G28: ='Hourly Load Profiles'!G26328*G$4 -> 23982.67867 | H28: ='Hourly Load Profiles'!H26328*H$4 -> 12103.29344 | I28: ='Hourly Load Profiles'!I26328*I$4 -> 35301.41502 | J28: ='Hourly Load Profiles'!J26328*J$4 -> 710.1101965 | K28: ='Hourly Load Profiles'!K26328*K$4 -> 97.69934986 | L28: ='Hourly Load Profiles'!L26328*L$4 -> 250.9472603 | M28: 120462.6057 | O28: 4CP | P28: =INDEX(P14:P25,MATCH(LARGE($X14:$X25,1),$X14:$X25,0),0)+INDEX(P14:P25,MATCH(LARGE($X14:$X25,2),$X14:$X25,0),0)+INDEX(P14:P25,MATCH(LARGE($X14:$X25,3),$X14:$X25,0),0)+INDEX(P14:P25,MATCH(LARGE($X14:$X25,4),$X14:$X25,0),0) -> 277851.1452 | Q28: =INDEX(Q14:Q25,MATCH(LARGE($X14:$X25,1),$X14:$X25,0),0)+INDEX(Q14:Q25,MATCH(LARGE($X14:$X25,2),$X14:$X25,0),0)+INDEX(Q14:Q25,MATCH(LARGE($X14:$X25,3),$X14:$X25,0),0)+INDEX(Q14:Q25,MATCH(LARGE($X14:$X25,4),$X14:$X25,0),0) -> 72563.839 | R28: =INDEX(R14:R25,MATCH(LARGE($X14:$X25,1),$X14:$X25,0),0)+INDEX(R14:R25,MATCH(LARGE($X14:$X25,2),$X14:$X25,0),0)+INDEX(R14:R25,MATCH(LARGE($X14:$X25,3),$X14:$X25,0),0)+INDEX(R14:R25,MATCH(LARGE($X14:$X25,4),$X14:$X25,0),0) -> 160397.3359 | S28: =INDEX(S14:S25,MATCH(LARGE($X14:$X25,1),$X14:$X25,0),0)+INDEX(S14:S25,MATCH(LARGE($X14:$X25,2),$X14:$X25,0),0)+INDEX(S14:S25,MATCH(LARGE($X14:$X25,3),$X14:$X25,0),0)+INDEX(S14:S25,MATCH(LARGE($X14:$X25,4),$X14:$X25,0),0) -> 52245.93224 | T28: =INDEX(T14:T25,MATCH(LARGE($X14:$X25,1),$X14:$X25,0),0)+INDEX(T14:T25,MATCH(LARGE($X14:$X25,2),$X14:$X25,0),0)+INDEX(T14:T25,MATCH(LARGE($X14:$X25,3),$X14:$X25,0),0)+INDEX(T14:T25,MATCH(LARGE($X14:$X25,4),$X14:$X25,0),0) -> 134058.0454 | U28: =INDEX(U14:U25,MATCH(LARGE($X14:$X25,1),$X14:$X25,0),0)+INDEX(U14:U25,MATCH(LARGE($X14:$X25,2),$X14:$X25,0),0)+INDEX(U14:U25,MATCH(LARGE($X14:$X25,3),$X14:$X25,0),0)+INDEX(U14:U25,MATCH(LARGE($X14:$X25,4),$X14:$X25,0),0) -> 7.101101965 | V28: =INDEX(V14:V25,MATCH(LARGE($X14:$X25,1),$X14:$X25,0),0)+INDEX(V14:V25,MATCH(LARGE($X14:$X25,2),$X14:$X25,0),0)+INDEX(V14:V25,MATCH(LARGE($X14:$X25,3),$X14:$X25,0),0)+INDEX(V14:V25,MATCH(LARGE($X14:$X25,4),$X14:$X25,0),0) -> 0.9769934986 | W28: =INDEX(W14:W25,MATCH(LARGE($X14:$X25,1),$X14:$X25,0),0)+INDEX(W14:W25,MATCH(LARGE($X14:$X25,2),$X14:$X25,0),0)+INDEX(W14:W25,MATCH(LARGE($X14:$X25,3),$X14:$X25,0),0)+INDEX(W14:W25,MATCH(LARGE($X14:$X25,4),$X14:$X25,0),0) -> 1003.789041 | X28: =LARGE(X14:X25,1)+LARGE(X14:X25,2)+LARGE(X14:X25,3)+LARGE(X14:X25,4) -> 698128.1649
A29: 2023 | B29: ='Hourly Load Profiles'!B26329 -> 1 | C29: ='Hourly Load Profiles'!C26329 -> 1 | D29: ='Hourly Load Profiles'!D26329 -> 23 | E29: ='Hourly Load Profiles'!E26329*E$4 -> 33407.72719 | F29: ='Hourly Load Profiles'!F26329*F$4 -> 10248.77621 | G29: ='Hourly Load Profiles'!G26329*G$4 -> 22162.44243 | H29: ='Hourly Load Profiles'!H26329*H$4 -> 12042.32153 | I29: ='Hourly Load Profiles'!I26329*I$4 -> 35224.54881 | J29: ='Hourly Load Profiles'!J26329*J$4 -> 710.1101965 | K29: ='Hourly Load Profiles'!K26329*K$4 -> 97.69934986 | L29: ='Hourly Load Profiles'!L26329*L$4 -> 250.9472603 | M29: 114144.573 | O29: 12CP | P29: =SUM(P14:P25) -> 618505.7168 | Q29: =SUM(Q14:Q25) -> 183933.9417 | R29: 390257.3396 | S29: 156387.8292 | T29: 403777.5849 | U29: 3522.146575 | V29: 484.5887753 | W29: 3011.367123 | X29: 1759880.515
A30: 2023 | B30: ='Hourly Load Profiles'!B26330 -> 1 | C30: ='Hourly Load Profiles'!C26330 -> 1 | D30: ='Hourly Load Profiles'!D26330 -> 24 | E30: ='Hourly Load Profiles'!E26330*E$4 -> 28955.39764 | F30: ='Hourly Load Profiles'!F26330*F$4 -> 10064.70972 | G30: ='Hourly Load Profiles'!G26330*G$4 -> 20412.26465 | H30: ='Hourly Load Profiles'!H26330*H$4 -> 12318.52723 | I30: ='Hourly Load Profiles'!I26330*I$4 -> 35795.40549 | J30: ='Hourly Load Profiles'!J26330*J$4 -> 710.1101965 | K30: ='Hourly Load Profiles'!K26330*K$4 -> 97.69934986 | L30: ='Hourly Load Profiles'!L26330*L$4 -> 250.9472603 | M30: 108605.0615
A31: 2023 | B31: ='Hourly Load Profiles'!B26331 -> 1 | C31: ='Hourly Load Profiles'!C26331 -> 2 | D31: ='Hourly Load Profiles'!D26331 -> 1 | E31: ='Hourly Load Profiles'!E26331*E$4 -> 25261.58059 | F31: ='Hourly Load Profiles'!F26331*F$4 -> 9739.611944 | G31: ='Hourly Load Profiles'!G26331*G$4 -> 18711.31678 | H31: ='Hourly Load Profiles'!H26331*H$4 -> 12518.01824 | I31: ='Hourly Load Profiles'!I26331*I$4 -> 35952.25402 | J31: ='Hourly Load Profiles'!J26331*J$4 -> 710.1101965 | K31: ='Hourly Load Profiles'!K26331*K$4 -> 97.69934986 | L31: ='Hourly Load Profiles'!L26331*L$4 -> 250.9472603 | M31: 103241.5384 | O31: =O13 -> 2023 | P31: =P13 -> Residential | Q31: =Q13 -> GSlt50 | R31: GSgt50 | S31: Intermediate | T31: Large Use | U31: Street Lights | V31: Sentinel Lights | W31: USL | X31: Total
A32: 2023 | B32: ='Hourly Load Profiles'!B26332 -> 1 | C32: ='Hourly Load Profiles'!C26332 -> 2 | D32: ='Hourly Load Profiles'!D26332 -> 2 | E32: ='Hourly Load Profiles'!E26332*E$4 -> 23315.28928 | F32: ='Hourly Load Profiles'!F26332*F$4 -> 9592.07663 | G32: ='Hourly Load Profiles'!G26332*G$4 -> 17839.17127 | H32: ='Hourly Load Profiles'!H26332*H$4 -> 12509.68874 | I32: ='Hourly Load Profiles'!I26332*I$4 -> 36476.17521 | J32: ='Hourly Load Profiles'!J26332*J$4 -> 710.1101965 | K32: ='Hourly Load Profiles'!K26332*K$4 -> 97.69934986 | L32: ='Hourly Load Profiles'!L26332*L$4 -> 250.9472603 | M32: 100791.1579 | O32: 1 | P32: =_xlfn.MAXIFS(E$3:E$52610,$A$3:$A$52610,O13,$B$3:$B$52610,$O32) -> 49736.53599 | Q32: =_xlfn.MAXIFS(F$3:F$52610,$A$3:$A$52610,O13,$B$3:$B$52610,$O32) -> 19163.87694 | R32: =_xlfn.MAXIFS(G$3:G$52610,$A$3:$A$52610,O13,$B$3:$B$52610,$O32) -> 31317.53534 | S32: =_xlfn.MAXIFS(H$3:H$52610,$A$3:$A$52610,O13,$B$3:$B$52610,$O32) -> 15692.01091 | T32: =_xlfn.MAXIFS(I$3:I$52610,$A$3:$A$52610,O13,$B$3:$B$52610,$O32) -> 39825.63709 | U32: =_xlfn.MAXIFS(J$3:J$52610,$A$3:$A$52610,O13,$B$3:$B$52610,$O32) -> 710.1101965 | V32: =_xlfn.MAXIFS(K$3:K$52610,$A$3:$A$52610,O13,$B$3:$B$52610,$O32) -> 97.69934986 | W32: =_xlfn.MAXIFS(L$3:L$52610,$A$3:$A$52610,O13,$B$3:$B$52610,$O32) -> 250.9472603 | X32: =SUM(P32:W32) -> 156794.3531
A33: 2023 | B33: ='Hourly Load Profiles'!B26333 -> 1 | C33: ='Hourly Load Profiles'!C26333 -> 2 | D33: ='Hourly Load Profiles'!D26333 -> 3 | E33: ='Hourly Load Profiles'!E26333*E$4 -> 22338.56318 | F33: ='Hourly Load Profiles'!F26333*F$4 -> 9509.015251 | G33: ='Hourly Load Profiles'!G26333*G$4 -> 17494.81594 | H33: ='Hourly Load Profiles'!H26333*H$4 -> 12110.03412 | I33: ='Hourly Load Profiles'!I26333*I$4 -> 36593.13591 | J33: ='Hourly Load Profiles'!J26333*J$4 -> 710.1101965 | K33: ='Hourly Load Profiles'!K26333*K$4 -> 97.69934986 | L33: ='Hourly Load Profiles'!L26333*L$4 -> 250.9472603 | M33: 99104.32121 | O33: =O32+1 -> 2 | P33: =_xlfn.MAXIFS(E$3:E$52610,$A$3:$A$52610,O13,$B$3:$B$52610,$O33) -> 45719.27967 | Q33: =_xlfn.MAXIFS(F$3:F$52610,$A$3:$A$52610,O13,$B$3:$B$52610,$O33) -> 18399.94051 | R33: =_xlfn.MAXIFS(G$3:G$52610,$A$3:$A$52610,O13,$B$3:$B$52610,$O33) -> 30259.09528 | S33: =_xlfn.MAXIFS(H$3:H$52610,$A$3:$A$52610,O13,$B$3:$B$52610,$O33) -> 14475.27106 | T33: =_xlfn.MAXIFS(I$3:I$52610,$A$3:$A$52610,O13,$B$3:$B$52610,$O33) -> 37947.35714 | U33: =_xlfn.MAXIFS(J$3:J$52610,$A$3:$A$52610,O13,$B$3:$B$52610,$O33) -> 710.1101965 | V33: =_xlfn.MAXIFS(K$3:K$52610,$A$3:$A$52610,O13,$B$3:$B$52610,$O33) -> 97.69934986 | W33: =_xlfn.MAXIFS(L$3:L$52610,$A$3:$A$52610,O13,$B$3:$B$52610,$O33) -> 250.9472603 | X33: =SUM(P33:W33) -> 147859.7005
A34: 2023 | B34: ='Hourly Load Profiles'!B26334 -> 1 | C34: ='Hourly Load Profiles'!C26334 -> 2 | D34: ='Hourly Load Profiles'!D26334 -> 4 | E34: ='Hourly Load Profiles'!E26334*E$4 -> 21992.40225 | F34: ='Hourly Load Profiles'!F26334*F$4 -> 9482.221968 | G34: ='Hourly Load Profiles'!G26334*G$4 -> 17406.98954 | H34: ='Hourly Load Profiles'!H26334*H$4 -> 12036.60927 | I34: ='Hourly Load Profiles'!I26334*I$4 -> 36698.99344 | J34: ='Hourly Load Profiles'!J26334*J$4 -> 710.1101965 | K34: ='Hourly Load Profiles'!K26334*K$4 -> 97.69934986 | L34: ='Hourly Load Profiles'!L26334*L$4 -> 250.9472603 | M34: 98675.97328 | O34: =O33+1 -> 3 | P34: =_xlfn.MAXIFS(E$3:E$52610,$A$3:$A$52610,O13,$B$3:$B$52610,$O34) -> 41067.0857 | Q34: =_xlfn.MAXIFS(F$3:F$52610,$A$3:$A$52610,O13,$B$3:$B$52610,$O34) -> 19067.27875 | R34: =_xlfn.MAXIFS(G$3:G$52610,$A$3:$A$52610,O13,$B$3:$B$52610,$O34) -> 28397.9977 | S34: =_xlfn.MAXIFS(H$3:H$52610,$A$3:$A$52610,O13,$B$3:$B$52610,$O34) -> 14893.88999 | T34: =_xlfn.MAXIFS(I$3:I$52610,$A$3:$A$52610,O13,$B$3:$B$52610,$O34) -> 36823.15103 | U34: =_xlfn.MAXIFS(J$3:J$52610,$A$3:$A$52610,O13,$B$3:$B$52610,$O34) -> 710.1101965 | V34: =_xlfn.MAXIFS(K$3:K$52610,$A$3:$A$52610,O13,$B$3:$B$52610,$O34) -> 97.69934986 | W34: =_xlfn.MAXIFS(L$3:L$52610,$A$3:$A$52610,O13,$B$3:$B$52610,$O34) -> 250.9472603 | X34: 141308.16
A35: 2023 | B35: ='Hourly Load Profiles'!B26335 -> 1 | C35: ='Hourly Load Profiles'!C26335 -> 2 | D35: ='Hourly Load Profiles'!D26335 -> 5 | E35: ='Hourly Load Profiles'!E26335*E$4 -> 22050.68834 | F35: ='Hourly Load Profiles'!F26335*F$4 -> 9568.664727 | G35: ='Hourly Load Profiles'!G26335*G$4 -> 17492.37601 | H35: ='Hourly Load Profiles'!H26335*H$4 -> 12127.93623 | I35: ='Hourly Load Profiles'!I26335*I$4 -> 36623.30761 | J35: ='Hourly Load Profiles'!J26335*J$4 -> 710.1101965 | K35: ='Hourly Load Profiles'!K26335*K$4 -> 97.69934986 | L35: ='Hourly Load Profiles'!L26335*L$4 -> 250.9472603 | M35: 98921.72971 | O35: 4 | P35: =_xlfn.MAXIFS(E$3:E$52610,$A$3:$A$52610,O13,$B$3:$B$52610,$O35) -> 41188.83335 | Q35: =_xlfn.MAXIFS(F$3:F$52610,$A$3:$A$52610,O13,$B$3:$B$52610,$O35) -> 16705.51352 | R35: =_xlfn.MAXIFS(G$3:G$52610,$A$3:$A$52610,O13,$B$3:$B$52610,$O35) -> 28435.48984 | S35: =_xlfn.MAXIFS(H$3:H$52610,$A$3:$A$52610,O13,$B$3:$B$52610,$O35) -> 14659.88233 | T35: =_xlfn.MAXIFS(I$3:I$52610,$A$3:$A$52610,O13,$B$3:$B$52610,$O35) -> 36582.83459 | U35: =_xlfn.MAXIFS(J$3:J$52610,$A$3:$A$52610,O13,$B$3:$B$52610,$O35) -> 710.1101965 | V35: =_xlfn.MAXIFS(K$3:K$52610,$A$3:$A$52610,O13,$B$3:$B$52610,$O35) -> 97.69934986 | W35: =_xlfn.MAXIFS(L$3:L$52610,$A$3:$A$52610,O13,$B$3:$B$52610,$O35) -> 250.9472603 | X35: 138631.3105
A36: 2023 | B36: ='Hourly Load Profiles'!B26336 -> 1 | C36: ='Hourly Load Profiles'!C26336 -> 2 | D36: ='Hourly Load Profiles'!D26336 -> 6 | E36: ='Hourly Load Profiles'!E26336*E$4 -> 23445.19414 | F36: ='Hourly Load Profiles'!F26336*F$4 -> 9850.642495 | G36: ='Hourly Load Profiles'!G26336*G$4 -> 18409.91331 | H36: ='Hourly Load Profiles'!H26336*H$4 -> 11976.98651 | I36: ='Hourly Load Profiles'!I26336*I$4 -> 36731.82932 | J36: ='Hourly Load Profiles'!J26336*J$4 -> 710.1101965 | K36: ='Hourly Load Profiles'!K26336*K$4 -> 97.69934986 | L36: ='Hourly Load Profiles'!L26336*L$4 -> 250.9472603 | M36: 101473.3226 | O36: 5 | P36: =_xlfn.MAXIFS(E$3:E$52610,$A$3:$A$52610,O13,$B$3:$B$52610,$O36) -> 45814.82208 | Q36: =_xlfn.MAXIFS(F$3:F$52610,$A$3:$A$52610,O13,$B$3:$B$52610,$O36) -> 18572.728 | R36: =_xlfn.MAXIFS(G$3:G$52610,$A$3:$A$52610,O13,$B$3:$B$52610,$O36) -> 29030.52244 | S36: =_xlfn.MAXIFS(H$3:H$52610,$A$3:$A$52610,O13,$B$3:$B$52610,$O36) -> 15774.6074 | T36: =_xlfn.MAXIFS(I$3:I$52610,$A$3:$A$52610,O13,$B$3:$B$52610,$O36) -> 38253.63398 | U36: =_xlfn.MAXIFS(J$3:J$52610,$A$3:$A$52610,O13,$B$3:$B$52610,$O36) -> 710.1101965 | V36: =_xlfn.MAXIFS(K$3:K$52610,$A$3:$A$52610,O13,$B$3:$B$52610,$O36) -> 97.69934986 | W36: =_xlfn.MAXIFS(L$3:L$52610,$A$3:$A$52610,O13,$B$3:$B$52610,$O36) -> 250.9472603 | X36: 148505.0707
A37: 2023 | B37: ='Hourly Load Profiles'!B26337 -> 1 | C37: ='Hourly Load Profiles'!C26337 -> 2 | D37: ='Hourly Load Profiles'!D26337 -> 7 | E37: ='Hourly Load Profiles'!E26337*E$4 -> 25375.91608 | F37: ='Hourly Load Profiles'!F26337*F$4 -> 10569.74259 | G37: ='Hourly Load Profiles'!G26337*G$4 -> 20049.64888 | H37: ='Hourly Load Profiles'!H26337*H$4 -> 12503.89597 | I37: ='Hourly Load Profiles'!I26337*I$4 -> 36183.99274 | J37: ='Hourly Load Profiles'!J26337*J$4 -> 710.1101965 | K37: ='Hourly Load Profiles'!K26337*K$4 -> 97.69934986 | L37: ='Hourly Load Profiles'!L26337*L$4 -> 250.9472603 | M37: 105741.9531 | O37: 6 | P37: =_xlfn.MAXIFS(E$3:E$52610,$A$3:$A$52610,O13,$B$3:$B$52610,$O37) -> 69814.96836 | Q37: =_xlfn.MAXIFS(F$3:F$52610,$A$3:$A$52610,O13,$B$3:$B$52610,$O37) -> 22387.64976 | R37: =_xlfn.MAXIFS(G$3:G$52610,$A$3:$A$52610,O13,$B$3:$B$52610,$O37) -> 41863.42426 | S37: =_xlfn.MAXIFS(H$3:H$52610,$A$3:$A$52610,O13,$B$3:$B$52610,$O37) -> 15412.76878 | T37: =_xlfn.MAXIFS(I$3:I$52610,$A$3:$A$52610,O13,$B$3:$B$52610,$O37) -> 37369.99959 | U37: =_xlfn.MAXIFS(J$3:J$52610,$A$3:$A$52610,O13,$B$3:$B$52610,$O37) -> 710.1101965 | V37: =_xlfn.MAXIFS(K$3:K$52610,$A$3:$A$52610,O13,$B$3:$B$52610,$O37) -> 97.69934986 | W37: =_xlfn.MAXIFS(L$3:L$52610,$A$3:$A$52610,O13,$B$3:$B$52610,$O37) -> 250.9472603 | X37: 187907.5676
A38: 2023 | B38: ='Hourly Load Profiles'!B26338 -> 1 | C38: ='Hourly Load Profiles'!C26338 -> 2 | D38: ='Hourly Load Profiles'!D26338 -> 8 | E38: ='Hourly Load Profiles'!E26338*E$4 -> 26623.09176 | F38: ='Hourly Load Profiles'!F26338*F$4 -> 12288.75815 | G38: ='Hourly Load Profiles'!G26338*G$4 -> 21919.34403 | H38: ='Hourly Load Profiles'!H26338*H$4 -> 12877.33138 | I38: ='Hourly Load Profiles'!I26338*I$4 -> 34639.53625 | J38: ='Hourly Load Profiles'!J26338*J$4 -> 667.5035847 | K38: ='Hourly Load Profiles'!K26338*K$4 -> 91.83738887 | L38: ='Hourly Load Profiles'!L26338*L$4 -> 250.9472603 | M38: 109358.3498 | O38: 7 | P38: =_xlfn.MAXIFS(E$3:E$52610,$A$3:$A$52610,O13,$B$3:$B$52610,$O38) -> 76407.47153 | Q38: =_xlfn.MAXIFS(F$3:F$52610,$A$3:$A$52610,O13,$B$3:$B$52610,$O38) -> 22716.13624 | R38: =_xlfn.MAXIFS(G$3:G$52610,$A$3:$A$52610,O13,$B$3:$B$52610,$O38) -> 39334.02316 | S38: =_xlfn.MAXIFS(H$3:H$52610,$A$3:$A$52610,O13,$B$3:$B$52610,$O38) -> 15865.27071 | T38: =_xlfn.MAXIFS(I$3:I$52610,$A$3:$A$52610,O13,$B$3:$B$52610,$O38) -> 36540.38222 | U38: =_xlfn.MAXIFS(J$3:J$52610,$A$3:$A$52610,O13,$B$3:$B$52610,$O38) -> 710.1101965 | V38: =_xlfn.MAXIFS(K$3:K$52610,$A$3:$A$52610,O13,$B$3:$B$52610,$O38) -> 97.69934986 | W38: =_xlfn.MAXIFS(L$3:L$52610,$A$3:$A$52610,O13,$B$3:$B$52610,$O38) -> 250.9472603 | X38: 191922.0407
A39: 2023 | B39: ='Hourly Load Profiles'!B26339 -> 1 | C39: ='Hourly Load Profiles'!C26339 -> 2 | D39: ='Hourly Load Profiles'!D26339 -> 9 | E39: ='Hourly Load Profiles'!E26339*E$4 -> 27766.02275 | F39: ='Hourly Load Profiles'!F26339*F$4 -> 14103.64356 | G39: ='Hourly Load Profiles'!G26339*G$4 -> 23508.15858 | H39: ='Hourly Load Profiles'!H26339*H$4 -> 12970.85426 | I39: ='Hourly Load Profiles'!I26339*I$4 -> 34502.82506 | J39: ='Hourly Load Profiles'!J26339*J$4 -> 0 | K39: ='Hourly Load Profiles'!K26339*K$4 -> 0 | L39: ='Hourly Load Profiles'!L26339*L$4 -> 250.9472603 | M39: 113102.4515 | O39: 8 | P39: =_xlfn.MAXIFS(E$3:E$52610,$A$3:$A$52610,O13,$B$3:$B$52610,$O39) -> 75743.45336 | Q39: =_xlfn.MAXIFS(F$3:F$52610,$A$3:$A$52610,O13,$B$3:$B$52610,$O39) -> 22918.8171 | R39: =_xlfn.MAXIFS(G$3:G$52610,$A$3:$A$52610,O13,$B$3:$B$52610,$O39) -> 41765.03685 | S39: =_xlfn.MAXIFS(H$3:H$52610,$A$3:$A$52610,O13,$B$3:$B$52610,$O39) -> 15766.3062 | T39: =_xlfn.MAXIFS(I$3:I$52610,$A$3:$A$52610,O13,$B$3:$B$52610,$O39) -> 38190.59018 | U39: =_xlfn.MAXIFS(J$3:J$52610,$A$3:$A$52610,O13,$B$3:$B$52610,$O39) -> 710.1101965 | V39: =_xlfn.MAXIFS(K$3:K$52610,$A$3:$A$52610,O13,$B$3:$B$52610,$O39) -> 97.69934986 | W39: =_xlfn.MAXIFS(L$3:L$52610,$A$3:$A$52610,O13,$B$3:$B$52610,$O39) -> 250.9472603 | X39: 195442.9605
A40: 2023 | B40: ='Hourly Load Profiles'!B26340 -> 1 | C40: ='Hourly Load Profiles'!C26340 -> 2 | D40: ='Hourly Load Profiles'!D26340 -> 10 | E40: ='Hourly Load Profiles'!E26340*E$4 -> 28459.86628 | F40: ='Hourly Load Profiles'!F26340*F$4 -> 15448.1272 | G40: ='Hourly Load Profiles'!G26340*G$4 -> 24401.65694 | H40: ='Hourly Load Profiles'!H26340*H$4 -> 12889.51071 | I40: ='Hourly Load Profiles'!I26340*I$4 -> 34967.69716 | J40: ='Hourly Load Profiles'!J26340*J$4 -> 0 | K40: ='Hourly Load Profiles'!K26340*K$4 -> 0 | L40: ='Hourly Load Profiles'!L26340*L$4 -> 250.9472603 | M40: 116417.8055 | O40: 9 | P40: =_xlfn.MAXIFS(E$3:E$52610,$A$3:$A$52610,O13,$B$3:$B$52610,$O40) -> 63919.88542 | Q40: =_xlfn.MAXIFS(F$3:F$52610,$A$3:$A$52610,O13,$B$3:$B$52610,$O40) -> 20826.12998 | R40: =_xlfn.MAXIFS(G$3:G$52610,$A$3:$A$52610,O13,$B$3:$B$52610,$O40) -> 40608.01571 | S40: =_xlfn.MAXIFS(H$3:H$52610,$A$3:$A$52610,O13,$B$3:$B$52610,$O40) -> 15640.16302 | T40: =_xlfn.MAXIFS(I$3:I$52610,$A$3:$A$52610,O13,$B$3:$B$52610,$O40) -> 34417.66288 | U40: =_xlfn.MAXIFS(J$3:J$52610,$A$3:$A$52610,O13,$B$3:$B$52610,$O40) -> 710.1101965 | V40: =_xlfn.MAXIFS(K$3:K$52610,$A$3:$A$52610,O13,$B$3:$B$52610,$O40) -> 97.69934986 | W40: =_xlfn.MAXIFS(L$3:L$52610,$A$3:$A$52610,O13,$B$3:$B$52610,$O40) -> 250.9472603 | X40: 176470.6138
A41: 2023 | B41: ='Hourly Load Profiles'!B26341 -> 1 | C41: ='Hourly Load Profiles'!C26341 -> 2 | D41: ='Hourly Load Profiles'!D26341 -> 11 | E41: ='Hourly Load Profiles'!E26341*E$4 -> 29396.32245 | F41: ='Hourly Load Profiles'!F26341*F$4 -> 16164.07544 | G41: ='Hourly Load Profiles'!G26341*G$4 -> 25261.42276 | H41: ='Hourly Load Profiles'!H26341*H$4 -> 12187.22644 | I41: ='Hourly Load Profiles'!I26341*I$4 -> 34904.49127 | J41: ='Hourly Load Profiles'!J26341*J$4 -> 0 | K41: ='Hourly Load Profiles'!K26341*K$4 -> 0 | L41: ='Hourly Load Profiles'!L26341*L$4 -> 250.9472603 | M41: 118164.4856 | O41: 10 | P41: =_xlfn.MAXIFS(E$3:E$52610,$A$3:$A$52610,O13,$B$3:$B$52610,$O41) -> 42386.1342 | Q41: =_xlfn.MAXIFS(F$3:F$52610,$A$3:$A$52610,O13,$B$3:$B$52610,$O41) -> 18350.18711 | R41: =_xlfn.MAXIFS(G$3:G$52610,$A$3:$A$52610,O13,$B$3:$B$52610,$O41) -> 28435.27543 | S41: =_xlfn.MAXIFS(H$3:H$52610,$A$3:$A$52610,O13,$B$3:$B$52610,$O41) -> 15303.13043 | T41: =_xlfn.MAXIFS(I$3:I$52610,$A$3:$A$52610,O13,$B$3:$B$52610,$O41) -> 33387.60832 | U41: =_xlfn.MAXIFS(J$3:J$52610,$A$3:$A$52610,O13,$B$3:$B$52610,$O41) -> 710.1101965 | V41: =_xlfn.MAXIFS(K$3:K$52610,$A$3:$A$52610,O13,$B$3:$B$52610,$O41) -> 97.69934986 | W41: =_xlfn.MAXIFS(L$3:L$52610,$A$3:$A$52610,O13,$B$3:$B$52610,$O41) -> 250.9472603 | X41: 138921.0923
A42: 2023 | B42: ='Hourly Load Profiles'!B26342 -> 1 | C42: ='Hourly Load Profiles'!C26342 -> 2 | D42: ='Hourly Load Profiles'!D26342 -> 12 | E42: ='Hourly Load Profiles'!E26342*E$4 -> 30476.29537 | F42: ='Hourly Load Profiles'!F26342*F$4 -> 16407.92284 | G42: ='Hourly Load Profiles'!G26342*G$4 -> 26391.40114 | H42: ='Hourly Load Profiles'!H26342*H$4 -> 11922.59709 | I42: ='Hourly Load Profiles'!I26342*I$4 -> 31249.5103 | J42: ='Hourly Load Profiles'!J26342*J$4 -> 0 | K42: ='Hourly Load Profiles'!K26342*K$4 -> 0 | L42: ='Hourly Load Profiles'!L26342*L$4 -> 250.9472603 | M42: 116698.674 | O42: 11 | P42: =_xlfn.MAXIFS(E$3:E$52610,$A$3:$A$52610,O13,$B$3:$B$52610,$O42) -> 41815.04779 | Q42: =_xlfn.MAXIFS(F$3:F$52610,$A$3:$A$52610,O13,$B$3:$B$52610,$O42) -> 16887.6951 | R42: =_xlfn.MAXIFS(G$3:G$52610,$A$3:$A$52610,O13,$B$3:$B$52610,$O42) -> 28650.34318 | S42: =_xlfn.MAXIFS(H$3:H$52610,$A$3:$A$52610,O13,$B$3:$B$52610,$O42) -> 15212.39924 | T42: =_xlfn.MAXIFS(I$3:I$52610,$A$3:$A$52610,O13,$B$3:$B$52610,$O42) -> 33819.04196 | U42: =_xlfn.MAXIFS(J$3:J$52610,$A$3:$A$52610,O13,$B$3:$B$52610,$O42) -> 710.1101965 | V42: =_xlfn.MAXIFS(K$3:K$52610,$A$3:$A$52610,O13,$B$3:$B$52610,$O42) -> 97.69934986 | W42: =_xlfn.MAXIFS(L$3:L$52610,$A$3:$A$52610,O13,$B$3:$B$52610,$O42) -> 250.9472603 | X42: 137443.2841
A43: 2023 | B43: ='Hourly Load Profiles'!B26343 -> 1 | C43: ='Hourly Load Profiles'!C26343 -> 2 | D43: ='Hourly Load Profiles'!D26343 -> 13 | E43: ='Hourly Load Profiles'!E26343*E$4 -> 31362.24953 | F43: ='Hourly Load Profiles'!F26343*F$4 -> 16247.35547 | G43: ='Hourly Load Profiles'!G26343*G$4 -> 26166.66405 | H43: ='Hourly Load Profiles'!H26343*H$4 -> 13043.83715 | I43: ='Hourly Load Profiles'!I26343*I$4 -> 25750.33165 | J43: ='Hourly Load Profiles'!J26343*J$4 -> 0 | K43: ='Hourly Load Profiles'!K26343*K$4 -> 0 | L43: ='Hourly Load Profiles'!L26343*L$4 -> 250.9472603 | M43: 112821.3851 | O43: 12 | P43: =_xlfn.MAXIFS(E$3:E$52610,$A$3:$A$52610,O13,$B$3:$B$52610,$O43) -> 47767.36199 | Q43: =_xlfn.MAXIFS(F$3:F$52610,$A$3:$A$52610,O13,$B$3:$B$52610,$O43) -> 18320.94843 | R43: =_xlfn.MAXIFS(G$3:G$52610,$A$3:$A$52610,O13,$B$3:$B$52610,$O43) -> 30609.34706 | S43: =_xlfn.MAXIFS(H$3:H$52610,$A$3:$A$52610,O13,$B$3:$B$52610,$O43) -> 13997.39646 | T43: =_xlfn.MAXIFS(I$3:I$52610,$A$3:$A$52610,O13,$B$3:$B$52610,$O43) -> 34946.99227 | U43: =_xlfn.MAXIFS(J$3:J$52610,$A$3:$A$52610,O13,$B$3:$B$52610,$O43) -> 710.1101965 | V43: =_xlfn.MAXIFS(K$3:K$52610,$A$3:$A$52610,O13,$B$3:$B$52610,$O43) -> 97.69934986 | W43: =_xlfn.MAXIFS(L$3:L$52610,$A$3:$A$52610,O13,$B$3:$B$52610,$O43) -> 250.9472603 | X43: 146700.803
A44: 2023 | B44: ='Hourly Load Profiles'!B26344 -> 1 | C44: ='Hourly Load Profiles'!C26344 -> 2 | D44: ='Hourly Load Profiles'!D26344 -> 14 | E44: ='Hourly Load Profiles'!E26344*E$4 -> 31170.24811 | F44: ='Hourly Load Profiles'!F26344*F$4 -> 16364.60564 | G44: ='Hourly Load Profiles'!G26344*G$4 -> 25810.59741 | H44: ='Hourly Load Profiles'!H26344*H$4 -> 13210.27143 | I44: ='Hourly Load Profiles'!I26344*I$4 -> 25402.35042 | J44: ='Hourly Load Profiles'!J26344*J$4 -> 0 | K44: ='Hourly Load Profiles'!K26344*K$4 -> 0 | L44: ='Hourly Load Profiles'!L26344*L$4 -> 250.9472603 | M44: 112209.0203
A45: 2023 | B45: ='Hourly Load Profiles'!B26345 -> 1 | C45: ='Hourly Load Profiles'!C26345 -> 2 | D45: ='Hourly Load Profiles'!D26345 -> 15 | E45: ='Hourly Load Profiles'!E26345*E$4 -> 31406.18764 | F45: ='Hourly Load Profiles'!F26345*F$4 -> 16138.9682 | G45: ='Hourly Load Profiles'!G26345*G$4 -> 25865.68185 | H45: ='Hourly Load Profiles'!H26345*H$4 -> 13162.81749 | I45: ='Hourly Load Profiles'!I26345*I$4 -> 25905.86228 | J45: ='Hourly Load Profiles'!J26345*J$4 -> 0 | K45: ='Hourly Load Profiles'!K26345*K$4 -> 0 | L45: ='Hourly Load Profiles'!L26345*L$4 -> 250.9472603 | M45: 112730.4647 | O45: 1NCP | P45: =MAX(P32:P43) -> 76407.47153 | Q45: =MAX(Q32:Q43) -> 22918.8171 | R45: 41863.42426 | S45: 15865.27071 | T45: 39825.63709 | U45: 710.1101965 | V45: 97.69934986 | W45: 250.9472603 | X45: =SUM(P45:W45) -> 197939.3775
A46: 2023 | B46: ='Hourly Load Profiles'!B26346 -> 1 | C46: ='Hourly Load Profiles'!C26346 -> 2 | D46: ='Hourly Load Profiles'!D26346 -> 16 | E46: ='Hourly Load Profiles'!E26346*E$4 -> 32740.06815 | F46: ='Hourly Load Profiles'!F26346*F$4 -> 16035.67724 | G46: ='Hourly Load Profiles'!G26346*G$4 -> 26325.9367 | H46: ='Hourly Load Profiles'!H26346*H$4 -> 13292.95662 | I46: ='Hourly Load Profiles'!I26346*I$4 -> 26814.26779 | J46: ='Hourly Load Profiles'!J26346*J$4 -> 0 | K46: ='Hourly Load Profiles'!K26346*K$4 -> 0 | L46: ='Hourly Load Profiles'!L26346*L$4 -> 250.9472603 | M46: 115459.8538 | O46: 4NCP | P46: =LARGE(P32:P43,1)+LARGE(P32:P43,2)+LARGE(P32:P43,3)+LARGE(P32:P43,4) -> 285885.7787 | Q46: =LARGE(Q32:Q43,1)+LARGE(Q32:Q43,2)+LARGE(Q32:Q43,3)+LARGE(Q32:Q43,4) -> 88848.73308 | R46: 163570.5 | S46: 63098.19522 | T46: 154217.2184 | U46: 2840.440786 | V46: 390.7973994 | W46: 1003.789041 | X46: =SUM(P46:W46) -> 759855.4526
A47: 2023 | B47: ='Hourly Load Profiles'!B26347 -> 1 | C47: ='Hourly Load Profiles'!C26347 -> 2 | D47: ='Hourly Load Profiles'!D26347 -> 17 | E47: ='Hourly Load Profiles'!E26347*E$4 -> 36976.10679 | F47: ='Hourly Load Profiles'!F26347*F$4 -> 15562.01052 | G47: ='Hourly Load Profiles'!G26347*G$4 -> 27512.15678 | H47: ='Hourly Load Profiles'!H26347*H$4 -> 13372.39307 | I47: ='Hourly Load Profiles'!I26347*I$4 -> 27513.72585 | J47: ='Hourly Load Profiles'!J26347*J$4 -> 0 | K47: ='Hourly Load Profiles'!K26347*K$4 -> 0 | L47: ='Hourly Load Profiles'!L26347*L$4 -> 250.9472603 | M47: 121187.3403 | O47: 12NCP | P47: =SUM(P32:P43) -> 641380.8794 | Q47: =SUM(Q32:Q43) -> 234316.9014 | R47: 398706.1063 | S47: 182693.0965 | T47: 438104.8912 | U47: 8521.322358 | V47: 1172.392198 | W47: 3011.367123 | X47: 1907906.957
A48: 2023 | B48: ='Hourly Load Profiles'!B26348 -> 1 | C48: ='Hourly Load Profiles'!C26348 -> 2 | D48: ='Hourly Load Profiles'!D26348 -> 18 | E48: ='Hourly Load Profiles'!E26348*E$4 -> 41235.38243 | F48: ='Hourly Load Profiles'!F26348*F$4 -> 14105.41087 | G48: ='Hourly Load Profiles'!G26348*G$4 -> 28267.03291 | H48: ='Hourly Load Profiles'!H26348*H$4 -> 13219.62052 | I48: ='Hourly Load Profiles'!I26348*I$4 -> 27758.87747 | J48: ='Hourly Load Profiles'!J26348*J$4 -> 454.4705257 | K48: ='Hourly Load Profiles'!K26348*K$4 -> 62.52758391 | L48: ='Hourly Load Profiles'!L26348*L$4 -> 250.9472603 | M48: 125354.2696
A49: 2023 | B49: ='Hourly Load Profiles'!B26349 -> 1 | C49: ='Hourly Load Profiles'!C26349 -> 2 | D49: ='Hourly Load Profiles'!D26349 -> 19 | E49: ='Hourly Load Profiles'!E26349*E$4 -> 40447.94198 | F49: ='Hourly Load Profiles'!F26349*F$4 -> 13139.28052 | G49: ='Hourly Load Profiles'!G26349*G$4 -> 27305.25128 | H49: ='Hourly Load Profiles'!H26349*H$4 -> 13037.30759 | I49: ='Hourly Load Profiles'!I26349*I$4 -> 27468.0396 | J49: ='Hourly Load Profiles'!J26349*J$4 -> 710.1101965 | K49: ='Hourly Load Profiles'!K26349*K$4 -> 97.69934986 | L49: ='Hourly Load Profiles'!L26349*L$4 -> 250.9472603 | M49: 122456.5778
A50: 2023 | B50: ='Hourly Load Profiles'!B26350 -> 1 | C50: ='Hourly Load Profiles'!C26350 -> 2 | D50: ='Hourly Load Profiles'!D26350 -> 20 | E50: ='Hourly Load Profiles'!E26350*E$4 -> 39651.49439 | F50: ='Hourly Load Profiles'!F26350*F$4 -> 12578.73346 | G50: ='Hourly Load Profiles'!G26350*G$4 -> 26521.01225 | H50: ='Hourly Load Profiles'!H26350*H$4 -> 12876.53341 | I50: ='Hourly Load Profiles'!I26350*I$4 -> 27655.93272 | J50: ='Hourly Load Profiles'!J26350*J$4 -> 710.1101965 | K50: ='Hourly Load Profiles'!K26350*K$4 -> 97.69934986 | L50: ='Hourly Load Profiles'!L26350*L$4 -> 250.9472603 | M50: 120342.463
A51: 2023 | B51: ='Hourly Load Profiles'!B26351 -> 1 | C51: ='Hourly Load Profiles'!C26351 -> 2 | D51: ='Hourly Load Profiles'!D26351 -> 21 | E51: ='Hourly Load Profiles'!E26351*E$4 -> 38839.78205 | F51: ='Hourly Load Profiles'!F26351*F$4 -> 12166.53914 | G51: ='Hourly Load Profiles'!G26351*G$4 -> 25916.95918 | H51: ='Hourly Load Profiles'!H26351*H$4 -> 13218.89912 | I51: ='Hourly Load Profiles'!I26351*I$4 -> 27705.40273 | J51: ='Hourly Load Profiles'!J26351*J$4 -> 710.1101965 | K51: ='Hourly Load Profiles'!K26351*K$4 -> 97.69934986 | L51: ='Hourly Load Profiles'!L26351*L$4 -> 250.9472603 | M51: 118906.339
A52: 2023 | B52: ='Hourly Load Profiles'!B26352 -> 1 | C52: ='Hourly Load Profiles'!C26352 -> 2 | D52: ='Hourly Load Profiles'!D26352 -> 22 | E52: ='Hourly Load Profiles'!E26352*E$4 -> 36652.33117 | F52: ='Hourly Load Profiles'!F26352*F$4 -> 11274.41837 | G52: ='Hourly Load Profiles'!G26352*G$4 -> 24510.8358 | H52: ='Hourly Load Profiles'!H26352*H$4 -> 13242.18038 | I52: ='Hourly Load Profiles'!I26352*I$4 -> 28043.0774 | J52: ='Hourly Load Profiles'!J26352*J$4 -> 710.1101965 | K52: ='Hourly Load Profiles'!K26352*K$4 -> 97.69934986 | L52: ='Hourly Load Profiles'!L26352*L$4 -> 250.9472603 | M52: 114781.5999
A53: 2023 | B53: ='Hourly Load Profiles'!B26353 -> 1 | C53: ='Hourly Load Profiles'!C26353 -> 2 | D53: ='Hourly Load Profiles'!D26353 -> 23 | E53: ='Hourly Load Profiles'!E26353*E$4 -> 32705.57727 | F53: ='Hourly Load Profiles'!F26353*F$4 -> 10564.38583 | G53: ='Hourly Load Profiles'!G26353*G$4 -> 22465.25192 | H53: ='Hourly Load Profiles'!H26353*H$4 -> 13264.00495 | I53: ='Hourly Load Profiles'!I26353*I$4 -> 28262.66631 | J53: ='Hourly Load Profiles'!J26353*J$4 -> 710.1101965 | K53: ='Hourly Load Profiles'!K26353*K$4 -> 97.69934986 | L53: ='Hourly Load Profiles'!L26353*L$4 -> 250.9472603 | M53: 108320.6431
A54: 2023 | B54: ='Hourly Load Profiles'!B26354 -> 1 | C54: ='Hourly Load Profiles'!C26354 -> 2 | D54: ='Hourly Load Profiles'!D26354 -> 24 | E54: ='Hourly Load Profiles'!E26354*E$4 -> 28439.28649 | F54: ='Hourly Load Profiles'!F26354*F$4 -> 10278.09687 | G54: ='Hourly Load Profiles'!G26354*G$4 -> 20503.50047 | H54: ='Hourly Load Profiles'!H26354*H$4 -> 13061.94119 | I54: ='Hourly Load Profiles'!I26354*I$4 -> 28027.18935 | J54: ='Hourly Load Profiles'!J26354*J$4 -> 710.1101965 | K54: ='Hourly Load Profiles'!K26354*K$4 -> 97.69934986 | L54: ='Hourly Load Profiles'!L26354*L$4 -> 250.9472603 | M54: 101368.7712
A55: 2023 | B55: ='Hourly Load Profiles'!B26355 -> 1 | C55: ='Hourly Load Profiles'!C26355 -> 3 | D55: ='Hourly Load Profiles'!D26355 -> 1 | E55: ='Hourly Load Profiles'!E26355*E$4 -> 25291.48524 | F55: ='Hourly Load Profiles'!F26355*F$4 -> 10140.82733 | G55: ='Hourly Load Profiles'!G26355*G$4 -> 19088.01005 | H55: ='Hourly Load Profiles'!H26355*H$4 -> 12892.88256 | I55: ='Hourly Load Profiles'!I26355*I$4 -> 28601.86126 | J55: ='Hourly Load Profiles'!J26355*J$4 -> 710.1101965 | K55: ='Hourly Load Profiles'!K26355*K$4 -> 97.69934986 | L55: ='Hourly Load Profiles'!L26355*L$4 -> 250.9472603 | M55: 97073.82325
A56: 2023 | B56: ='Hourly Load Profiles'!B26356 -> 1 | C56: ='Hourly Load Profiles'!C26356 -> 3 | D56: ='Hourly Load Profiles'!D26356 -> 2 | E56: ='Hourly Load Profiles'!E26356*E$4 -> 23125.84605 | F56: ='Hourly Load Profiles'!F26356*F$4 -> 9825.148291 | G56: ='Hourly Load Profiles'!G26356*G$4 -> 18028.86054 | H56: ='Hourly Load Profiles'!H26356*H$4 -> 12533.66419 | I56: ='Hourly Load Profiles'!I26356*I$4 -> 28802.53681 | J56: ='Hourly Load Profiles'!J26356*J$4 -> 710.1101965 | K56: ='Hourly Load Profiles'!K26356*K$4 -> 97.69934986 | L56: ='Hourly Load Profiles'!L26356*L$4 -> 250.9472603 | M56: 93374.81267
A57: 2023 | B57: ='Hourly Load Profiles'!B26357 -> 1 | C57: ='Hourly Load Profiles'!C26357 -> 3 | D57: ='Hourly Load Profiles'!D26357 -> 3 | E57: ='Hourly Load Profiles'!E26357*E$4 -> 22194.53219 | F57: ='Hourly Load Profiles'!F26357*F$4 -> 9762.164263 | G57: ='Hourly Load Profiles'!G26357*G$4 -> 17540.52153 | H57: ='Hourly Load Profiles'!H26357*H$4 -> 12655.17355 | I57: ='Hourly Load Profiles'!I26357*I$4 -> 28469.61317 | J57: ='Hourly Load Profiles'!J26357*J$4 -> 710.1101965 | K57: ='Hourly Load Profiles'!K26357*K$4 -> 97.69934986 | L57: ='Hourly Load Profiles'!L26357*L$4 -> 250.9472603 | M57: 91680.76151
A58: 2023 | B58: ='Hourly Load Profiles'!B26358 -> 1 | C58: ='Hourly Load Profiles'!C26358 -> 3 | D58: ='Hourly Load Profiles'!D26358 -> 4 | E58: ='Hourly Load Profiles'!E26358*E$4 -> 21884.02492 | F58: ='Hourly Load Profiles'!F26358*F$4 -> 9705.766216 | G58: ='Hourly Load Profiles'!G26358*G$4 -> 17850.71167 | H58: ='Hourly Load Profiles'!H26358*H$4 -> 12765.81857 | I58: ='Hourly Load Profiles'!I26358*I$4 -> 27181.69655 | J58: ='Hourly Load Profiles'!J26358*J$4 -> 710.1101965 | K58: ='Hourly Load Profiles'!K26358*K$4 -> 97.69934986 | L58: ='Hourly Load Profiles'!L26358*L$4 -> 250.9472603 | M58: 90446.77473
A59: 2023 | B59: ='Hourly Load Profiles'!B26359 -> 1 | C59: ='Hourly Load Profiles'!C26359 -> 3 | D59: ='Hourly Load Profiles'!D26359 -> 5 | E59: ='Hourly Load Profiles'!E26359*E$4 -> 22140.01404 | F59: ='Hourly Load Profiles'!F26359*F$4 -> 9786.889503 | G59: ='Hourly Load Profiles'!G26359*G$4 -> 17705.08714 | H59: ='Hourly Load Profiles'!H26359*H$4 -> 12762.38686 | I59: ='Hourly Load Profiles'!I26359*I$4 -> 26580.81524 | J59: ='Hourly Load Profiles'!J26359*J$4 -> 710.1101965 | K59: ='Hourly Load Profiles'!K26359*K$4 -> 97.69934986 | L59: ='Hourly Load Profiles'!L26359*L$4 -> 250.9472603 | M59: 90033.94959
A60: 2023 | B60: ='Hourly Load Profiles'!B26360 -> 1 | C60: ='Hourly Load Profiles'!C26360 -> 3 | D60: ='Hourly Load Profiles'!D26360 -> 6 | E60: ='Hourly Load Profiles'!E26360*E$4 -> 23298.13422 | F60: ='Hourly Load Profiles'!F26360*F$4 -> 10076.90323 | G60: ='Hourly Load Profiles'!G26360*G$4 -> 18404.22202 | H60: ='Hourly Load Profiles'!H26360*H$4 -> 13176.63967 | I60: ='Hourly Load Profiles'!I26360*I$4 -> 26878.865 | J60: ='Hourly Load Profiles'!J26360*J$4 -> 710.1101965 | K60: ='Hourly Load Profiles'!K26360*K$4 -> 97.69934986 | L60: ='Hourly Load Profiles'!L26360*L$4 -> 250.9472603 | M60: 92893.52095
A61: 2023 | B61: ='Hourly Load Profiles'!B26361 -> 1 | C61: ='Hourly Load Profiles'!C26361 -> 3 | D61: ='Hourly Load Profiles'!D26361 -> 7 | E61: ='Hourly Load Profiles'!E26361*E$4 -> 25054.80101 | F61: ='Hourly Load Profiles'!F26361*F$4 -> 10786.89846 | G61: ='Hourly Load Profiles'!G26361*G$4 -> 20001.45396 | H61: ='Hourly Load Profiles'!H26361*H$4 -> 13645.60902 | I61: ='Hourly Load Profiles'!I26361*I$4 -> 26826.90958 | J61: ='Hourly Load Profiles'!J26361*J$4 -> 710.1101965 | K61: ='Hourly Load Profiles'!K26361*K$4 -> 97.69934986 | L61: ='Hourly Load Profiles'!L26361*L$4 -> 250.9472603 | M61: 97374.42883
A62: 2023 | B62: ='Hourly Load Profiles'!B26362 -> 1 | C62: ='Hourly Load Profiles'!C26362 -> 3 | D62: ='Hourly Load Profiles'!D26362 -> 8 | E62: ='Hourly Load Profiles'!E26362*E$4 -> 26686.83348 | F62: ='Hourly Load Profiles'!F26362*F$4 -> 12371.28652 | G62: ='Hourly Load Profiles'!G26362*G$4 -> 22090.54273 | H62: ='Hourly Load Profiles'!H26362*H$4 -> 13598.23634 | I62: ='Hourly Load Profiles'!I26362*I$4 -> 27031.87494 | J62: ='Hourly Load Profiles'!J26362*J$4 -> 667.5035847 | K62: ='Hourly Load Profiles'!K26362*K$4 -> 91.83738887 | L62: ='Hourly Load Profiles'!L26362*L$4 -> 250.9472603 | M62: 102789.0623
A63: 2023 | B63: ='Hourly Load Profiles'!B26363 -> 1 | C63: ='Hourly Load Profiles'!C26363 -> 3 | D63: ='Hourly Load Profiles'!D26363 -> 9 | E63: ='Hourly Load Profiles'!E26363*E$4 -> 27708.57968 | F63: ='Hourly Load Profiles'!F26363*F$4 -> 14164.20608 | G63: ='Hourly Load Profiles'!G26363*G$4 -> 23534.40845 | H63: ='Hourly Load Profiles'!H26363*H$4 -> 13401.98713 | I63: ='Hourly Load Profiles'!I26363*I$4 -> 26989.81134 | J63: ='Hourly Load Profiles'!J26363*J$4 -> 0 | K63: ='Hourly Load Profiles'!K26363*K$4 -> 0 | L63: ='Hourly Load Profiles'!L26363*L$4 -> 250.9472603 | M63: 106049.9399
A64: 2023 | B64: ='Hourly Load Profiles'!B26364 -> 1 | C64: ='Hourly Load Profiles'!C26364 -> 3 | D64: ='Hourly Load Profiles'!D26364 -> 10 | E64: ='Hourly Load Profiles'!E26364*E$4 -> 28276.81245 | F64: ='Hourly Load Profiles'!F26364*F$4 -> 15566.55878 | G64: ='Hourly Load Profiles'!G26364*G$4 -> 24362.38799 | H64: ='Hourly Load Profiles'!H26364*H$4 -> 13156.92225 | I64: ='Hourly Load Profiles'!I26364*I$4 -> 26220.38981 | J64: ='Hourly Load Profiles'!J26364*J$4 -> 0 | K64: ='Hourly Load Profiles'!K26364*K$4 -> 0 | L64: ='Hourly Load Profiles'!L26364*L$4 -> 250.9472603 | M64: 107834.0185
A65: 2023 | B65: ='Hourly Load Profiles'!B26365 -> 1 | C65: ='Hourly Load Profiles'!C26365 -> 3 | D65: ='Hourly Load Profiles'!D26365 -> 11 | E65: ='Hourly Load Profiles'!E26365*E$4 -> 28878.09035 | F65: ='Hourly Load Profiles'!F26365*F$4 -> 16089.44849 | G65: ='Hourly Load Profiles'!G26365*G$4 -> 24858.77725 | H65: ='Hourly Load Profiles'!H26365*H$4 -> 13210.87685 | I65: ='Hourly Load Profiles'!I26365*I$4 -> 26175.97904 | J65: ='Hourly Load Profiles'!J26365*J$4 -> 0 | K65: ='Hourly Load Profiles'!K26365*K$4 -> 0 | L65: ='Hourly Load Profiles'!L26365*L$4 -> 250.9472603 | M65: 109464.1192
A66: 2023 | B66: ='Hourly Load Profiles'!B26366 -> 1 | C66: ='Hourly Load Profiles'!C26366 -> 3 | D66: ='Hourly Load Profiles'!D26366 -> 12 | E66: ='Hourly Load Profiles'!E26366*E$4 -> 29858.13815 | F66: ='Hourly Load Profiles'!F26366*F$4 -> 16317.85211 | G66: ='Hourly Load Profiles'!G26366*G$4 -> 25424.07102 | H66: ='Hourly Load Profiles'!H26366*H$4 -> 13348.08564 | I66: ='Hourly Load Profiles'!I26366*I$4 -> 26133.71784 | J66: ='Hourly Load Profiles'!J26366*J$4 -> 0 | K66: ='Hourly Load Profiles'!K26366*K$4 -> 0 | L66: ='Hourly Load Profiles'!L26366*L$4 -> 250.9472603 | M66: 111332.812
A67: 2023 | B67: ='Hourly Load Profiles'!B26367 -> 1 | C67: ='Hourly Load Profiles'!C26367 -> 3 | D67: ='Hourly Load Profiles'!D26367 -> 13 | E67: ='Hourly Load Profiles'!E26367*E$4 -> 30340.49599 | F67: ='Hourly Load Profiles'!F26367*F$4 -> 16183.40074 | G67: ='Hourly Load Profiles'!G26367*G$4 -> 25288.45041 | H67: ='Hourly Load Profiles'!H26367*H$4 -> 13738.33374 | I67: ='Hourly Load Profiles'!I26367*I$4 -> 25971.91756 | J67: ='Hourly Load Profiles'!J26367*J$4 -> 0 | K67: ='Hourly Load Profiles'!K26367*K$4 -> 0 | L67: ='Hourly Load Profiles'!L26367*L$4 -> 250.9472603 | M67: 111773.5457
A68: 2023 | B68: ='Hourly Load Profiles'!B26368 -> 1 | C68: ='Hourly Load Profiles'!C26368 -> 3 | D68: ='Hourly Load Profiles'!D26368 -> 14 | E68: ='Hourly Load Profiles'!E26368*E$4 -> 29828.17536 | F68: ='Hourly Load Profiles'!F26368*F$4 -> 16268.9674 | G68: ='Hourly Load Profiles'!G26368*G$4 -> 25022.35507 | H68: ='Hourly Load Profiles'!H26368*H$4 -> 13879.17655 | I68: ='Hourly Load Profiles'!I26368*I$4 -> 25565.65667 | J68: ='Hourly Load Profiles'!J26368*J$4 -> 0 | K68: ='Hourly Load Profiles'!K26368*K$4 -> 0 | L68: ='Hourly Load Profiles'!L26368*L$4 -> 250.9472603 | M68: 110815.2783
A69: 2023 | B69: ='Hourly Load Profiles'!B26369 -> 1 | C69: ='Hourly Load Profiles'!C26369 -> 3 | D69: ='Hourly Load Profiles'!D26369 -> 15 | E69: ='Hourly Load Profiles'!E26369*E$4 -> 28826.97264 | F69: ='Hourly Load Profiles'!F26369*F$4 -> 15954.06969 | G69: ='Hourly Load Profiles'!G26369*G$4 -> 24395.66411 | H69: ='Hourly Load Profiles'!H26369*H$4 -> 13935.00558 | I69: ='Hourly Load Profiles'!I26369*I$4 -> 25693.05503 | J69: ='Hourly Load Profiles'!J26369*J$4 -> 0 | K69: ='Hourly Load Profiles'!K26369*K$4 -> 0 | L69: ='Hourly Load Profiles'!L26369*L$4 -> 250.9472603 | M69: 109055.7143
A70: 2023 | B70: ='Hourly Load Profiles'!B26370 -> 1 | C70: ='Hourly Load Profiles'!C26370 -> 3 | D70: ='Hourly Load Profiles'!D26370 -> 16 | E70: ='Hourly Load Profiles'!E26370*E$4 -> 29149.87745 | F70: ='Hourly Load Profiles'!F26370*F$4 -> 15557.67963 | G70: ='Hourly Load Profiles'!G26370*G$4 -> 24198.67808 | H70: ='Hourly Load Profiles'!H26370*H$4 -> 13727.70755 | I70: ='Hourly Load Profiles'!I26370*I$4 -> 25187.52543 | J70: ='Hourly Load Profiles'!J26370*J$4 -> 0 | K70: ='Hourly Load Profiles'!K26370*K$4 -> 0 | L70: ='Hourly Load Profiles'!L26370*L$4 -> 250.9472603 | M70: 108072.4154
A71: 2023 | B71: ='Hourly Load Profiles'!B26371 -> 1 | C71: ='Hourly Load Profiles'!C26371 -> 3 | D71: ='Hourly Load Profiles'!D26371 -> 17 | E71: ='Hourly Load Profiles'!E26371*E$4 -> 33151.40177 | F71: ='Hourly Load Profiles'!F26371*F$4 -> 14837.37747 | G71: ='Hourly Load Profiles'!G26371*G$4 -> 25194.58063 | H71: ='Hourly Load Profiles'!H26371*H$4 -> 13379.681 | I71: ='Hourly Load Profiles'!I26371*I$4 -> 25978.2847 | J71: ='Hourly Load Profiles'!J26371*J$4 -> 0 | K71: ='Hourly Load Profiles'!K26371*K$4 -> 0 | L71: ='Hourly Load Profiles'!L26371*L$4 -> 250.9472603 | M71: 112792.2728
A72: 2023 | B72: ='Hourly Load Profiles'!B26372 -> 1 | C72: ='Hourly Load Profiles'!C26372 -> 3 | D72: ='Hourly Load Profiles'!D26372 -> 18 | E72: ='Hourly Load Profiles'!E26372*E$4 -> 38704.97067 | F72: ='Hourly Load Profiles'!F26372*F$4 -> 13978.49326 | G72: ='Hourly Load Profiles'!G26372*G$4 -> 27077.97903 | H72: ='Hourly Load Profiles'!H26372*H$4 -> 13614.22723 | I72: ='Hourly Load Profiles'!I26372*I$4 -> 26757.74654 | J72: ='Hourly Load Profiles'!J26372*J$4 -> 454.4705257 | K72: ='Hourly Load Profiles'!K26372*K$4 -> 62.52758391 | L72: ='Hourly Load Profiles'!L26372*L$4 -> 250.9472603 | M72: =SUM(E72:L72) -> 120901.3621
A73: 2023 | B73: ='Hourly Load Profiles'!B26373 -> 1 | C73: ='Hourly Load Profiles'!C26373 -> 3 | D73: ='Hourly Load Profiles'!D26373 -> 19 | E73: ='Hourly Load Profiles'!E26373*E$4 -> 39102.83028 | F73: ='Hourly Load Profiles'!F26373*F$4 -> 13424.00908 | G73: ='Hourly Load Profiles'!G26373*G$4 -> 26885.27828 | H73: ='Hourly Load Profiles'!H26373*H$4 -> 13676.43831 | I73: ='Hourly Load Profiles'!I26373*I$4 -> 26934.34317 | J73: ='Hourly Load Profiles'!J26373*J$4 -> 710.1101965 | K73: ='Hourly Load Profiles'!K26373*K$4 -> 97.69934986 | L73: ='Hourly Load Profiles'!L26373*L$4 -> 250.9472603 | M73: 121081.6559
A74: =A73 -> 2023 | B74: ='Hourly Load Profiles'!B26374 -> 1 | C74: ='Hourly Load Profiles'!C26374 -> 3 | D74: ='Hourly Load Profiles'!D26374 -> 20 | E74: ='Hourly Load Profiles'!E26374*E$4 -> 39005.49865 | F74: ='Hourly Load Profiles'!F26374*F$4 -> 12882.91125 | G74: ='Hourly Load Profiles'!G26374*G$4 -> 26415.61798 | H74: ='Hourly Load Profiles'!H26374*H$4 -> 13687.11817 | I74: ='Hourly Load Profiles'!I26374*I$4 -> 28957.81978 | J74: ='Hourly Load Profiles'!J26374*J$4 -> 710.1101965 | K74: ='Hourly Load Profiles'!K26374*K$4 -> 97.69934986 | L74: ='Hourly Load Profiles'!L26374*L$4 -> 250.9472603 | M74: 122007.7226
A75: 2023 | B75: ='Hourly Load Profiles'!B26375 -> 1 | C75: ='Hourly Load Profiles'!C26375 -> 3 | D75: ='Hourly Load Profiles'!D26375 -> 21 | E75: ='Hourly Load Profiles'!E26375*E$4 -> 38912.90426 | F75: ='Hourly Load Profiles'!F26375*F$4 -> 12297.33429 | G75: ='Hourly Load Profiles'!G26375*G$4 -> 26177.28116 | H75: ='Hourly Load Profiles'!H26375*H$4 -> 13608.87116 | I75: ='Hourly Load Profiles'!I26375*I$4 -> 29780.89434 | J75: ='Hourly Load Profiles'!J26375*J$4 -> 710.1101965 | K75: ='Hourly Load Profiles'!K26375*K$4 -> 97.69934986 | L75: ='Hourly Load Profiles'!L26375*L$4 -> 250.9472603 | M75: 121836.042
A76: 2023 | B76: ='Hourly Load Profiles'!B26376 -> 1 | C76: ='Hourly Load Profiles'!C26376 -> 3 | D76: ='Hourly Load Profiles'!D26376 -> 22 | E76: ='Hourly Load Profiles'!E26376*E$4 -> 37042.11252 | F76: ='Hourly Load Profiles'!F26376*F$4 -> 11429.45017 | G76: ='Hourly Load Profiles'!G26376*G$4 -> 24991.78546 | H76: ='Hourly Load Profiles'!H26376*H$4 -> 13903.78087 | I76: ='Hourly Load Profiles'!I26376*I$4 -> 30200.73355 | J76: ='Hourly Load Profiles'!J26376*J$4 -> 710.1101965 | K76: ='Hourly Load Profiles'!K26376*K$4 -> 97.69934986 | L76: ='Hourly Load Profiles'!L26376*L$4 -> 250.9472603 | M76: 118626.6194
A77: 2023 | B77: ='Hourly Load Profiles'!B26377 -> 1 | C77: ='Hourly Load Profiles'!C26377 -> 3 | D77: ='Hourly Load Profiles'!D26377 -> 23 | E77: ='Hourly Load Profiles'!E26377*E$4 -> 33700.71872 | F77: ='Hourly Load Profiles'!F26377*F$4 -> 10823.8714 | G77: ='Hourly Load Profiles'!G26377*G$4 -> 23085.50997 | H77: ='Hourly Load Profiles'!H26377*H$4 -> 13918.20941 | I77: ='Hourly Load Profiles'!I26377*I$4 -> 30080.99759 | J77: ='Hourly Load Profiles'!J26377*J$4 -> 710.1101965 | K77: ='Hourly Load Profiles'!K26377*K$4 -> 97.69934986 | L77: ='Hourly Load Profiles'!L26377*L$4 -> 250.9472603 | M77: 112668.0639
A78: 2023 | B78: ='Hourly Load Profiles'!B26378 -> 1 | C78: ='Hourly Load Profiles'!C26378 -> 3 | D78: ='Hourly Load Profiles'!D26378 -> 24 | E78: ='Hourly Load Profiles'!E26378*E$4 -> 28850.65276 | F78: ='Hourly Load Profiles'!F26378*F$4 -> 10378.53333 | G78: ='Hourly Load Profiles'!G26378*G$4 -> 20723.97524 | H78: ='Hourly Load Profiles'!H26378*H$4 -> 13731.61801 | I78: ='Hourly Load Profiles'!I26378*I$4 -> 29751.32761 | J78: ='Hourly Load Profiles'!J26378*J$4 -> 710.1101965 | K78: ='Hourly Load Profiles'!K26378*K$4 -> 97.69934986 | L78: ='Hourly Load Profiles'!L26378*L$4 -> 250.9472603 | M78: 104494.8638
A79: 2023 | B79: ='Hourly Load Profiles'!B26379 -> 1 | C79: ='Hourly Load Profiles'!C26379 -> 4 | D79: ='Hourly Load Profiles'!D26379 -> 1 | E79: ='Hourly Load Profiles'!E26379*E$4 -> 25031.52295 | F79: ='Hourly Load Profiles'!F26379*F$4 -> 9967.364068 | G79: ='Hourly Load Profiles'!G26379*G$4 -> 18941.72051 | H79: ='Hourly Load Profiles'!H26379*H$4 -> 13718.10492 | I79: ='Hourly Load Profiles'!I26379*I$4 -> 29628.99564 | J79: ='Hourly Load Profiles'!J26379*J$4 -> 710.1101965 | K79: ='Hourly Load Profiles'!K26379*K$4 -> 97.69934986 | L79: ='Hourly Load Profiles'!L26379*L$4 -> 250.9472603 | M79: 98346.4649
A80: 2023 | B80: ='Hourly Load Profiles'!B26380 -> 1 | C80: ='Hourly Load Profiles'!C26380 -> 4 | D80: ='Hourly Load Profiles'!D26380 -> 2 | E80: ='Hourly Load Profiles'!E26380*E$4 -> 23014.16483 | F80: ='Hourly Load Profiles'!F26380*F$4 -> 9700.587162 | G80: ='Hourly Load Profiles'!G26380*G$4 -> 17991.4082 | H80: ='Hourly Load Profiles'!H26380*H$4 -> 13622.92436 | I80: ='Hourly Load Profiles'!I26380*I$4 -> 29161.2272 | J80: ='Hourly Load Profiles'!J26380*J$4 -> 710.1101965 | K80: ='Hourly Load Profiles'!K26380*K$4 -> 97.69934986 | L80: ='Hourly Load Profiles'!L26380*L$4 -> 250.9472603 | M80: 94549.06856
A81: 2023 | B81: ='Hourly Load Profiles'!B26381 -> 1 | C81: ='Hourly Load Profiles'!C26381 -> 4 | D81: ='Hourly Load Profiles'!D26381 -> 3 | E81: ='Hourly Load Profiles'!E26381*E$4 -> 21891.2822 | F81: ='Hourly Load Profiles'!F26381*F$4 -> 9583.97584 | G81: ='Hourly Load Profiles'!G26381*G$4 -> 17352.8547 | H81: ='Hourly Load Profiles'!H26381*H$4 -> 13488.08958 | I81: ='Hourly Load Profiles'!I26381*I$4 -> 29056.05257 | J81: ='Hourly Load Profiles'!J26381*J$4 -> 710.1101965 | K81: ='Hourly Load Profiles'!K26381*K$4 -> 97.69934986 | L81: ='Hourly Load Profiles'!L26381*L$4 -> 250.9472603 | M81: 92431.0117
A82: 2023 | B82: ='Hourly Load Profiles'!B26382 -> 1 | C82: ='Hourly Load Profiles'!C26382 -> 4 | D82: ='Hourly Load Profiles'!D26382 -> 4 | E82: ='Hourly Load Profiles'!E26382*E$4 -> 21520.34959 | F82: ='Hourly Load Profiles'!F26382*F$4 -> 9644.81437 | G82: ='Hourly Load Profiles'!G26382*G$4 -> 17177.70729 | H82: ='Hourly Load Profiles'!H26382*H$4 -> 13417.47112 | I82: ='Hourly Load Profiles'!I26382*I$4 -> 29736.45879 | J82: ='Hourly Load Profiles'!J26382*J$4 -> 710.1101965 | K82: ='Hourly Load Profiles'!K26382*K$4 -> 97.69934986 | L82: ='Hourly Load Profiles'!L26382*L$4 -> 250.9472603 | M82: 92555.55796
A83: 2023 | B83: ='Hourly Load Profiles'!B26383 -> 1 | C83: ='Hourly Load Profiles'!C26383 -> 4 | D83: ='Hourly Load Profiles'!D26383 -> 5 | E83: ='Hourly Load Profiles'!E26383*E$4 -> 21684.50177 | F83: ='Hourly Load Profiles'!F26383*F$4 -> 9675.645012 | G83: ='Hourly Load Profiles'!G26383*G$4 -> 17464.71211 | H83: ='Hourly Load Profiles'!H26383*H$4 -> 13545.39331 | I83: ='Hourly Load Profiles'!I26383*I$4 -> 29665.76259 | J83: ='Hourly Load Profiles'!J26383*J$4 -> 710.1101965 | K83: ='Hourly Load Profiles'!K26383*K$4 -> 97.69934986 | L83: ='Hourly Load Profiles'!L26383*L$4 -> 250.9472603 | M83: 93094.7716
A84: 2023 | B84: ='Hourly Load Profiles'!B26384 -> 1 | C84: ='Hourly Load Profiles'!C26384 -> 4 | D84: ='Hourly Load Profiles'!D26384 -> 6 | E84: ='Hourly Load Profiles'!E26384*E$4 -> 22835.51667 | F84: ='Hourly Load Profiles'!F26384*F$4 -> 9892.573006 | G84: ='Hourly Load Profiles'!G26384*G$4 -> 18171.36079 | H84: ='Hourly Load Profiles'!H26384*H$4 -> 13797.757 | I84: ='Hourly Load Profiles'!I26384*I$4 -> 29990.58547 | J84: ='Hourly Load Profiles'!J26384*J$4 -> 710.1101965 | K84: ='Hourly Load Profiles'!K26384*K$4 -> 97.69934986 | L84: ='Hourly Load Profiles'!L26384*L$4 -> 250.9472603 | M84: 95746.54975
A85: 2023 | B85: ='Hourly Load Profiles'!B26385 -> 1 | C85: ='Hourly Load Profiles'!C26385 -> 4 | D85: ='Hourly Load Profiles'!D26385 -> 7 | E85: ='Hourly Load Profiles'!E26385*E$4 -> 24814.22385 | F85: ='Hourly Load Profiles'!F26385*F$4 -> 10650.10466 | G85: ='Hourly Load Profiles'!G26385*G$4 -> 19864.95071 | H85: ='Hourly Load Profiles'!H26385*H$4 -> 13939.09639 | I85: ='Hourly Load Profiles'!I26385*I$4 -> 29847.80653 | J85: ='Hourly Load Profiles'!J26385*J$4 -> 710.1101965 | K85: ='Hourly Load Profiles'!K26385*K$4 -> 97.69934986 | L85: ='Hourly Load Profiles'!L26385*L$4 -> 250.9472603 | M85: 100174.9389
A86: 2023 | B86: ='Hourly Load Profiles'!B26386 -> 1 | C86: ='Hourly Load Profiles'!C26386 -> 4 | D86: ='Hourly Load Profiles'!D26386 -> 8 | E86: ='Hourly Load Profiles'!E26386*E$4 -> 26609.7762 | F86: ='Hourly Load Profiles'!F26386*F$4 -> 12190.02233 | G86: ='Hourly Load Profiles'!G26386*G$4 -> 21861.30942 | H86: ='Hourly Load Profiles'!H26386*H$4 -> 13896.29458 | I86: ='Hourly Load Profiles'!I26386*I$4 -> 29635.74464 | J86: ='Hourly Load Profiles'!J26386*J$4 -> 667.5035847 | K86: ='Hourly Load Profiles'!K26386*K$4 -> 91.83738887 | L86: ='Hourly Load Profiles'!L26386*L$4 -> 250.9472603 | M86: 105203.4354
A87: 2023 | B87: ='Hourly Load Profiles'!B26387 -> 1 | C87: ='Hourly Load Profiles'!C26387 -> 4 | D87: ='Hourly Load Profiles'!D26387 -> 9 | E87: ='Hourly Load Profiles'!E26387*E$4 -> 27518.79592 | F87: ='Hourly Load Profiles'!F26387*F$4 -> 13806.53269 | G87: ='Hourly Load Profiles'!G26387*G$4 -> 22922.47807 | H87: ='Hourly Load Profiles'!H26387*H$4 -> 13588.12587 | I87: ='Hourly Load Profiles'!I26387*I$4 -> 30329.54826 | J87: ='Hourly Load Profiles'!J26387*J$4 -> 0 | K87: ='Hourly Load Profiles'!K26387*K$4 -> 0 | L87: ='Hourly Load Profiles'!L26387*L$4 -> 250.9472603 | M87: 108416.4281
A88: 2023 | B88: ='Hourly Load Profiles'!B26388 -> 1 | C88: ='Hourly Load Profiles'!C26388 -> 4 | D88: ='Hourly Load Profiles'!D26388 -> 10 | E88: ='Hourly Load Profiles'!E26388*E$4 -> 26965.94815 | F88: ='Hourly Load Profiles'!F26388*F$4 -> 15043.67088 | G88: ='Hourly Load Profiles'!G26388*G$4 -> 23038.38944 | H88: ='Hourly Load Profiles'!H26388*H$4 -> 13450.89475 | I88: ='Hourly Load Profiles'!I26388*I$4 -> 32002.33798 | J88: ='Hourly Load Profiles'!J26388*J$4 -> 0 | K88: ='Hourly Load Profiles'!K26388*K$4 -> 0 | L88: ='Hourly Load Profiles'!L26388*L$4 -> 250.9472603 | M88: 110752.1885
A89: 2023 | B89: ='Hourly Load Profiles'!B26389 -> 1 | C89: ='Hourly Load Profiles'!C26389 -> 4 | D89: ='Hourly Load Profiles'!D26389 -> 11 | E89: ='Hourly Load Profiles'!E26389*E$4 -> 26617.49922 | F89: ='Hourly Load Profiles'!F26389*F$4 -> 15618.25982 | G89: ='Hourly Load Profiles'!G26389*G$4 -> 23121.98574 | H89: ='Hourly Load Profiles'!H26389*H$4 -> 13348.81417 | I89: ='Hourly Load Profiles'!I26389*I$4 -> 32920.43387 | J89: ='Hourly Load Profiles'!J26389*J$4 -> 0 | K89: ='Hourly Load Profiles'!K26389*K$4 -> 0 | L89: ='Hourly Load Profiles'!L26389*L$4 -> 250.9472603 | M89: 111877.9401
A90: 2023 | B90: ='Hourly Load Profiles'!B26390 -> 1 | C90: ='Hourly Load Profiles'!C26390 -> 4 | D90: ='Hourly Load Profiles'!D26390 -> 12 | E90: ='Hourly Load Profiles'!E26390*E$4 -> 26729.68182 | F90: ='Hourly Load Profiles'!F26390*F$4 -> 15650.74876 | G90: ='Hourly Load Profiles'!G26390*G$4 -> 22944.73753 | H90: ='Hourly Load Profiles'!H26390*H$4 -> 13179.45152 | I90: ='Hourly Load Profiles'!I26390*I$4 -> 33340.72359 | J90: ='Hourly Load Profiles'!J26390*J$4 -> 0 | K90: ='Hourly Load Profiles'!K26390*K$4 -> 0 | L90: ='Hourly Load Profiles'!L26390*L$4 -> 250.9472603 | M90: 112096.2905
A91: 2023 | B91: ='Hourly Load Profiles'!B26391 -> 1 | C91: ='Hourly Load Profiles'!C26391 -> 4 | D91: ='Hourly Load Profiles'!D26391 -> 13 | E91: ='Hourly Load Profiles'!E26391*E$4 -> 26614.70806 | F91: ='Hourly Load Profiles'!F26391*F$4 -> 15331.1605 | G91: ='Hourly Load Profiles'!G26391*G$4 -> 22721.50681 | H91: ='Hourly Load Profiles'!H26391*H$4 -> 12925.58704 | I91: ='Hourly Load Profiles'!I26391*I$4 -> 34746.95053 | J91: ='Hourly Load Profiles'!J26391*J$4 -> 0 | K91: ='Hourly Load Profiles'!K26391*K$4 -> 0 | L91: ='Hourly Load Profiles'!L26391*L$4 -> 250.9472603 | M91: 112590.8602
A92: 2023 | B92: ='Hourly Load Profiles'!B26392 -> 1 | C92: ='Hourly Load Profiles'!C26392 -> 4 | D92: ='Hourly Load Profiles'!D26392 -> 14 | E92: ='Hourly Load Profiles'!E26392*E$4 -> 25625.50802 | F92: ='Hourly Load Profiles'!F26392*F$4 -> 15194.01831 | G92: ='Hourly Load Profiles'!G26392*G$4 -> 22302.03652 | H92: ='Hourly Load Profiles'!H26392*H$4 -> 13089.94306 | I92: ='Hourly Load Profiles'!I26392*I$4 -> 35439.39572 | J92: ='Hourly Load Profiles'!J26392*J$4 -> 0 | K92: ='Hourly Load Profiles'!K26392*K$4 -> 0 | L92: ='Hourly Load Profiles'!L26392*L$4 -> 250.9472603 | M92: 111901.8489
A93: 2023 | B93: ='Hourly Load Profiles'!B26393 -> 1 | C93: ='Hourly Load Profiles'!C26393 -> 4 | D93: ='Hourly Load Profiles'!D26393 -> 15 | E93: ='Hourly Load Profiles'!E26393*E$4 -> 25400.70369 | F93: ='Hourly Load Profiles'!F26393*F$4 -> 14978.94158 | G93: ='Hourly Load Profiles'!G26393*G$4 -> 22198.9236 | H93: ='Hourly Load Profiles'!H26393*H$4 -> 13155.54776 | I93: ='Hourly Load Profiles'!I26393*I$4 -> 35742.47207 | J93: ='Hourly Load Profiles'!J26393*J$4 -> 0 | K93: ='Hourly Load Profiles'!K26393*K$4 -> 0 | L93: ='Hourly Load Profiles'!L26393*L$4 -> 250.9472603 | M93: 111727.536
A94: 2023 | B94: ='Hourly Load Profiles'!B26394 -> 1 | C94: ='Hourly Load Profiles'!C26394 -> 4 | D94: ='Hourly Load Profiles'!D26394 -> 16 | E94: ='Hourly Load Profiles'!E26394*E$4 -> 26056.05417 | F94: ='Hourly Load Profiles'!F26394*F$4 -> 14553.53197 | G94: ='Hourly Load Profiles'!G26394*G$4 -> 22213.67724 | H94: ='Hourly Load Profiles'!H26394*H$4 -> 13182.82955 | I94: ='Hourly Load Profiles'!I26394*I$4 -> 35857.68748 | J94: ='Hourly Load Profiles'!J26394*J$4 -> 0 | K94: ='Hourly Load Profiles'!K26394*K$4 -> 0 | L94: ='Hourly Load Profiles'!L26394*L$4 -> 250.9472603 | M94: 112114.7277
A95: 2023 | B95: ='Hourly Load Profiles'!B26395 -> 1 | C95: ='Hourly Load Profiles'!C26395 -> 4 | D95: ='Hourly Load Profiles'!D26395 -> 17 | E95: ='Hourly Load Profiles'!E26395*E$4 -> 29120.01054 | F95: ='Hourly Load Profiles'!F26395*F$4 -> 13673.33752 | G95: ='Hourly Load Profiles'!G26395*G$4 -> 22678.87918 | H95: ='Hourly Load Profiles'!H26395*H$4 -> 13009.15352 | I95: ='Hourly Load Profiles'!I26395*I$4 -> 36092.35687 | J95: ='Hourly Load Profiles'!J26395*J$4 -> 0 | K95: ='Hourly Load Profiles'!K26395*K$4 -> 0 | L95: ='Hourly Load Profiles'!L26395*L$4 -> 250.9472603 | M95: 114824.6849
A96: 2023 | B96: ='Hourly Load Profiles'!B26396 -> 1 | C96: ='Hourly Load Profiles'!C26396 -> 4 | D96: ='Hourly Load Profiles'!D26396 -> 18 | E96: ='Hourly Load Profiles'!E26396*E$4 -> 35033.242 | F96: ='Hourly Load Profiles'!F26396*F$4 -> 12989.5153 | G96: ='Hourly Load Profiles'!G26396*G$4 -> 24760.35956 | H96: ='Hourly Load Profiles'!H26396*H$4 -> 13098.69031 | I96: ='Hourly Load Profiles'!I26396*I$4 -> 36119.81147 | J96: ='Hourly Load Profiles'!J26396*J$4 -> 454.4705257 | K96: ='Hourly Load Profiles'!K26396*K$4 -> 62.52758391 | L96: ='Hourly Load Profiles'!L26396*L$4 -> 250.9472603 | M96: 122769.564
A97: 2023 | B97: ='Hourly Load Profiles'!B26397 -> 1 | C97: ='Hourly Load Profiles'!C26397 -> 4 | D97: ='Hourly Load Profiles'!D26397 -> 19 | E97: ='Hourly Load Profiles'!E26397*E$4 -> 35761.15827 | F97: ='Hourly Load Profiles'!F26397*F$4 -> 12535.68198 | G97: ='Hourly Load Profiles'!G26397*G$4 -> 24750.75802 | H97: ='Hourly Load Profiles'!H26397*H$4 -> 13217.72432 | I97: ='Hourly Load Profiles'!I26397*I$4 -> 35761.08509 | J97: ='Hourly Load Profiles'!J26397*J$4 -> 710.1101965 | K97: ='Hourly Load Profiles'!K26397*K$4 -> 97.69934986 | L97: ='Hourly Load Profiles'!L26397*L$4 -> 250.9472603 | M97: 123085.1645
A98: 2023 | B98: ='Hourly Load Profiles'!B26398 -> 1 | C98: ='Hourly Load Profiles'!C26398 -> 4 | D98: ='Hourly Load Profiles'!D26398 -> 20 | E98: ='Hourly Load Profiles'!E26398*E$4 -> 35844.88465 | F98: ='Hourly Load Profiles'!F26398*F$4 -> 12266.73241 | G98: ='Hourly Load Profiles'!G26398*G$4 -> 24553.12974 | H98: ='Hourly Load Profiles'!H26398*H$4 -> 13373.70168 | I98: ='Hourly Load Profiles'!I26398*I$4 -> 35793.58726 | J98: ='Hourly Load Profiles'!J26398*J$4 -> 710.1101965 | K98: ='Hourly Load Profiles'!K26398*K$4 -> 97.69934986 | L98: ='Hourly Load Profiles'!L26398*L$4 -> 250.9472603 | M98: 122890.7925
A99: 2023 | B99: ='Hourly Load Profiles'!B26399 -> 1 | C99: ='Hourly Load Profiles'!C26399 -> 4 | D99: ='Hourly Load Profiles'!D26399 -> 21 | E99: ='Hourly Load Profiles'!E26399*E$4 -> 35871.13687 | F99: ='Hourly Load Profiles'!F26399*F$4 -> 11741.05762 | G99: ='Hourly Load Profiles'!G26399*G$4 -> 24186.11899 | H99: ='Hourly Load Profiles'!H26399*H$4 -> 13677.84283 | I99: ='Hourly Load Profiles'!I26399*I$4 -> 36142.63803 | J99: ='Hourly Load Profiles'!J26399*J$4 -> 710.1101965 | K99: ='Hourly Load Profiles'!K26399*K$4 -> 97.69934986 | L99: ='Hourly Load Profiles'!L26399*L$4 -> 250.9472603 | M99: 122677.5511
A100: 2023 | B100: ='Hourly Load Profiles'!B26400 -> 1 | C100: ='Hourly Load Profiles'!C26400 -> 4 | D100: ='Hourly Load Profiles'!D26400 -> 22 | E100: ='Hourly Load Profiles'!E26400*E$4 -> 34388.54246 | F100: ='Hourly Load Profiles'!F26400*F$4 -> 10943.60338 | G100: ='Hourly Load Profiles'!G26400*G$4 -> 23084.45994 | H100: ='Hourly Load Profiles'!H26400*H$4 -> 13674.1876 | I100: ='Hourly Load Profiles'!I26400*I$4 -> 35498.96706 | J100: ='Hourly Load Profiles'!J26400*J$4 -> 710.1101965 | K100: ='Hourly Load Profiles'!K26400*K$4 -> 97.69934986 | L100: ='Hourly Load Profiles'!L26400*L$4 -> 250.9472603 | M100: 118648.5172
A101: 2023 | B101: ='Hourly Load Profiles'!B26401 -> 1 | C101: ='Hourly Load Profiles'!C26401 -> 4 | D101: ='Hourly Load Profiles'!D26401 -> 23 | E101: ='Hourly Load Profiles'!E26401*E$4 -> 31493.91771 | F101: ='Hourly Load Profiles'!F26401*F$4 -> 10318.0819 | G101: ='Hourly Load Profiles'!G26401*G$4 -> 21589.90095 | H101: ='Hourly Load Profiles'!H26401*H$4 -> 12985.29837 | I101: ='Hourly Load Profiles'!I26401*I$4 -> 35507.0137 | J101: ='Hourly Load Profiles'!J26401*J$4 -> 710.1101965 | K101: ='Hourly Load Profiles'!K26401*K$4 -> 97.69934986 | L101: ='Hourly Load Profiles'!L26401*L$4 -> 250.9472603 | M101: 112952.9694
A102: 2023 | B102: ='Hourly Load Profiles'!B26402 -> 1 | C102: ='Hourly Load Profiles'!C26402 -> 4 | D102: ='Hourly Load Profiles'!D26402 -> 24 | E102: ='Hourly Load Profiles'!E26402*E$4 -> 27870.52076 | F102: ='Hourly Load Profiles'!F26402*F$4 -> 9931.050569 | G102: ='Hourly Load Profiles'!G26402*G$4 -> 19695.39396 | H102: ='Hourly Load Profiles'!H26402*H$4 -> 12074.77228 | I102: ='Hourly Load Profiles'!I26402*I$4 -> 35829.46369 | J102: ='Hourly Load Profiles'!J26402*J$4 -> 710.1101965 | K102: ='Hourly Load Profiles'!K26402*K$4 -> 97.69934986 | L102: ='Hourly Load Profiles'!L26402*L$4 -> 250.9472603 | M102: 106459.9581
A103: 2023 | B103: ='Hourly Load Profiles'!B26403 -> 1 | C103: ='Hourly Load Profiles'!C26403 -> 5 | D103: ='Hourly Load Profiles'!D26403 -> 1 | E103: ='Hourly Load Profiles'!E26403*E$4 -> 24822.6352 | F103: ='Hourly Load Profiles'!F26403*F$4 -> 9662.884492 | G103: ='Hourly Load Profiles'!G26403*G$4 -> 18348.11635 | H103: ='Hourly Load Profiles'!H26403*H$4 -> 11994.98432 | I103: ='Hourly Load Profiles'!I26403*I$4 -> 35800.869 | J103: ='Hourly Load Profiles'!J26403*J$4 -> 710.1101965 | K103: ='Hourly Load Profiles'!K26403*K$4 -> 97.69934986 | L103: ='Hourly Load Profiles'!L26403*L$4 -> 250.9472603 | M103: 101688.2462
A104: 2023 | B104: ='Hourly Load Profiles'!B26404 -> 1 | C104: ='Hourly Load Profiles'!C26404 -> 5 | D104: ='Hourly Load Profiles'!D26404 -> 2 | E104: ='Hourly Load Profiles'!E26404*E$4 -> 22763.07285 | F104: ='Hourly Load Profiles'!F26404*F$4 -> 9492.549281 | G104: ='Hourly Load Profiles'!G26404*G$4 -> 17448.26527 | H104: ='Hourly Load Profiles'!H26404*H$4 -> 11887.86203 | I104: ='Hourly Load Profiles'!I26404*I$4 -> 35629.97352 | J104: ='Hourly Load Profiles'!J26404*J$4 -> 710.1101965 | K104: ='Hourly Load Profiles'!K26404*K$4 -> 97.69934986 | L104: ='Hourly Load Profiles'!L26404*L$4 -> 250.9472603 | M104: 98280.47976
A105: 2023 | B105: ='Hourly Load Profiles'!B26405 -> 1 | C105: ='Hourly Load Profiles'!C26405 -> 5 | D105: ='Hourly Load Profiles'!D26405 -> 3 | E105: ='Hourly Load Profiles'!E26405*E$4 -> 21622.93946 | F105: ='Hourly Load Profiles'!F26405*F$4 -> 9389.565263 | G105: ='Hourly Load Profiles'!G26405*G$4 -> 16939.7826 | H105: ='Hourly Load Profiles'!H26405*H$4 -> 11674.62691 | I105: ='Hourly Load Profiles'!I26405*I$4 -> 36548.99092 | J105: ='Hourly Load Profiles'!J26405*J$4 -> 710.1101965 | K105: ='Hourly Load Profiles'!K26405*K$4 -> 97.69934986 | L105: ='Hourly Load Profiles'!L26405*L$4 -> 250.9472603 | M105: 97234.66195
A106: 2023 | B106: ='Hourly Load Profiles'!B26406 -> 1 | C106: ='Hourly Load Profiles'!C26406 -> 5 | D106: ='Hourly Load Profiles'!D26406 -> 4 | E106: ='Hourly Load Profiles'!E26406*E$4 -> 21153.29063 | F106: ='Hourly Load Profiles'!F26406*F$4 -> 9283.637295 | G106: ='Hourly Load Profiles'!G26406*G$4 -> 16742.70476 | H106: ='Hourly Load Profiles'!H26406*H$4 -> 11618.48072 | I106: ='Hourly Load Profiles'!I26406*I$4 -> 36893.06563 | J106: ='Hourly Load Profiles'!J26406*J$4 -> 710.1101965 | K106: ='Hourly Load Profiles'!K26406*K$4 -> 97.69934986 | L106: ='Hourly Load Profiles'!L26406*L$4 -> 250.9472603 | M106: 96749.93584
A107: 2023 | B107: ='Hourly Load Profiles'!B26407 -> 1 | C107: ='Hourly Load Profiles'!C26407 -> 5 | D107: ='Hourly Load Profiles'!D26407 -> 5 | E107: ='Hourly Load Profiles'!E26407*E$4 -> 20945.36068 | F107: ='Hourly Load Profiles'!F26407*F$4 -> 9215.165276 | G107: ='Hourly Load Profiles'!G26407*G$4 -> 16679.16942 | H107: ='Hourly Load Profiles'!H26407*H$4 -> 11664.99406 | I107: ='Hourly Load Profiles'!I26407*I$4 -> 36829.68812 | J107: ='Hourly Load Profiles'!J26407*J$4 -> 710.1101965 | K107: ='Hourly Load Profiles'!K26407*K$4 -> 97.69934986 | L107: ='Hourly Load Profiles'!L26407*L$4 -> 250.9472603 | M107: 96393.13435
A108: 2023 | B108: ='Hourly Load Profiles'!B26408 -> 1 | C108: ='Hourly Load Profiles'!C26408 -> 5 | D108: ='Hourly Load Profiles'!D26408 -> 6 | E108: ='Hourly Load Profiles'!E26408*E$4 -> 21620.91324 | F108: ='Hourly Load Profiles'!F26408*F$4 -> 9339.975352 | G108: ='Hourly Load Profiles'!G26408*G$4 -> 17161.41066 | H108: ='Hourly Load Profiles'!H26408*H$4 -> 11654.08412 | I108: ='Hourly Load Profiles'!I26408*I$4 -> 36825.12705 | J108: ='Hourly Load Profiles'!J26408*J$4 -> 710.1101965 | K108: ='Hourly Load Profiles'!K26408*K$4 -> 97.69934986 | L108: ='Hourly Load Profiles'!L26408*L$4 -> 250.9472603 | M108: 97660.26723
A109: 2023 | B109: ='Hourly Load Profiles'!B26409 -> 1 | C109: ='Hourly Load Profiles'!C26409 -> 5 | D109: ='Hourly Load Profiles'!D26409 -> 7 | E109: ='Hourly Load Profiles'!E26409*E$4 -> 23037.9335 | F109: ='Hourly Load Profiles'!F26409*F$4 -> 9705.081101 | G109: ='Hourly Load Profiles'!G26409*G$4 -> 18226.60164 | H109: ='Hourly Load Profiles'!H26409*H$4 -> 11388.98841 | I109: ='Hourly Load Profiles'!I26409*I$4 -> 36816.87542 | J109: ='Hourly Load Profiles'!J26409*J$4 -> 710.1101965 | K109: ='Hourly Load Profiles'!K26409*K$4 -> 97.69934986 | L109: ='Hourly Load Profiles'!L26409*L$4 -> 250.9472603 | M109: 100234.2369
A110: 2023 | B110: ='Hourly Load Profiles'!B26410 -> 1 | C110: ='Hourly Load Profiles'!C26410 -> 5 | D110: ='Hourly Load Profiles'!D26410 -> 8 | E110: ='Hourly Load Profiles'!E26410*E$4 -> 24926.02332 | F110: ='Hourly Load Profiles'!F26410*F$4 -> 10194.92283 | G110: ='Hourly Load Profiles'!G26410*G$4 -> 19499.83208 | H110: ='Hourly Load Profiles'!H26410*H$4 -> 11491.77011 | I110: ='Hourly Load Profiles'!I26410*I$4 -> 36657.98626 | J110: ='Hourly Load Profiles'!J26410*J$4 -> 667.5035847 | K110: ='Hourly Load Profiles'!K26410*K$4 -> 91.83738887 | L110: ='Hourly Load Profiles'!L26410*L$4 -> 250.9472603 | M110: 103780.8228
A111: 2023 | B111: ='Hourly Load Profiles'!B26411 -> 1 | C111: ='Hourly Load Profiles'!C26411 -> 5 | D111: ='Hourly Load Profiles'!D26411 -> 9 | E111: ='Hourly Load Profiles'!E26411*E$4 -> 28144.65516 | F111: ='Hourly Load Profiles'!F26411*F$4 -> 10463.81816 | G111: ='Hourly Load Profiles'!G26411*G$4 -> 20919.05885 | H111: ='Hourly Load Profiles'!H26411*H$4 -> 11557.6672 | I111: ='Hourly Load Profiles'!I26411*I$4 -> 36527.65127 | J111: ='Hourly Load Profiles'!J26411*J$4 -> 0 | K111: ='Hourly Load Profiles'!K26411*K$4 -> 0 | L111: ='Hourly Load Profiles'!L26411*L$4 -> 250.9472603 | M111: 107863.7979
A112: 2023 | B112: ='Hourly Load Profiles'!B26412 -> 1 | C112: ='Hourly Load Profiles'!C26412 -> 5 | D112: ='Hourly Load Profiles'!D26412 -> 10 | E112: ='Hourly Load Profiles'!E26412*E$4 -> 30501.99202 | F112: ='Hourly Load Profiles'!F26412*F$4 -> 11443.6958 | G112: ='Hourly Load Profiles'!G26412*G$4 -> 22299.30582 | H112: ='Hourly Load Profiles'!H26412*H$4 -> 11111.76855 | I112: ='Hourly Load Profiles'!I26412*I$4 -> 36565.58692 | J112: ='Hourly Load Profiles'!J26412*J$4 -> 0 | K112: ='Hourly Load Profiles'!K26412*K$4 -> 0 | L112: ='Hourly Load Profiles'!L26412*L$4 -> 250.9472603 | M112: 112173.2964
A113: 2023 | B113: ='Hourly Load Profiles'!B26413 -> 1 | C113: ='Hourly Load Profiles'!C26413 -> 5 | D113: ='Hourly Load Profiles'!D26413 -> 11 | E113: ='Hourly Load Profiles'!E26413*E$4 -> 32263.45278 | F113: ='Hourly Load Profiles'!F26413*F$4 -> 12073.76843 | G113: ='Hourly Load Profiles'!G26413*G$4 -> 23052.22565 | H113: ='Hourly Load Profiles'!H26413*H$4 -> 10912.60371 | I113: ='Hourly Load Profiles'!I26413*I$4 -> 36198.94618 | J113: ='Hourly Load Profiles'!J26413*J$4 -> 0 | K113: ='Hourly Load Profiles'!K26413*K$4 -> 0 | L113: ='Hourly Load Profiles'!L26413*L$4 -> 250.9472603 | M113: 114751.944
A114: 2023 | B114: ='Hourly Load Profiles'!B26414 -> 1 | C114: ='Hourly Load Profiles'!C26414 -> 5 | D114: ='Hourly Load Profiles'!D26414 -> 12 | E114: ='Hourly Load Profiles'!E26414*E$4 -> 32421.84931 | F114: ='Hourly Load Profiles'!F26414*F$4 -> 12110.12828 | G114: ='Hourly Load Profiles'!G26414*G$4 -> 22692.43128 | H114: ='Hourly Load Profiles'!H26414*H$4 -> 11426.37861 | I114: ='Hourly Load Profiles'!I26414*I$4 -> 36067.73712 | J114: ='Hourly Load Profiles'!J26414*J$4 -> 0 | K114: ='Hourly Load Profiles'!K26414*K$4 -> 0 | L114: ='Hourly Load Profiles'!L26414*L$4 -> 250.9472603 | M114: 114969.4719
A115: 2023 | B115: ='Hourly Load Profiles'!B26415 -> 1 | C115: ='Hourly Load Profiles'!C26415 -> 5 | D115: ='Hourly Load Profiles'!D26415 -> 13 | E115: ='Hourly Load Profiles'!E26415*E$4 -> 32470.12301 | F115: ='Hourly Load Profiles'!F26415*F$4 -> 11908.39009 | G115: ='Hourly Load Profiles'!G26415*G$4 -> 22618.97541 | H115: ='Hourly Load Profiles'!H26415*H$4 -> 11550.18203 | I115: ='Hourly Load Profiles'!I26415*I$4 -> 36406.59359 | J115: ='Hourly Load Profiles'!J26415*J$4 -> 0 | K115: ='Hourly Load Profiles'!K26415*K$4 -> 0 | L115: ='Hourly Load Profiles'!L26415*L$4 -> 250.9472603 | M115: 115205.2114
A116: 2023 | B116: ='Hourly Load Profiles'!B26416 -> 1 | C116: ='Hourly Load Profiles'!C26416 -> 5 | D116: ='Hourly Load Profiles'!D26416 -> 14 | E116: ='Hourly Load Profiles'!E26416*E$4 -> 31876.55505 | F116: ='Hourly Load Profiles'!F26416*F$4 -> 11626.55711 | G116: ='Hourly Load Profiles'!G26416*G$4 -> 22427.35455 | H116: ='Hourly Load Profiles'!H26416*H$4 -> 11476.60722 | I116: ='Hourly Load Profiles'!I26416*I$4 -> 36457.70187 | J116: ='Hourly Load Profiles'!J26416*J$4 -> 0 | K116: ='Hourly Load Profiles'!K26416*K$4 -> 0 | L116: ='Hourly Load Profiles'!L26416*L$4 -> 250.9472603 | M116: 114115.7231
A117: 2023 | B117: ='Hourly Load Profiles'!B26417 -> 1 | C117: ='Hourly Load Profiles'!C26417 -> 5 | D117: ='Hourly Load Profiles'!D26417 -> 15 | E117: ='Hourly Load Profiles'!E26417*E$4 -> 31215.43181 | F117: ='Hourly Load Profiles'!F26417*F$4 -> 11288.04591 | G117: ='Hourly Load Profiles'!G26417*G$4 -> 21907.47622 | H117: ='Hourly Load Profiles'!H26417*H$4 -> 11548.69644 | I117: ='Hourly Load Profiles'!I26417*I$4 -> 35987.86968 | J117: ='Hourly Load Profiles'!J26417*J$4 -> 0 | K117: ='Hourly Load Profiles'!K26417*K$4 -> 0 | L117: ='Hourly Load Profiles'!L26417*L$4 -> 250.9472603 | M117: 112198.4673
A118: 2023 | B118: ='Hourly Load Profiles'!B26418 -> 1 | C118: ='Hourly Load Profiles'!C26418 -> 5 | D118: ='Hourly Load Profiles'!D26418 -> 16 | E118: ='Hourly Load Profiles'!E26418*E$4 -> 31536.12844 | F118: ='Hourly Load Profiles'!F26418*F$4 -> 11062.00013 | G118: ='Hourly Load Profiles'!G26418*G$4 -> 21933.75306 | H118: ='Hourly Load Profiles'!H26418*H$4 -> 11650.60211 | I118: ='Hourly Load Profiles'!I26418*I$4 -> 36394.07074 | J118: ='Hourly Load Profiles'!J26418*J$4 -> 0 | K118: ='Hourly Load Profiles'!K26418*K$4 -> 0 | L118: ='Hourly Load Profiles'!L26418*L$4 -> 250.9472603 | M118: 112827.5017
A119: 2023 | B119: ='Hourly Load Profiles'!B26419 -> 1 | C119: ='Hourly Load Profiles'!C26419 -> 5 | D119: ='Hourly Load Profiles'!D26419 -> 17 | E119: ='Hourly Load Profiles'!E26419*E$4 -> 34028.59618 | F119: ='Hourly Load Profiles'!F26419*F$4 -> 11040.90569 | G119: ='Hourly Load Profiles'!G26419*G$4 -> 23015.24606 | H119: ='Hourly Load Profiles'!H26419*H$4 -> 11633.592 | I119: ='Hourly Load Profiles'!I26419*I$4 -> 36821.32326 | J119: ='Hourly Load Profiles'!J26419*J$4 -> 0 | K119: ='Hourly Load Profiles'!K26419*K$4 -> 0 | L119: ='Hourly Load Profiles'!L26419*L$4 -> 250.9472603 | M119: 116790.6104
A120: 2023 | B120: ='Hourly Load Profiles'!B26420 -> 1 | C120: ='Hourly Load Profiles'!C26420 -> 5 | D120: ='Hourly Load Profiles'!D26420 -> 18 | E120: ='Hourly Load Profiles'!E26420*E$4 -> 38434.82957 | F120: ='Hourly Load Profiles'!F26420*F$4 -> 11738.73103 | G120: ='Hourly Load Profiles'!G26420*G$4 -> 25061.27731 | H120: ='Hourly Load Profiles'!H26420*H$4 -> 11605.73857 | I120: ='Hourly Load Profiles'!I26420*I$4 -> 36961.2738 | J120: ='Hourly Load Profiles'!J26420*J$4 -> 454.4705257 | K120: ='Hourly Load Profiles'!K26420*K$4 -> 62.52758391 | L120: ='Hourly Load Profiles'!L26420*L$4 -> 250.9472603 | M120: 124569.7956
A121: 2023 | B121: ='Hourly Load Profiles'!B26421 -> 1 | C121: ='Hourly Load Profiles'!C26421 -> 5 | D121: ='Hourly Load Profiles'!D26421 -> 19 | E121: ='Hourly Load Profiles'!E26421*E$4 -> 38970.64167 | F121: ='Hourly Load Profiles'!F26421*F$4 -> 11752.68845 | G121: ='Hourly Load Profiles'!G26421*G$4 -> 25330.5641 | H121: ='Hourly Load Profiles'!H26421*H$4 -> 11831.8671 | I121: ='Hourly Load Profiles'!I26421*I$4 -> 37450.66006 | J121: ='Hourly Load Profiles'!J26421*J$4 -> 710.1101965 | K121: ='Hourly Load Profiles'!K26421*K$4 -> 97.69934986 | L121: ='Hourly Load Profiles'!L26421*L$4 -> 250.9472603 | M121: 126395.1782
A122: 2023 | B122: ='Hourly Load Profiles'!B26422 -> 1 | C122: ='Hourly Load Profiles'!C26422 -> 5 | D122: ='Hourly Load Profiles'!D26422 -> 20 | E122: ='Hourly Load Profiles'!E26422*E$4 -> 37357.7973 | F122: ='Hourly Load Profiles'!F26422*F$4 -> 11495.82461 | G122: ='Hourly Load Profiles'!G26422*G$4 -> 24490.15897 | H122: ='Hourly Load Profiles'!H26422*H$4 -> 11823.03034 | I122: ='Hourly Load Profiles'!I26422*I$4 -> 37074.29914 | J122: ='Hourly Load Profiles'!J26422*J$4 -> 710.1101965 | K122: ='Hourly Load Profiles'!K26422*K$4 -> 97.69934986 | L122: ='Hourly Load Profiles'!L26422*L$4 -> 250.9472603 | M122: 123299.8672
A123: 2023 | B123: ='Hourly Load Profiles'!B26423 -> 1 | C123: ='Hourly Load Profiles'!C26423 -> 5 | D123: ='Hourly Load Profiles'!D26423 -> 21 | E123: ='Hourly Load Profiles'!E26423*E$4 -> 36024.00191 | F123: ='Hourly Load Profiles'!F26423*F$4 -> 11207.52528 | G123: ='Hourly Load Profiles'!G26423*G$4 -> 23780.47322 | H123: ='Hourly Load Profiles'!H26423*H$4 -> 11895.96613 | I123: ='Hourly Load Profiles'!I26423*I$4 -> 36856.94703 | J123: ='Hourly Load Profiles'!J26423*J$4 -> 710.1101965 | K123: ='Hourly Load Profiles'!K26423*K$4 -> 97.69934986 | L123: ='Hourly Load Profiles'!L26423*L$4 -> 250.9472603 | M123: 120823.6704
A124: 2023 | B124: ='Hourly Load Profiles'!B26424 -> 1 | C124: ='Hourly Load Profiles'!C26424 -> 5 | D124: ='Hourly Load Profiles'!D26424 -> 22 | E124: ='Hourly Load Profiles'!E26424*E$4 -> 34104.10266 | F124: ='Hourly Load Profiles'!F26424*F$4 -> 10651.55238 | G124: ='Hourly Load Profiles'!G26424*G$4 -> 22688.23137 | H124: ='Hourly Load Profiles'!H26424*H$4 -> 11817.15724 | I124: ='Hourly Load Profiles'!I26424*I$4 -> 36850.89667 | J124: ='Hourly Load Profiles'!J26424*J$4 -> 710.1101965 | K124: ='Hourly Load Profiles'!K26424*K$4 -> 97.69934986 | L124: ='Hourly Load Profiles'!L26424*L$4 -> 250.9472603 | M124: 117170.6971
A125: 2023 | B125: ='Hourly Load Profiles'!B26425 -> 1 | C125: ='Hourly Load Profiles'!C26425 -> 5 | D125: ='Hourly Load Profiles'!D26425 -> 23 | E125: ='Hourly Load Profiles'!E26425*E$4 -> 31520.51438 | F125: ='Hourly Load Profiles'!F26425*F$4 -> 10142.11563 | G125: ='Hourly Load Profiles'!G26425*G$4 -> 21202.71333 | H125: ='Hourly Load Profiles'!H26425*H$4 -> 11700.45558 | I125: ='Hourly Load Profiles'!I26425*I$4 -> 36975.418 | J125: ='Hourly Load Profiles'!J26425*J$4 -> 710.1101965 | K125: ='Hourly Load Profiles'!K26425*K$4 -> 97.69934986 | L125: ='Hourly Load Profiles'!L26425*L$4 -> 250.9472603 | M125: 112599.9737
A126: 2023 | B126: ='Hourly Load Profiles'!B26426 -> 1 | C126: ='Hourly Load Profiles'!C26426 -> 5 | D126: ='Hourly Load Profiles'!D26426 -> 24 | E126: ='Hourly Load Profiles'!E26426*E$4 -> 27666.68666 | F126: ='Hourly Load Profiles'!F26426*F$4 -> 9725.769525 | G126: ='Hourly Load Profiles'!G26426*G$4 -> 19458.22816 | H126: ='Hourly Load Profiles'!H26426*H$4 -> 11626.52946 | I126: ='Hourly Load Profiles'!I26426*I$4 -> 36014.02616 | J126: ='Hourly Load Profiles'!J26426*J$4 -> 710.1101965 | K126: ='Hourly Load Profiles'!K26426*K$4 -> 97.69934986 | L126: ='Hourly Load Profiles'!L26426*L$4 -> 250.9472603 | M126: 105549.9968
A127: 2023 | B127: ='Hourly Load Profiles'!B26427 -> 1 | C127: ='Hourly Load Profiles'!C26427 -> 6 | D127: ='Hourly Load Profiles'!D26427 -> 1 | E127: ='Hourly Load Profiles'!E26427*E$4 -> 23858.36792 | F127: ='Hourly Load Profiles'!F26427*F$4 -> 9350.351946 | G127: ='Hourly Load Profiles'!G26427*G$4 -> 17691.50107 | H127: ='Hourly Load Profiles'!H26427*H$4 -> 11212.42171 | I127: ='Hourly Load Profiles'!I26427*I$4 -> 35809.20883 | J127: ='Hourly Load Profiles'!J26427*J$4 -> 710.1101965 | K127: ='Hourly Load Profiles'!K26427*K$4 -> 97.69934986 | L127: ='Hourly Load Profiles'!L26427*L$4 -> 250.9472603 | M127: 98980.60827
A128: 2023 | B128: ='Hourly Load Profiles'!B26428 -> 1 | C128: ='Hourly Load Profiles'!C26428 -> 6 | D128: ='Hourly Load Profiles'!D26428 -> 2 | E128: ='Hourly Load Profiles'!E26428*E$4 -> 21745.92471 | F128: ='Hourly Load Profiles'!F26428*F$4 -> 9179.479041 | G128: ='Hourly Load Profiles'!G26428*G$4 -> 16816.09071 | H128: ='Hourly Load Profiles'!H26428*H$4 -> 11287.67934 | I128: ='Hourly Load Profiles'!I26428*I$4 -> 35957.08349 | J128: ='Hourly Load Profiles'!J26428*J$4 -> 710.1101965 | K128: ='Hourly Load Profiles'!K26428*K$4 -> 97.69934986 | L128: ='Hourly Load Profiles'!L26428*L$4 -> 250.9472603 | M128: 96045.0141
A129: 2023 | B129: ='Hourly Load Profiles'!B26429 -> 1 | C129: ='Hourly Load Profiles'!C26429 -> 6 | D129: ='Hourly Load Profiles'!D26429 -> 3 | E129: ='Hourly Load Profiles'!E26429*E$4 -> 20497.28651 | F129: ='Hourly Load Profiles'!F26429*F$4 -> 9004.292565 | G129: ='Hourly Load Profiles'!G26429*G$4 -> 16261.16894 | H129: ='Hourly Load Profiles'!H26429*H$4 -> 11193.92151 | I129: ='Hourly Load Profiles'!I26429*I$4 -> 36002.4682 | J129: ='Hourly Load Profiles'!J26429*J$4 -> 710.1101965 | K129: ='Hourly Load Profiles'!K26429*K$4 -> 97.69934986 | L129: ='Hourly Load Profiles'!L26429*L$4 -> 250.9472603 | M129: 94017.89452
A130: 2023 | B130: ='Hourly Load Profiles'!B26430 -> 1 | C130: ='Hourly Load Profiles'!C26430 -> 6 | D130: ='Hourly Load Profiles'!D26430 -> 4 | E130: ='Hourly Load Profiles'!E26430*E$4 -> 19960.71227 | F130: ='Hourly Load Profiles'!F26430*F$4 -> 8970.859773 | G130: ='Hourly Load Profiles'!G26430*G$4 -> 16010.65926 | H130: ='Hourly Load Profiles'!H26430*H$4 -> 11463.74215 | I130: ='Hourly Load Profiles'!I26430*I$4 -> 36056.5479 | J130: ='Hourly Load Profiles'!J26430*J$4 -> 710.1101965 | K130: ='Hourly Load Profiles'!K26430*K$4 -> 97.69934986 | L130: ='Hourly Load Profiles'!L26430*L$4 -> 250.9472603 | M130: 93521.27816
A131: 2023 | B131: ='Hourly Load Profiles'!B26431 -> 1 | C131: ='Hourly Load Profiles'!C26431 -> 6 | D131: ='Hourly Load Profiles'!D26431 -> 5 | E131: ='Hourly Load Profiles'!E26431*E$4 -> 19891.81758 | F131: ='Hourly Load Profiles'!F26431*F$4 -> 9032.169375 | G131: ='Hourly Load Profiles'!G26431*G$4 -> 16162.56863 | H131: ='Hourly Load Profiles'!H26431*H$4 -> 11744.34193 | I131: ='Hourly Load Profiles'!I26431*I$4 -> 35941.66715 | J131: ='Hourly Load Profiles'!J26431*J$4 -> 710.1101965 | K131: ='Hourly Load Profiles'!K26431*K$4 -> 97.69934986 | L131: ='Hourly Load Profiles'!L26431*L$4 -> 250.9472603 | M131: 93831.32148
A132: 2023 | B132: ='Hourly Load Profiles'!B26432 -> 1 | C132: ='Hourly Load Profiles'!C26432 -> 6 | D132: ='Hourly Load Profiles'!D26432 -> 6 | E132: ='Hourly Load Profiles'!E26432*E$4 -> 20664.80431 | F132: ='Hourly Load Profiles'!F26432*F$4 -> 9131.237378 | G132: ='Hourly Load Profiles'!G26432*G$4 -> 16574.08931 | H132: ='Hourly Load Profiles'!H26432*H$4 -> 11809.31137 | I132: ='Hourly Load Profiles'!I26432*I$4 -> 35780.0833 | J132: ='Hourly Load Profiles'!J26432*J$4 -> 710.1101965 | K132: ='Hourly Load Profiles'!K26432*K$4 -> 97.69934986 | L132: ='Hourly Load Profiles'!L26432*L$4 -> 250.9472603 | M132: 95018.28248
A133: 2023 | B133: ='Hourly Load Profiles'!B26433 -> 1 | C133: ='Hourly Load Profiles'!C26433 -> 6 | D133: ='Hourly Load Profiles'!D26433 -> 7 | E133: ='Hourly Load Profiles'!E26433*E$4 -> 21779.93435 | F133: ='Hourly Load Profiles'!F26433*F$4 -> 9330.218676 | G133: ='Hourly Load Profiles'!G26433*G$4 -> 17399.71305 | H133: ='Hourly Load Profiles'!H26433*H$4 -> 11663.51767 | I133: ='Hourly Load Profiles'!I26433*I$4 -> 35730.07269 | J133: ='Hourly Load Profiles'!J26433*J$4 -> 710.1101965 | K133: ='Hourly Load Profiles'!K26433*K$4 -> 97.69934986 | L133: ='Hourly Load Profiles'!L26433*L$4 -> 250.9472603 | M133: 96962.21324
A134: 2023 | B134: ='Hourly Load Profiles'!B26434 -> 1 | C134: ='Hourly Load Profiles'!C26434 -> 6 | D134: ='Hourly Load Profiles'!D26434 -> 8 | E134: ='Hourly Load Profiles'!E26434*E$4 -> 23938.81573 | F134: ='Hourly Load Profiles'!F26434*F$4 -> 9623.979051 | G134: ='Hourly Load Profiles'!G26434*G$4 -> 18580.02849 | H134: ='Hourly Load Profiles'!H26434*H$4 -> 11339.79816 | I134: ='Hourly Load Profiles'!I26434*I$4 -> 35866.00634 | J134: ='Hourly Load Profiles'!J26434*J$4 -> 667.5035847 | K134: ='Hourly Load Profiles'!K26434*K$4 -> 91.83738887 | L134: ='Hourly Load Profiles'!L26434*L$4 -> 250.9472603 | M134: 100358.916
A135: 2023 | B135: ='Hourly Load Profiles'!B26435 -> 1 | C135: ='Hourly Load Profiles'!C26435 -> 6 | D135: ='Hourly Load Profiles'!D26435 -> 9 | E135: ='Hourly Load Profiles'!E26435*E$4 -> 27214.55278 | F135: ='Hourly Load Profiles'!F26435*F$4 -> 9491.738683 | G135: ='Hourly Load Profiles'!G26435*G$4 -> 19732.15574 | H135: ='Hourly Load Profiles'!H26435*H$4 -> 11210.10738 | I135: ='Hourly Load Profiles'!I26435*I$4 -> 34886.28418 | J135: ='Hourly Load Profiles'!J26435*J$4 -> 0 | K135: ='Hourly Load Profiles'!K26435*K$4 -> 0 | L135: ='Hourly Load Profiles'!L26435*L$4 -> 250.9472603 | M135: 102785.786
A136: 2023 | B136: ='Hourly Load Profiles'!B26436 -> 1 | C136: ='Hourly Load Profiles'!C26436 -> 6 | D136: ='Hourly Load Profiles'!D26436 -> 10 | E136: ='Hourly Load Profiles'!E26436*E$4 -> 29099.20533 | F136: ='Hourly Load Profiles'!F26436*F$4 -> 9897.484931 | G136: ='Hourly Load Profiles'!G26436*G$4 -> 20580.274 | H136: ='Hourly Load Profiles'!H26436*H$4 -> 10703.49224 | I136: ='Hourly Load Profiles'!I26436*I$4 -> 34635.75725 | J136: ='Hourly Load Profiles'!J26436*J$4 -> 0 | K136: ='Hourly Load Profiles'!K26436*K$4 -> 0 | L136: ='Hourly Load Profiles'!L26436*L$4 -> 250.9472603 | M136: =SUM(E136:L136) -> 105167.161
A137: 2023 | B137: ='Hourly Load Profiles'!B26437 -> 1 | C137: ='Hourly Load Profiles'!C26437 -> 6 | D137: ='Hourly Load Profiles'!D26437 -> 11 | E137: ='Hourly Load Profiles'!E26437*E$4 -> 30654.52065 | F137: ='Hourly Load Profiles'!F26437*F$4 -> 10580.8046 | G137: ='Hourly Load Profiles'!G26437*G$4 -> 21387.61476 | H137: ='Hourly Load Profiles'!H26437*H$4 -> 10687.89827 | I137: ='Hourly Load Profiles'!I26437*I$4 -> 34612.0907 | J137: ='Hourly Load Profiles'!J26437*J$4 -> 0 | K137: ='Hourly Load Profiles'!K26437*K$4 -> 0 | L137: ='Hourly Load Profiles'!L26437*L$4 -> 250.9472603 | M137: 108173.8762
A138: =A137 -> 2023 | B138: ='Hourly Load Profiles'!B26438 -> 1 | C138: ='Hourly Load Profiles'!C26438 -> 6 | D138: ='Hourly Load Profiles'!D26438 -> 12 | E138: ='Hourly Load Profiles'!E26438*E$4 -> 32252.48352 | F138: ='Hourly Load Profiles'!F26438*F$4 -> 11004.34989 | G138: ='Hourly Load Profiles'!G26438*G$4 -> 22252.90273 | H138: ='Hourly Load Profiles'!H26438*H$4 -> 10648.71115 | I138: ='Hourly Load Profiles'!I26438*I$4 -> 34727.76806 | J138: ='Hourly Load Profiles'!J26438*J$4 -> 0 | K138: ='Hourly Load Profiles'!K26438*K$4 -> 0 | L138: ='Hourly Load Profiles'!L26438*L$4 -> 250.9472603 | M138: 111137.1626
A139: 2023 | B139: ='Hourly Load Profiles'!B26439 -> 1 | C139: ='Hourly Load Profiles'!C26439 -> 6 | D139: ='Hourly Load Profiles'!D26439 -> 13 | E139: ='Hourly Load Profiles'!E26439*E$4 -> 33331.38299 | F139: ='Hourly Load Profiles'!F26439*F$4 -> 10791.21983 | G139: ='Hourly Load Profiles'!G26439*G$4 -> 22571.11001 | H139: ='Hourly Load Profiles'!H26439*H$4 -> 10977.19556 | I139: ='Hourly Load Profiles'!I26439*I$4 -> 34496.6405 | J139: ='Hourly Load Profiles'!J26439*J$4 -> 0 | K139: ='Hourly Load Profiles'!K26439*K$4 -> 0 | L139: ='Hourly Load Profiles'!L26439*L$4 -> 250.9472603 | M139: 112418.4962
A140: 2023 | B140: ='Hourly Load Profiles'!B26440 -> 1 | C140: ='Hourly Load Profiles'!C26440 -> 6 | D140: ='Hourly Load Profiles'!D26440 -> 14 | E140: ='Hourly Load Profiles'!E26440*E$4 -> 33951.88501 | F140: ='Hourly Load Profiles'!F26440*F$4 -> 10755.17876 | G140: ='Hourly Load Profiles'!G26440*G$4 -> 22856.13479 | H140: ='Hourly Load Profiles'!H26440*H$4 -> 10932.22505 | I140: ='Hourly Load Profiles'!I26440*I$4 -> 34449.12841 | J140: ='Hourly Load Profiles'!J26440*J$4 -> 0 | K140: ='Hourly Load Profiles'!K26440*K$4 -> 0 | L140: ='Hourly Load Profiles'!L26440*L$4 -> 250.9472603 | M140: 113195.4993
A141: 2023 | B141: ='Hourly Load Profiles'!B26441 -> 1 | C141: ='Hourly Load Profiles'!C26441 -> 6 | D141: ='Hourly Load Profiles'!D26441 -> 15 | E141: ='Hourly Load Profiles'!E26441*E$4 -> 34350.08919 | F141: ='Hourly Load Profiles'!F26441*F$4 -> 10740.3087 | G141: ='Hourly Load Profiles'!G26441*G$4 -> 22885.36809 | H141: ='Hourly Load Profiles'!H26441*H$4 -> 10920.69711 | I141: ='Hourly Load Profiles'!I26441*I$4 -> 34417.04814 | J141: ='Hourly Load Profiles'!J26441*J$4 -> 0 | K141: ='Hourly Load Profiles'!K26441*K$4 -> 0 | L141: ='Hourly Load Profiles'!L26441*L$4 -> 250.9472603 | M141: 113564.4585
A142: 2023 | B142: ='Hourly Load Profiles'!B26442 -> 1 | C142: ='Hourly Load Profiles'!C26442 -> 6 | D142: ='Hourly Load Profiles'!D26442 -> 16 | E142: ='Hourly Load Profiles'!E26442*E$4 -> 35497.04434 | F142: ='Hourly Load Profiles'!F26442*F$4 -> 10765.86062 | G142: ='Hourly Load Profiles'!G26442*G$4 -> 23378.14253 | H142: ='Hourly Load Profiles'!H26442*H$4 -> 11245.47131 | I142: ='Hourly Load Profiles'!I26442*I$4 -> 34590.20187 | J142: ='Hourly Load Profiles'!J26442*J$4 -> 0 | K142: ='Hourly Load Profiles'!K26442*K$4 -> 0 | L142: ='Hourly Load Profiles'!L26442*L$4 -> 250.9472603 | M142: 115727.6679
A143: 2023 | B143: ='Hourly Load Profiles'!B26443 -> 1 | C143: ='Hourly Load Profiles'!C26443 -> 6 | D143: ='Hourly Load Profiles'!D26443 -> 17 | E143: ='Hourly Load Profiles'!E26443*E$4 -> 39689.44429 | F143: ='Hourly Load Profiles'!F26443*F$4 -> 10970.54121 | G143: ='Hourly Load Profiles'!G26443*G$4 -> 25409.21271 | H143: ='Hourly Load Profiles'!H26443*H$4 -> 11189.15847 | I143: ='Hourly Load Profiles'!I26443*I$4 -> 35275.93215 | J143: ='Hourly Load Profiles'!J26443*J$4 -> 0 | K143: ='Hourly Load Profiles'!K26443*K$4 -> 0 | L143: ='Hourly Load Profiles'!L26443*L$4 -> 250.9472603 | M143: 122785.2361
A144: 2023 | B144: ='Hourly Load Profiles'!B26444 -> 1 | C144: ='Hourly Load Profiles'!C26444 -> 6 | D144: ='Hourly Load Profiles'!D26444 -> 18 | E144: ='Hourly Load Profiles'!E26444*E$4 -> 43820.4353 | F144: ='Hourly Load Profiles'!F26444*F$4 -> 11362.42886 | G144: ='Hourly Load Profiles'!G26444*G$4 -> 27305.187 | H144: ='Hourly Load Profiles'!H26444*H$4 -> 11087.03004 | I144: ='Hourly Load Profiles'!I26444*I$4 -> 36169.27171 | J144: ='Hourly Load Profiles'!J26444*J$4 -> 454.4705257 | K144: ='Hourly Load Profiles'!K26444*K$4 -> 62.52758391 | L144: ='Hourly Load Profiles'!L26444*L$4 -> 250.9472603 | M144: 130512.2983
A145: 2023 | B145: ='Hourly Load Profiles'!B26445 -> 1 | C145: ='Hourly Load Profiles'!C26445 -> 6 | D145: ='Hourly Load Profiles'!D26445 -> 19 | E145: ='Hourly Load Profiles'!E26445*E$4 -> 42526.50373 | F145: ='Hourly Load Profiles'!F26445*F$4 -> 11179.14867 | G145: ='Hourly Load Profiles'!G26445*G$4 -> 26577.91947 | H145: ='Hourly Load Profiles'!H26445*H$4 -> 11490.93292 | I145: ='Hourly Load Profiles'!I26445*I$4 -> 36266.94149 | J145: ='Hourly Load Profiles'!J26445*J$4 -> 710.1101965 | K145: ='Hourly Load Profiles'!K26445*K$4 -> 97.69934986 | L145: ='Hourly Load Profiles'!L26445*L$4 -> 250.9472603 | M145: 129100.2031
A146: 2023 | B146: ='Hourly Load Profiles'!B26446 -> 1 | C146: ='Hourly Load Profiles'!C26446 -> 6 | D146: ='Hourly Load Profiles'!D26446 -> 20 | E146: ='Hourly Load Profiles'!E26446*E$4 -> 40903.00595 | F146: ='Hourly Load Profiles'!F26446*F$4 -> 10983.22484 | G146: ='Hourly Load Profiles'!G26446*G$4 -> 25629.78008 | H146: ='Hourly Load Profiles'!H26446*H$4 -> 11290.68918 | I146: ='Hourly Load Profiles'!I26446*I$4 -> 36171.94947 | J146: ='Hourly Load Profiles'!J26446*J$4 -> 710.1101965 | K146: ='Hourly Load Profiles'!K26446*K$4 -> 97.69934986 | L146: ='Hourly Load Profiles'!L26446*L$4 -> 250.9472603 | M146: 126037.4063
A147: 2023 | B147: ='Hourly Load Profiles'!B26447 -> 1 | C147: ='Hourly Load Profiles'!C26447 -> 6 | D147: ='Hourly Load Profiles'!D26447 -> 21 | E147: ='Hourly Load Profiles'!E26447*E$4 -> 39367.00848 | F147: ='Hourly Load Profiles'!F26447*F$4 -> 10655.71687 | G147: ='Hourly Load Profiles'!G26447*G$4 -> 24781.66164 | H147: ='Hourly Load Profiles'!H26447*H$4 -> 11423.3181 | I147: ='Hourly Load Profiles'!I26447*I$4 -> 36445.15613 | J147: ='Hourly Load Profiles'!J26447*J$4 -> 710.1101965 | K147: ='Hourly Load Profiles'!K26447*K$4 -> 97.69934986 | L147: ='Hourly Load Profiles'!L26447*L$4 -> 250.9472603 | M147: 123731.618
A148: 2023 | B148: ='Hourly Load Profiles'!B26448 -> 1 | C148: ='Hourly Load Profiles'!C26448 -> 6 | D148: ='Hourly Load Profiles'!D26448 -> 22 | E148: ='Hourly Load Profiles'!E26448*E$4 -> 36090.92484 | F148: ='Hourly Load Profiles'!F26448*F$4 -> 10384.86762 | G148: ='Hourly Load Profiles'!G26448*G$4 -> 23312.41219 | H148: ='Hourly Load Profiles'!H26448*H$4 -> 11841.00788 | I148: ='Hourly Load Profiles'!I26448*I$4 -> 36708.89217 | J148: ='Hourly Load Profiles'!J26448*J$4 -> 710.1101965 | K148: ='Hourly Load Profiles'!K26448*K$4 -> 97.69934986 | L148: ='Hourly Load Profiles'!L26448*L$4 -> 250.9472603 | M148: 119396.8615
A149: 2023 | B149: ='Hourly Load Profiles'!B26449 -> 1 | C149: ='Hourly Load Profiles'!C26449 -> 6 | D149: ='Hourly Load Profiles'!D26449 -> 23 | E149: ='Hourly Load Profiles'!E26449*E$4 -> 31650.15342 | F149: ='Hourly Load Profiles'!F26449*F$4 -> 9988.674484 | G149: ='Hourly Load Profiles'!G26449*G$4 -> 21395.66533 | H149: ='Hourly Load Profiles'!H26449*H$4 -> 11929.74896 | I149: ='Hourly Load Profiles'!I26449*I$4 -> 36922.16994 | J149: ='Hourly Load Profiles'!J26449*J$4 -> 710.1101965 | K149: ='Hourly Load Profiles'!K26449*K$4 -> 97.69934986 | L149: ='Hourly Load Profiles'!L26449*L$4 -> 250.9472603 | M149: 112945.1689
A150: 2023 | B150: ='Hourly Load Profiles'!B26450 -> 1 | C150: ='Hourly Load Profiles'!C26450 -> 6 | D150: ='Hourly Load Profiles'!D26450 -> 24 | E150: ='Hourly Load Profiles'!E26450*E$4 -> 27128.50835 | F150: ='Hourly Load Profiles'!F26450*F$4 -> 9717.707431 | G150: ='Hourly Load Profiles'!G26450*G$4 -> 19502.8488 | H150: ='Hourly Load Profiles'!H26450*H$4 -> 12442.33722 | I150: ='Hourly Load Profiles'!I26450*I$4 -> 37085.45689 | J150: ='Hourly Load Profiles'!J26450*J$4 -> 710.1101965 | K150: ='Hourly Load Profiles'!K26450*K$4 -> 97.69934986 | L150: ='Hourly Load Profiles'!L26450*L$4 -> 250.9472603 | M150: 106935.6155
A151: 2023 | B151: ='Hourly Load Profiles'!B26451 -> 1 | C151: ='Hourly Load Profiles'!C26451 -> 7 | D151: ='Hourly Load Profiles'!D26451 -> 1 | E151: ='Hourly Load Profiles'!E26451*E$4 -> 23532.20204 | F151: ='Hourly Load Profiles'!F26451*F$4 -> 9447.767048 | G151: ='Hourly Load Profiles'!G26451*G$4 -> 17887.51884 | H151: ='Hourly Load Profiles'!H26451*H$4 -> 12426.68977 | I151: ='Hourly Load Profiles'!I26451*I$4 -> 37310.07214 | J151: ='Hourly Load Profiles'!J26451*J$4 -> 710.1101965 | K151: ='Hourly Load Profiles'!K26451*K$4 -> 97.69934986 | L151: ='Hourly Load Profiles'!L26451*L$4 -> 250.9472603 | M151: 101663.0067
A152: 2023 | B152: ='Hourly Load Profiles'!B26452 -> 1 | C152: ='Hourly Load Profiles'!C26452 -> 7 | D152: ='Hourly Load Profiles'!D26452 -> 2 | E152: ='Hourly Load Profiles'!E26452*E$4 -> 21952.25847 | F152: ='Hourly Load Profiles'!F26452*F$4 -> 9432.077427 | G152: ='Hourly Load Profiles'!G26452*G$4 -> 17242.26277 | H152: ='Hourly Load Profiles'!H26452*H$4 -> 12383.27278 | I152: ='Hourly Load Profiles'!I26452*I$4 -> 37005.67503 | J152: ='Hourly Load Profiles'!J26452*J$4 -> 710.1101965 | K152: ='Hourly Load Profiles'!K26452*K$4 -> 97.69934986 | L152: ='Hourly Load Profiles'!L26452*L$4 -> 250.9472603 | M152: 99074.30327
A153: 2023 | B153: ='Hourly Load Profiles'!B26453 -> 1 | C153: ='Hourly Load Profiles'!C26453 -> 7 | D153: ='Hourly Load Profiles'!D26453 -> 3 | E153: ='Hourly Load Profiles'!E26453*E$4 -> 21360.32682 | F153: ='Hourly Load Profiles'!F26453*F$4 -> 9330.243548 | G153: ='Hourly Load Profiles'!G26453*G$4 -> 17066.13616 | H153: ='Hourly Load Profiles'!H26453*H$4 -> 12803.22829 | I153: ='Hourly Load Profiles'!I26453*I$4 -> 37242.59146 | J153: ='Hourly Load Profiles'!J26453*J$4 -> 710.1101965 | K153: ='Hourly Load Profiles'!K26453*K$4 -> 97.69934986 | L153: ='Hourly Load Profiles'!L26453*L$4 -> 250.9472603 | M153: 98861.28308
A154: 2023 | B154: ='Hourly Load Profiles'!B26454 -> 1 | C154: ='Hourly Load Profiles'!C26454 -> 7 | D154: ='Hourly Load Profiles'!D26454 -> 4 | E154: ='Hourly Load Profiles'!E26454*E$4 -> 21205.06868 | F154: ='Hourly Load Profiles'!F26454*F$4 -> 9379.877917 | G154: ='Hourly Load Profiles'!G26454*G$4 -> 17071.51473 | H154: ='Hourly Load Profiles'!H26454*H$4 -> 12482.67776 | I154: ='Hourly Load Profiles'!I26454*I$4 -> 37543.25868 | J154: ='Hourly Load Profiles'!J26454*J$4 -> 710.1101965 | K154: ='Hourly Load Profiles'!K26454*K$4 -> 97.69934986 | L154: ='Hourly Load Profiles'!L26454*L$4 -> 250.9472603 | M154: 98741.15457
A155: 2023 | B155: ='Hourly Load Profiles'!B26455 -> 1 | C155: ='Hourly Load Profiles'!C26455 -> 7 | D155: ='Hourly Load Profiles'!D26455 -> 5 | E155: ='Hourly Load Profiles'!E26455*E$4 -> 21559.36553 | F155: ='Hourly Load Profiles'!F26455*F$4 -> 9472.505876 | G155: ='Hourly Load Profiles'!G26455*G$4 -> 17379.03658 | H155: ='Hourly Load Profiles'!H26455*H$4 -> 12283.28753 | I155: ='Hourly Load Profiles'!I26455*I$4 -> 36783.16475 | J155: ='Hourly Load Profiles'!J26455*J$4 -> 710.1101965 | K155: ='Hourly Load Profiles'!K26455*K$4 -> 97.69934986 | L155: ='Hourly Load Profiles'!L26455*L$4 -> 250.9472603 | M155: 98536.11708
A156: 2023 | B156: ='Hourly Load Profiles'!B26456 -> 1 | C156: ='Hourly Load Profiles'!C26456 -> 7 | D156: ='Hourly Load Profiles'!D26456 -> 6 | E156: ='Hourly Load Profiles'!E26456*E$4 -> 23203.73317 | F156: ='Hourly Load Profiles'!F26456*F$4 -> 9753.432224 | G156: ='Hourly Load Profiles'!G26456*G$4 -> 18387.93373 | H156: ='Hourly Load Profiles'!H26456*H$4 -> 12352.6214 | I156: ='Hourly Load Profiles'!I26456*I$4 -> 36554.52069 | J156: ='Hourly Load Profiles'!J26456*J$4 -> 710.1101965 | K156: ='Hourly Load Profiles'!K26456*K$4 -> 97.69934986 | L156: ='Hourly Load Profiles'!L26456*L$4 -> 250.9472603 | M156: 101310.998
A157: 2023 | B157: ='Hourly Load Profiles'!B26457 -> 1 | C157: ='Hourly Load Profiles'!C26457 -> 7 | D157: ='Hourly Load Profiles'!D26457 -> 7 | E157: ='Hourly Load Profiles'!E26457*E$4 -> 26314.04827 | F157: ='Hourly Load Profiles'!F26457*F$4 -> 10589.94472 | G157: ='Hourly Load Profiles'!G26457*G$4 -> 20510.68865 | H157: ='Hourly Load Profiles'!H26457*H$4 -> 13109.82845 | I157: ='Hourly Load Profiles'!I26457*I$4 -> 36785.5398 | J157: ='Hourly Load Profiles'!J26457*J$4 -> 710.1101965 | K157: ='Hourly Load Profiles'!K26457*K$4 -> 97.69934986 | L157: ='Hourly Load Profiles'!L26457*L$4 -> 250.9472603 | M157: 108368.8067
A158: 2023 | B158: ='Hourly Load Profiles'!B26458 -> 1 | C158: ='Hourly Load Profiles'!C26458 -> 7 | D158: ='Hourly Load Profiles'!D26458 -> 8 | E158: ='Hourly Load Profiles'!E26458*E$4 -> 28909.1594 | F158: ='Hourly Load Profiles'!F26458*F$4 -> 12373.34029 | G158: ='Hourly Load Profiles'!G26458*G$4 -> 23222.94514 | H158: ='Hourly Load Profiles'!H26458*H$4 -> 13044.31515 | I158: ='Hourly Load Profiles'!I26458*I$4 -> 36922.20093 | J158: ='Hourly Load Profiles'!J26458*J$4 -> 667.5035847 | K158: ='Hourly Load Profiles'!K26458*K$4 -> 91.83738887 | L158: ='Hourly Load Profiles'!L26458*L$4 -> 250.9472603 | M158: 115482.2491
A159: 2023 | B159: ='Hourly Load Profiles'!B26459 -> 1 | C159: ='Hourly Load Profiles'!C26459 -> 7 | D159: ='Hourly Load Profiles'!D26459 -> 9 | E159: ='Hourly Load Profiles'!E26459*E$4 -> 28751.8386 | F159: ='Hourly Load Profiles'!F26459*F$4 -> 14525.67253 | G159: ='Hourly Load Profiles'!G26459*G$4 -> 24944.25684 | H159: ='Hourly Load Profiles'!H26459*H$4 -> 12826.16554 | I159: ='Hourly Load Profiles'!I26459*I$4 -> 36879.0573 | J159: ='Hourly Load Profiles'!J26459*J$4 -> 0 | K159: ='Hourly Load Profiles'!K26459*K$4 -> 0 | L159: ='Hourly Load Profiles'!L26459*L$4 -> 250.9472603 | M159: 118177.9381
A160: 2023 | B160: ='Hourly Load Profiles'!B26460 -> 1 | C160: ='Hourly Load Profiles'!C26460 -> 7 | D160: ='Hourly Load Profiles'!D26460 -> 10 | E160: ='Hourly Load Profiles'!E26460*E$4 -> 28311.38365 | F160: ='Hourly Load Profiles'!F26460*F$4 -> 15841.31953 | G160: ='Hourly Load Profiles'!G26460*G$4 -> 25130.04294 | H160: ='Hourly Load Profiles'!H26460*H$4 -> 12279.27705 | I160: ='Hourly Load Profiles'!I26460*I$4 -> 36912.29744 | J160: ='Hourly Load Profiles'!J26460*J$4 -> 0 | K160: ='Hourly Load Profiles'!K26460*K$4 -> 0 | L160: ='Hourly Load Profiles'!L26460*L$4 -> 250.9472603 | M160: 118725.2679
A161: 2023 | B161: ='Hourly Load Profiles'!B26461 -> 1 | C161: ='Hourly Load Profiles'!C26461 -> 7 | D161: ='Hourly Load Profiles'!D26461 -> 11 | E161: ='Hourly Load Profiles'!E26461*E$4 -> 28465.48559 | F161: ='Hourly Load Profiles'!F26461*F$4 -> 16304.8817 | G161: ='Hourly Load Profiles'!G26461*G$4 -> 25373.1855 | H161: ='Hourly Load Profiles'!H26461*H$4 -> 12200.88028 | I161: ='Hourly Load Profiles'!I26461*I$4 -> 36211.91739 | J161: ='Hourly Load Profiles'!J26461*J$4 -> 0 | K161: ='Hourly Load Profiles'!K26461*K$4 -> 0 | L161: ='Hourly Load Profiles'!L26461*L$4 -> 250.9472603 | M161: 118807.2977
A162: 2023 | B162: ='Hourly Load Profiles'!B26462 -> 1 | C162: ='Hourly Load Profiles'!C26462 -> 7 | D162: ='Hourly Load Profiles'!D26462 -> 12 | E162: ='Hourly Load Profiles'!E26462*E$4 -> 28894.99281 | F162: ='Hourly Load Profiles'!F26462*F$4 -> 16431.52822 | G162: ='Hourly Load Profiles'!G26462*G$4 -> 25434.11482 | H162: ='Hourly Load Profiles'!H26462*H$4 -> 12897.2847 | I162: ='Hourly Load Profiles'!I26462*I$4 -> 35725.9862 | J162: ='Hourly Load Profiles'!J26462*J$4 -> 0 | K162: ='Hourly Load Profiles'!K26462*K$4 -> 0 | L162: ='Hourly Load Profiles'!L26462*L$4 -> 250.9472603 | M162: 119634.854
A163: 2023 | B163: ='Hourly Load Profiles'!B26463 -> 1 | C163: ='Hourly Load Profiles'!C26463 -> 7 | D163: ='Hourly Load Profiles'!D26463 -> 13 | E163: ='Hourly Load Profiles'!E26463*E$4 -> 28988.03634 | F163: ='Hourly Load Profiles'!F26463*F$4 -> 16208.39352 | G163: ='Hourly Load Profiles'!G26463*G$4 -> 25201.35506 | H163: ='Hourly Load Profiles'!H26463*H$4 -> 13149.4078 | I163: ='Hourly Load Profiles'!I26463*I$4 -> 35915.12691 | J163: ='Hourly Load Profiles'!J26463*J$4 -> 0 | K163: ='Hourly Load Profiles'!K26463*K$4 -> 0 | L163: ='Hourly Load Profiles'!L26463*L$4 -> 250.9472603 | M163: 119713.2669
A164: 2023 | B164: ='Hourly Load Profiles'!B26464 -> 1 | C164: ='Hourly Load Profiles'!C26464 -> 7 | D164: ='Hourly Load Profiles'!D26464 -> 14 | E164: ='Hourly Load Profiles'!E26464*E$4 -> 28694.08549 | F164: ='Hourly Load Profiles'!F26464*F$4 -> 16351.39837 | G164: ='Hourly Load Profiles'!G26464*G$4 -> 25182.33287 | H164: ='Hourly Load Profiles'!H26464*H$4 -> 13064.64062 | I164: ='Hourly Load Profiles'!I26464*I$4 -> 35708.24249 | J164: ='Hourly Load Profiles'!J26464*J$4 -> 0 | K164: ='Hourly Load Profiles'!K26464*K$4 -> 0 | L164: ='Hourly Load Profiles'!L26464*L$4 -> 250.9472603 | M164: 119251.6471
A165: 2023 | B165: ='Hourly Load Profiles'!B26465 -> 1 | C165: ='Hourly Load Profiles'!C26465 -> 7 | D165: ='Hourly Load Profiles'!D26465 -> 15 | E165: ='Hourly Load Profiles'!E26465*E$4 -> 28963.11558 | F165: ='Hourly Load Profiles'!F26465*F$4 -> 16295.29603 | G165: ='Hourly Load Profiles'!G26465*G$4 -> 25298.56642 | H165: ='Hourly Load Profiles'!H26465*H$4 -> 13101.50365 | I165: ='Hourly Load Profiles'!I26465*I$4 -> 35986.82732 | J165: ='Hourly Load Profiles'!J26465*J$4 -> 0 | K165: ='Hourly Load Profiles'!K26465*K$4 -> 0 | L165: ='Hourly Load Profiles'!L26465*L$4 -> 250.9472603 | M165: 119896.2563
A166: 2023 | B166: ='Hourly Load Profiles'!B26466 -> 1 | C166: ='Hourly Load Profiles'!C26466 -> 7 | D166: ='Hourly Load Profiles'!D26466 -> 16 | E166: ='Hourly Load Profiles'!E26466*E$4 -> 30911.3791 | F166: ='Hourly Load Profiles'!F26466*F$4 -> 16122.79926 | G166: ='Hourly Load Profiles'!G26466*G$4 -> 25866.97255 | H166: ='Hourly Load Profiles'!H26466*H$4 -> 13034.40211 | I166: ='Hourly Load Profiles'!I26466*I$4 -> 35725.2008 | J166: ='Hourly Load Profiles'!J26466*J$4 -> 0 | K166: ='Hourly Load Profiles'!K26466*K$4 -> 0 | L166: ='Hourly Load Profiles'!L26466*L$4 -> 250.9472603 | M166: 121911.7011
A167: 2023 | B167: ='Hourly Load Profiles'!B26467 -> 1 | C167: ='Hourly Load Profiles'!C26467 -> 7 | D167: ='Hourly Load Profiles'!D26467 -> 17 | E167: ='Hourly Load Profiles'!E26467*E$4 -> 35934.62546 | F167: ='Hourly Load Profiles'!F26467*F$4 -> 15307.19677 | G167: ='Hourly Load Profiles'!G26467*G$4 -> 27088.4678 | H167: ='Hourly Load Profiles'!H26467*H$4 -> 13087.05372 | I167: ='Hourly Load Profiles'!I26467*I$4 -> 35434.34553 | J167: ='Hourly Load Profiles'!J26467*J$4 -> 0 | K167: ='Hourly Load Profiles'!K26467*K$4 -> 0 | L167: ='Hourly Load Profiles'!L26467*L$4 -> 250.9472603 | M167: 127102.6365
A168: 2023 | B168: ='Hourly Load Profiles'!B26468 -> 1 | C168: ='Hourly Load Profiles'!C26468 -> 7 | D168: ='Hourly Load Profiles'!D26468 -> 18 | E168: ='Hourly Load Profiles'!E26468*E$4 -> 40374.32116 | F168: ='Hourly Load Profiles'!F26468*F$4 -> 13947.46454 | G168: ='Hourly Load Profiles'!G26468*G$4 -> 28108.44215 | H168: ='Hourly Load Profiles'!H26468*H$4 -> 11885.39812 | I168: ='Hourly Load Profiles'!I26468*I$4 -> 35493.26352 | J168: ='Hourly Load Profiles'!J26468*J$4 -> 454.4705257 | K168: ='Hourly Load Profiles'!K26468*K$4 -> 62.52758391 | L168: ='Hourly Load Profiles'!L26468*L$4 -> 250.9472603 | M168: 130576.8349
A169: 2023 | B169: ='Hourly Load Profiles'!B26469 -> 1 | C169: ='Hourly Load Profiles'!C26469 -> 7 | D169: ='Hourly Load Profiles'!D26469 -> 19 | E169: ='Hourly Load Profiles'!E26469*E$4 -> 39131.18769 | F169: ='Hourly Load Profiles'!F26469*F$4 -> 13188.29917 | G169: ='Hourly Load Profiles'!G26469*G$4 -> 27077.36861 | H169: ='Hourly Load Profiles'!H26469*H$4 -> 11264.86295 | I169: ='Hourly Load Profiles'!I26469*I$4 -> 35725.40936 | J169: ='Hourly Load Profiles'!J26469*J$4 -> 710.1101965 | K169: ='Hourly Load Profiles'!K26469*K$4 -> 97.69934986 | L169: ='Hourly Load Profiles'!L26469*L$4 -> 250.9472603 | M169: 127445.8846
A170: 2023 | B170: ='Hourly Load Profiles'!B26470 -> 1 | C170: ='Hourly Load Profiles'!C26470 -> 7 | D170: ='Hourly Load Profiles'!D26470 -> 20 | E170: ='Hourly Load Profiles'!E26470*E$4 -> 38278.31723 | F170: ='Hourly Load Profiles'!F26470*F$4 -> 12586.24004 | G170: ='Hourly Load Profiles'!G26470*G$4 -> 26265.7234 | H170: ='Hourly Load Profiles'!H26470*H$4 -> 11090.63629 | I170: ='Hourly Load Profiles'!I26470*I$4 -> 36327.90844 | J170: ='Hourly Load Profiles'!J26470*J$4 -> 710.1101965 | K170: ='Hourly Load Profiles'!K26470*K$4 -> 97.69934986 | L170: ='Hourly Load Profiles'!L26470*L$4 -> 250.9472603 | M170: 125607.5822
A171: 2023 | B171: ='Hourly Load Profiles'!B26471 -> 1 | C171: ='Hourly Load Profiles'!C26471 -> 7 | D171: ='Hourly Load Profiles'!D26471 -> 21 | E171: ='Hourly Load Profiles'!E26471*E$4 -> 37128.94569 | F171: ='Hourly Load Profiles'!F26471*F$4 -> 11998.76703 | G171: ='Hourly Load Profiles'!G26471*G$4 -> 25307.6647 | H171: ='Hourly Load Profiles'!H26471*H$4 -> 11150.18079 | I171: ='Hourly Load Profiles'!I26471*I$4 -> 36476.41428 | J171: ='Hourly Load Profiles'!J26471*J$4 -> 710.1101965 | K171: ='Hourly Load Profiles'!K26471*K$4 -> 97.69934986 | L171: ='Hourly Load Profiles'!L26471*L$4 -> 250.9472603 | M171: 123120.7293
A172: 2023 | B172: ='Hourly Load Profiles'!B26472 -> 1 | C172: ='Hourly Load Profiles'!C26472 -> 7 | D172: ='Hourly Load Profiles'!D26472 -> 22 | E172: ='Hourly Load Profiles'!E26472*E$4 -> 34067.72756 | F172: ='Hourly Load Profiles'!F26472*F$4 -> 10876.4287 | G172: ='Hourly Load Profiles'!G26472*G$4 -> 23273.27603 | H172: ='Hourly Load Profiles'!H26472*H$4 -> 11347.1028 | I172: ='Hourly Load Profiles'!I26472*I$4 -> 36710.90109 | J172: ='Hourly Load Profiles'!J26472*J$4 -> 710.1101965 | K172: ='Hourly Load Profiles'!K26472*K$4 -> 97.69934986 | L172: ='Hourly Load Profiles'!L26472*L$4 -> 250.9472603 | M172: 117334.193
A173: 2023 | B173: ='Hourly Load Profiles'!B26473 -> 1 | C173: ='Hourly Load Profiles'!C26473 -> 7 | D173: ='Hourly Load Profiles'!D26473 -> 23 | E173: ='Hourly Load Profiles'!E26473*E$4 -> 29498.13498 | F173: ='Hourly Load Profiles'!F26473*F$4 -> 10077.12155 | G173: ='Hourly Load Profiles'!G26473*G$4 -> 20873.03778 | H173: ='Hourly Load Profiles'!H26473*H$4 -> 11567.83228 | I173: ='Hourly Load Profiles'!I26473*I$4 -> 36458.94993 | J173: ='Hourly Load Profiles'!J26473*J$4 -> 710.1101965 | K173: ='Hourly Load Profiles'!K26473*K$4 -> 97.69934986 | L173: ='Hourly Load Profiles'!L26473*L$4 -> 250.9472603 | M173: 109533.8333
A174: 2023 | B174: ='Hourly Load Profiles'!B26474 -> 1 | C174: ='Hourly Load Profiles'!C26474 -> 7 | D174: ='Hourly Load Profiles'!D26474 -> 24 | E174: ='Hourly Load Profiles'!E26474*E$4 -> 24923.87108 | F174: ='Hourly Load Profiles'!F26474*F$4 -> 9522.067763 | G174: ='Hourly Load Profiles'!G26474*G$4 -> 18565.91476 | H174: ='Hourly Load Profiles'!H26474*H$4 -> 11349.17766 | I174: ='Hourly Load Profiles'!I26474*I$4 -> 36107.47335 | J174: ='Hourly Load Profiles'!J26474*J$4 -> 710.1101965 | K174: ='Hourly Load Profiles'!K26474*K$4 -> 97.69934986 | L174: ='Hourly Load Profiles'!L26474*L$4 -> 250.9472603 | M174: 101527.2614
A175: 2023 | B175: ='Hourly Load Profiles'!B26475 -> 1 | C175: ='Hourly Load Profiles'!C26475 -> 8 | D175: ='Hourly Load Profiles'!D26475 -> 1 | E175: ='Hourly Load Profiles'!E26475*E$4 -> 21754.85023 | F175: ='Hourly Load Profiles'!F26475*F$4 -> 9184.191398 | G175: ='Hourly Load Profiles'!G26475*G$4 -> 17068.34377 | H175: ='Hourly Load Profiles'!H26475*H$4 -> 11444.7206 | I175: ='Hourly Load Profiles'!I26475*I$4 -> 36266.16037 | J175: ='Hourly Load Profiles'!J26475*J$4 -> 710.1101965 | K175: ='Hourly Load Profiles'!K26475*K$4 -> 97.69934986 | L175: ='Hourly Load Profiles'!L26475*L$4 -> 250.9472603 | M175: 96777.02319
A176: 2023 | B176: ='Hourly Load Profiles'!B26476 -> 1 | C176: ='Hourly Load Profiles'!C26476 -> 8 | D176: ='Hourly Load Profiles'!D26476 -> 2 | E176: ='Hourly Load Profiles'!E26476*E$4 -> 20108.17876 | F176: ='Hourly Load Profiles'!F26476*F$4 -> 9032.54333 | G176: ='Hourly Load Profiles'!G26476*G$4 -> 16285.53981 | H176: ='Hourly Load Profiles'!H26476*H$4 -> 11435.2985 | I176: ='Hourly Load Profiles'!I26476*I$4 -> 36406.31709 | J176: ='Hourly Load Profiles'!J26476*J$4 -> 710.1101965 | K176: ='Hourly Load Profiles'!K26476*K$4 -> 97.69934986 | L176: ='Hourly Load Profiles'!L26476*L$4 -> 250.9472603 | M176: 94326.63431
A177: 2023 | B177: ='Hourly Load Profiles'!B26477 -> 1 | C177: ='Hourly Load Profiles'!C26477 -> 8 | D177: ='Hourly Load Profiles'!D26477 -> 3 | E177: ='Hourly Load Profiles'!E26477*E$4 -> 19319.75314 | F177: ='Hourly Load Profiles'!F26477*F$4 -> 8970.395119 | G177: ='Hourly Load Profiles'!G26477*G$4 -> 15866.73881 | H177: ='Hourly Load Profiles'!H26477*H$4 -> 11309.64204 | I177: ='Hourly Load Profiles'!I26477*I$4 -> 34095.74158 | J177: ='Hourly Load Profiles'!J26477*J$4 -> 710.1101965 | K177: ='Hourly Load Profiles'!K26477*K$4 -> 97.69934986 | L177: ='Hourly Load Profiles'!L26477*L$4 -> 250.9472603 | M177: 90621.0275
A178: 2023 | B178: ='Hourly Load Profiles'!B26478 -> 1 | C178: ='Hourly Load Profiles'!C26478 -> 8 | D178: ='Hourly Load Profiles'!D26478 -> 4 | E178: ='Hourly Load Profiles'!E26478*E$4 -> 19067.79206 | F178: ='Hourly Load Profiles'!F26478*F$4 -> 8929.356377 | G178: ='Hourly Load Profiles'!G26478*G$4 -> 15938.81617 | H178: ='Hourly Load Profiles'!H26478*H$4 -> 11014.18865 | I178: ='Hourly Load Profiles'!I26478*I$4 -> 36233.95235 | J178: ='Hourly Load Profiles'!J26478*J$4 -> 710.1101965 | K178: ='Hourly Load Profiles'!K26478*K$4 -> 97.69934986 | L178: ='Hourly Load Profiles'!L26478*L$4 -> 250.9472603 | M178: 92242.8624
A179: 2023 | B179: ='Hourly Load Profiles'!B26479 -> 1 | C179: ='Hourly Load Profiles'!C26479 -> 8 | D179: ='Hourly Load Profiles'!D26479 -> 5 | E179: ='Hourly Load Profiles'!E26479*E$4 -> 19183.2284 | F179: ='Hourly Load Profiles'!F26479*F$4 -> 8999.306569 | G179: ='Hourly Load Profiles'!G26479*G$4 -> 15921.64241 | H179: ='Hourly Load Profiles'!H26479*H$4 -> 11377.80898 | I179: ='Hourly Load Profiles'!I26479*I$4 -> 36506.86105 | J179: ='Hourly Load Profiles'!J26479*J$4 -> 710.1101965 | K179: ='Hourly Load Profiles'!K26479*K$4 -> 97.69934986 | L179: ='Hourly Load Profiles'!L26479*L$4 -> 250.9472603 | M179: 93047.60422
A180: 2023 | B180: ='Hourly Load Profiles'!B26480 -> 1 | C180: ='Hourly Load Profiles'!C26480 -> 8 | D180: ='Hourly Load Profiles'!D26480 -> 6 | E180: ='Hourly Load Profiles'!E26480*E$4 -> 20620.14959 | F180: ='Hourly Load Profiles'!F26480*F$4 -> 9313.87502 | G180: ='Hourly Load Profiles'!G26480*G$4 -> 16844.79449 | H180: ='Hourly Load Profiles'!H26480*H$4 -> 11679.37437 | I180: ='Hourly Load Profiles'!I26480*I$4 -> 36332.41516 | J180: ='Hourly Load Profiles'!J26480*J$4 -> 710.1101965 | K180: ='Hourly Load Profiles'!K26480*K$4 -> 97.69934986 | L180: ='Hourly Load Profiles'!L26480*L$4 -> 250.9472603 | M180: 95849.36544
A181: 2023 | B181: ='Hourly Load Profiles'!B26481 -> 1 | C181: ='Hourly Load Profiles'!C26481 -> 8 | D181: ='Hourly Load Profiles'!D26481 -> 7 | E181: ='Hourly Load Profiles'!E26481*E$4 -> 23552.50585 | F181: ='Hourly Load Profiles'!F26481*F$4 -> 10016.07177 | G181: ='Hourly Load Profiles'!G26481*G$4 -> 18839.3527 | H181: ='Hourly Load Profiles'!H26481*H$4 -> 12128.64862 | I181: ='Hourly Load Profiles'!I26481*I$4 -> 36185.27704 | J181: ='Hourly Load Profiles'!J26481*J$4 -> 710.1101965 | K181: ='Hourly Load Profiles'!K26481*K$4 -> 97.69934986 | L181: ='Hourly Load Profiles'!L26481*L$4 -> 250.9472603 | M181: 101780.6128
A182: 2023 | B182: ='Hourly Load Profiles'!B26482 -> 1 | C182: ='Hourly Load Profiles'!C26482 -> 8 | D182: ='Hourly Load Profiles'!D26482 -> 8 | E182: ='Hourly Load Profiles'!E26482*E$4 -> 26217.83301 | F182: ='Hourly Load Profiles'!F26482*F$4 -> 11947.14141 | G182: ='Hourly Load Profiles'!G26482*G$4 -> 21462.9603 | H182: ='Hourly Load Profiles'!H26482*H$4 -> 11998.06735 | I182: ='Hourly Load Profiles'!I26482*I$4 -> 35921.81417 | J182: ='Hourly Load Profiles'!J26482*J$4 -> 667.5035847 | K182: ='Hourly Load Profiles'!K26482*K$4 -> 91.83738887 | L182: ='Hourly Load Profiles'!L26482*L$4 -> 250.9472603 | M182: 108558.1045
A183: 2023 | B183: ='Hourly Load Profiles'!B26483 -> 1 | C183: ='Hourly Load Profiles'!C26483 -> 8 | D183: ='Hourly Load Profiles'!D26483 -> 9 | E183: ='Hourly Load Profiles'!E26483*E$4 -> 25711.88461 | F183: ='Hourly Load Profiles'!F26483*F$4 -> 13834.32711 | G183: ='Hourly Load Profiles'!G26483*G$4 -> 22774.90755 | H183: ='Hourly Load Profiles'!H26483*H$4 -> 12133.59857 | I183: ='Hourly Load Profiles'!I26483*I$4 -> 36243.11381 | J183: ='Hourly Load Profiles'!J26483*J$4 -> 0 | K183: ='Hourly Load Profiles'!K26483*K$4 -> 0 | L183: ='Hourly Load Profiles'!L26483*L$4 -> 250.9472603 | M183: 110948.7789
A184: 2023 | B184: ='Hourly Load Profiles'!B26484 -> 1 | C184: ='Hourly Load Profiles'!C26484 -> 8 | D184: ='Hourly Load Profiles'!D26484 -> 10 | E184: ='Hourly Load Profiles'!E26484*E$4 -> 24733.96102 | F184: ='Hourly Load Profiles'!F26484*F$4 -> 15182.1612 | G184: ='Hourly Load Profiles'!G26484*G$4 -> 22958.41 | H184: ='Hourly Load Profiles'!H26484*H$4 -> 12707.56693 | I184: ='Hourly Load Profiles'!I26484*I$4 -> 35414.69397 | J184: ='Hourly Load Profiles'!J26484*J$4 -> 0 | K184: ='Hourly Load Profiles'!K26484*K$4 -> 0 | L184: ='Hourly Load Profiles'!L26484*L$4 -> 250.9472603 | M184: 111247.7404
A185: 2023 | B185: ='Hourly Load Profiles'!B26485 -> 1 | C185: ='Hourly Load Profiles'!C26485 -> 8 | D185: ='Hourly Load Profiles'!D26485 -> 11 | E185: ='Hourly Load Profiles'!E26485*E$4 -> 24108.39054 | F185: ='Hourly Load Profiles'!F26485*F$4 -> 15825.59062 | G185: ='Hourly Load Profiles'!G26485*G$4 -> 22783.8257 | H185: ='Hourly Load Profiles'!H26485*H$4 -> 13599.3419 | I185: ='Hourly Load Profiles'!I26485*I$4 -> 34342.06809 | J185: ='Hourly Load Profiles'!J26485*J$4 -> 0 | K185: ='Hourly Load Profiles'!K26485*K$4 -> 0 | L185: ='Hourly Load Profiles'!L26485*L$4 -> 250.9472603 | M185: 110910.1641
A186: 2023 | B186: ='Hourly Load Profiles'!B26486 -> 1 | C186: ='Hourly Load Profiles'!C26486 -> 8 | D186: ='Hourly Load Profiles'!D26486 -> 12 | E186: ='Hourly Load Profiles'!E26486*E$4 -> 24351.88466 | F186: ='Hourly Load Profiles'!F26486*F$4 -> 15886.92951 | G186: ='Hourly Load Profiles'!G26486*G$4 -> 22798.86523 | H186: ='Hourly Load Profiles'!H26486*H$4 -> 13668.94657 | I186: ='Hourly Load Profiles'!I26486*I$4 -> 34200.01615 | J186: ='Hourly Load Profiles'!J26486*J$4 -> 0 | K186: ='Hourly Load Profiles'!K26486*K$4 -> 0 | L186: ='Hourly Load Profiles'!L26486*L$4 -> 250.9472603 | M186: 111157.5894
A187: 2023 | B187: ='Hourly Load Profiles'!B26487 -> 1 | C187: ='Hourly Load Profiles'!C26487 -> 8 | D187: ='Hourly Load Profiles'!D26487 -> 13 | E187: ='Hourly Load Profiles'!E26487*E$4 -> 24230.02914 | F187: ='Hourly Load Profiles'!F26487*F$4 -> 15444.53864 | G187: ='Hourly Load Profiles'!G26487*G$4 -> 22626.23296 | H187: ='Hourly Load Profiles'!H26487*H$4 -> 13162.83269 | I187: ='Hourly Load Profiles'!I26487*I$4 -> 34304.2707 | J187: ='Hourly Load Profiles'!J26487*J$4 -> 0 | K187: ='Hourly Load Profiles'!K26487*K$4 -> 0 | L187: ='Hourly Load Profiles'!L26487*L$4 -> 250.9472603 | M187: 110018.8514
A188: 2023 | B188: ='Hourly Load Profiles'!B26488 -> 1 | C188: ='Hourly Load Profiles'!C26488 -> 8 | D188: ='Hourly Load Profiles'!D26488 -> 14 | E188: ='Hourly Load Profiles'!E26488*E$4 -> 24240.22138 | F188: ='Hourly Load Profiles'!F26488*F$4 -> 15565.4986 | G188: ='Hourly Load Profiles'!G26488*G$4 -> 22751.09836 | H188: ='Hourly Load Profiles'!H26488*H$4 -> 12685.95161 | I188: ='Hourly Load Profiles'!I26488*I$4 -> 34563.35771 | J188: ='Hourly Load Profiles'!J26488*J$4 -> 0 | K188: ='Hourly Load Profiles'!K26488*K$4 -> 0 | L188: ='Hourly Load Profiles'!L26488*L$4 -> 250.9472603 | M188: 110057.0749
A189: 2023 | B189: ='Hourly Load Profiles'!B26489 -> 1 | C189: ='Hourly Load Profiles'!C26489 -> 8 | D189: ='Hourly Load Profiles'!D26489 -> 15 | E189: ='Hourly Load Profiles'!E26489*E$4 -> 24762.71035 | F189: ='Hourly Load Profiles'!F26489*F$4 -> 15504.63019 | G189: ='Hourly Load Profiles'!G26489*G$4 -> 22707.08688 | H189: ='Hourly Load Profiles'!H26489*H$4 -> 12900.03743 | I189: ='Hourly Load Profiles'!I26489*I$4 -> 34875.632 | J189: ='Hourly Load Profiles'!J26489*J$4 -> 0 | K189: ='Hourly Load Profiles'!K26489*K$4 -> 0 | L189: ='Hourly Load Profiles'!L26489*L$4 -> 250.9472603 | M189: 111001.0441
A190: 2023 | B190: ='Hourly Load Profiles'!B26490 -> 1 | C190: ='Hourly Load Profiles'!C26490 -> 8 | D190: ='Hourly Load Profiles'!D26490 -> 16 | E190: ='Hourly Load Profiles'!E26490*E$4 -> 26512.28188 | F190: ='Hourly Load Profiles'!F26490*F$4 -> 15211.88863 | G190: ='Hourly Load Profiles'!G26490*G$4 -> 23159.25125 | H190: ='Hourly Load Profiles'!H26490*H$4 -> 12811.99467 | I190: ='Hourly Load Profiles'!I26490*I$4 -> 34691.4571 | J190: ='Hourly Load Profiles'!J26490*J$4 -> 0 | K190: ='Hourly Load Profiles'!K26490*K$4 -> 0 | L190: ='Hourly Load Profiles'!L26490*L$4 -> 250.9472603 | M190: 112637.8208
A191: 2023 | B191: ='Hourly Load Profiles'!B26491 -> 1 | C191: ='Hourly Load Profiles'!C26491 -> 8 | D191: ='Hourly Load Profiles'!D26491 -> 17 | E191: ='Hourly Load Profiles'!E26491*E$4 -> 30810.18333 | F191: ='Hourly Load Profiles'!F26491*F$4 -> 14432.09603 | G191: ='Hourly Load Profiles'!G26491*G$4 -> 24093.76979 | H191: ='Hourly Load Profiles'!H26491*H$4 -> 12788.79336 | I191: ='Hourly Load Profiles'!I26491*I$4 -> 34813.41317 | J191: ='Hourly Load Profiles'!J26491*J$4 -> 0 | K191: ='Hourly Load Profiles'!K26491*K$4 -> 0 | L191: ='Hourly Load Profiles'!L26491*L$4 -> 250.9472603 | M191: 117189.2029
A192: 2023 | B192: ='Hourly Load Profiles'!B26492 -> 1 | C192: ='Hourly Load Profiles'!C26492 -> 8 | D192: ='Hourly Load Profiles'!D26492 -> 18 | E192: ='Hourly Load Profiles'!E26492*E$4 -> 35651.54523 | F192: ='Hourly Load Profiles'!F26492*F$4 -> 13578.80013 | G192: ='Hourly Load Profiles'!G26492*G$4 -> 25574.01384 | H192: ='Hourly Load Profiles'!H26492*H$4 -> 12829.22455 | I192: ='Hourly Load Profiles'!I26492*I$4 -> 34841.42744 | J192: ='Hourly Load Profiles'!J26492*J$4 -> 454.4705257 | K192: ='Hourly Load Profiles'!K26492*K$4 -> 62.52758391 | L192: ='Hourly Load Profiles'!L26492*L$4 -> 250.9472603 | M192: 123242.9566
A193: 2023 | B193: ='Hourly Load Profiles'!B26493 -> 1 | C193: ='Hourly Load Profiles'!C26493 -> 8 | D193: ='Hourly Load Profiles'!D26493 -> 19 | E193: ='Hourly Load Profiles'!E26493*E$4 -> 35901.13983 | F193: ='Hourly Load Profiles'!F26493*F$4 -> 12907.68166 | G193: ='Hourly Load Profiles'!G26493*G$4 -> 25312.14824 | H193: ='Hourly Load Profiles'!H26493*H$4 -> 12616.74198 | I193: ='Hourly Load Profiles'!I26493*I$4 -> 34625.3992 | J193: ='Hourly Load Profiles'!J26493*J$4 -> 710.1101965 | K193: ='Hourly Load Profiles'!K26493*K$4 -> 97.69934986 | L193: ='Hourly Load Profiles'!L26493*L$4 -> 250.9472603 | M193: 122421.8677
A194: 2023 | B194: ='Hourly Load Profiles'!B26494 -> 1 | C194: ='Hourly Load Profiles'!C26494 -> 8 | D194: ='Hourly Load Profiles'!D26494 -> 20 | E194: ='Hourly Load Profiles'!E26494*E$4 -> 36095.69738 | F194: ='Hourly Load Profiles'!F26494*F$4 -> 12454.00243 | G194: ='Hourly Load Profiles'!G26494*G$4 -> 25198.25373 | H194: ='Hourly Load Profiles'!H26494*H$4 -> 12468.56657 | I194: ='Hourly Load Profiles'!I26494*I$4 -> 34800.97731 | J194: ='Hourly Load Profiles'!J26494*J$4 -> 710.1101965 | K194: ='Hourly Load Profiles'!K26494*K$4 -> 97.69934986 | L194: ='Hourly Load Profiles'!L26494*L$4 -> 250.9472603 | M194: 122076.2542
A195: 2023 | B195: ='Hourly Load Profiles'!B26495 -> 1 | C195: ='Hourly Load Profiles'!C26495 -> 8 | D195: ='Hourly Load Profiles'!D26495 -> 21 | E195: ='Hourly Load Profiles'!E26495*E$4 -> 36060.38957 | F195: ='Hourly Load Profiles'!F26495*F$4 -> 12005.10648 | G195: ='Hourly Load Profiles'!G26495*G$4 -> 24791.45669 | H195: ='Hourly Load Profiles'!H26495*H$4 -> 12446.67444 | I195: ='Hourly Load Profiles'!I26495*I$4 -> 36559.1721 | J195: ='Hourly Load Profiles'!J26495*J$4 -> 710.1101965 | K195: ='Hourly Load Profiles'!K26495*K$4 -> 97.69934986 | L195: ='Hourly Load Profiles'!L26495*L$4 -> 250.9472603 | M195: 122921.5561
A196: 2023 | B196: ='Hourly Load Profiles'!B26496 -> 1 | C196: ='Hourly Load Profiles'!C26496 -> 8 | D196: ='Hourly Load Profiles'!D26496 -> 22 | E196: ='Hourly Load Profiles'!E26496*E$4 -> 33904.19066 | F196: ='Hourly Load Profiles'!F26496*F$4 -> 11045.31236 | G196: ='Hourly Load Profiles'!G26496*G$4 -> 23260.53832 | H196: ='Hourly Load Profiles'!H26496*H$4 -> 12413.91872 | I196: ='Hourly Load Profiles'!I26496*I$4 -> 36629.37155 | J196: ='Hourly Load Profiles'!J26496*J$4 -> 710.1101965 | K196: ='Hourly Load Profiles'!K26496*K$4 -> 97.69934986 | L196: ='Hourly Load Profiles'!L26496*L$4 -> 250.9472603 | M196: 118312.0884
A197: 2023 | B197: ='Hourly Load Profiles'!B26497 -> 1 | C197: ='Hourly Load Profiles'!C26497 -> 8 | D197: ='Hourly Load Profiles'!D26497 -> 23 | E197: ='Hourly Load Profiles'!E26497*E$4 -> 29958.11071 | F197: ='Hourly Load Profiles'!F26497*F$4 -> 10451.04814 | G197: ='Hourly Load Profiles'!G26497*G$4 -> 21259.43895 | H197: ='Hourly Load Profiles'!H26497*H$4 -> 12369.37384 | I197: ='Hourly Load Profiles'!I26497*I$4 -> 36523.42653 | J197: ='Hourly Load Profiles'!J26497*J$4 -> 710.1101965 | K197: ='Hourly Load Profiles'!K26497*K$4 -> 97.69934986 | L197: ='Hourly Load Profiles'!L26497*L$4 -> 250.9472603 | M197: 111620.155
A198: 2023 | B198: ='Hourly Load Profiles'!B26498 -> 1 | C198: ='Hourly Load Profiles'!C26498 -> 8 | D198: ='Hourly Load Profiles'!D26498 -> 24 | E198: ='Hourly Load Profiles'!E26498*E$4 -> 25782.14972 | F198: ='Hourly Load Profiles'!F26498*F$4 -> 10005.08584 | G198: ='Hourly Load Profiles'!G26498*G$4 -> 19261.33649 | H198: ='Hourly Load Profiles'!H26498*H$4 -> 12560.07895 | I198: ='Hourly Load Profiles'!I26498*I$4 -> 36538.41716 | J198: ='Hourly Load Profiles'!J26498*J$4 -> 710.1101965 | K198: ='Hourly Load Profiles'!K26498*K$4 -> 97.69934986 | L198: ='Hourly Load Profiles'!L26498*L$4 -> 250.9472603 | M198: 105205.825
A199: 2023 | B199: ='Hourly Load Profiles'!B26499 -> 1 | C199: ='Hourly Load Profiles'!C26499 -> 9 | D199: ='Hourly Load Profiles'!D26499 -> 1 | E199: ='Hourly Load Profiles'!E26499*E$4 -> 22835.75342 | F199: ='Hourly Load Profiles'!F26499*F$4 -> 9656.069016 | G199: ='Hourly Load Profiles'!G26499*G$4 -> 17848.4911 | H199: ='Hourly Load Profiles'!H26499*H$4 -> 12458.35288 | I199: ='Hourly Load Profiles'!I26499*I$4 -> 35403.42562 | J199: ='Hourly Load Profiles'!J26499*J$4 -> 710.1101965 | K199: ='Hourly Load Profiles'!K26499*K$4 -> 97.69934986 | L199: ='Hourly Load Profiles'!L26499*L$4 -> 250.9472603 | M199: 99260.84884
A200: 2023 | B200: ='Hourly Load Profiles'!B26500 -> 1 | C200: ='Hourly Load Profiles'!C26500 -> 9 | D200: ='Hourly Load Profiles'!D26500 -> 2 | E200: ='Hourly Load Profiles'!E26500*E$4 -> 21174.80531 | F200: ='Hourly Load Profiles'!F26500*F$4 -> 9378.833425 | G200: ='Hourly Load Profiles'!G26500*G$4 -> 16955.61748 | H200: ='Hourly Load Profiles'!H26500*H$4 -> 12464.2652 | I200: ='Hourly Load Profiles'!I26500*I$4 -> 35253.86693 | J200: ='Hourly Load Profiles'!J26500*J$4 -> 710.1101965 | K200: ='Hourly Load Profiles'!K26500*K$4 -> 97.69934986 | L200: ='Hourly Load Profiles'!L26500*L$4 -> 250.9472603 | M200: =SUM(E200:L200) -> 96286.14514
... 4300 more rows
